fonte_recurso,saldo_empenho,esfera,licitacao,ano,data,plano_interno,convenio,valor_anulado,valor_cancelado,programa_trabalho_resumido,documento_associado,observacoes,cod_empenho,natureza_despesa,credor,processo,nome_unidade_gestora,valor_reforcado,valor_empenho,modalidade,id_unidade_gestora
ARRECADACAO CDT,14398.00,FISCAL,null,2022,14/10/2022,PROJETO TOLEDO BIGDATA,null,null,null,FUNCIONAMENTO DE INSTITUICOES FEDERAI - NO DF,23106.112508/2022-91,AQUISIÇÃO DE DUAS UNIDADES DE NOTEBOOK I7 PARA ATENDER AS NECESSIDADES DO PROJETO DE PESQUISA: GEPRO_LINFO_TOLEDO_BIGDATA_2019. SEI: 23106.112508/2022-91,400015,EQUIP. MATERIAL PERMANENTE,MAGAZINE DA INFORMÁTICA COMÉRCIO E SERVIÇOS LTDA,null,CENTRO DE APOIO AO DESENVOLVIMENTO TECNOLÓGICO,null,14398.00,ordinário,643
ARRECADACAO CDT,1395.00,FISCAL,null,2022,25/07/2022,PROJETO TOLEDO BIGDATA,null,null,null,FUNCIONAMENTO DE INSTITUICOES FEDERAI - NO DF,23106.075472/2022-57,5 unidades de SSD 240GB,400011,MAT. CONSUMO,CEL TECNOLOGIA E INFORMATICA LTDA,null,CENTRO DE APOIO AO DESENVOLVIMENTO TECNOLÓGICO,null,1395.00,ordinário,643
ARRECADACAO CDT,19900.00,FISCAL,null,2022,14/06/2022,PROJETO TOLEDO BIGDATA,null,null,null,FUNCIONAMENTO DE INSTITUICOES FEDERAI - NO DF,23106.007847/2022-56,"AQUISIÇÃO DE MATERIAL PERMANENTE, NOBREAK 10KVA. NITCDT. 23106.007847/2022-56",400009,EQUIP. MATERIAL PERMANENTE,MGX SERVICE COMERCIO E SERVICOS LTDA,null,CENTRO DE APOIO AO DESENVOLVIMENTO TECNOLÓGICO,null,19900.00,ordinário,643
RECURSOS DIRETAM.ARREC FUNDAÇÃO UNIV.BRASÍLIA,3096.00,FISCAL,null,2022,28/04/2022,TAXA ADMINISTRATIVA DO CDT,null,null,null,FUNCIONAMENTO DE INSTITUICOES FEDERAI - NO DF,23106.038356/2022-57,"AQUISIÇÃO DE MATERIAIS PERMANENTES (EQUIPAMENTOS DE COPA) PARA ATENDER AS NECESSIDADESDO DPI/NITCDT. SEI: 23106.038356/2022-57",400008,EQUIP. MATERIAL PERMANENTE,SUPER LICITE LICITACOES LTDA,null,CENTRO DE APOIO AO DESENVOLVIMENTO TECNOLÓGICO,null,3096.00,ordinário,643
RECURSOS DIRETAM.ARREC FUNDAÇÃO UNIV.BRASÍLIA,688.00,FISCAL,null,2022,28/04/2022,TAXA ADMINISTRATIVA DO CDT,null,null,null,FUNCIONAMENTO DE INSTITUICOES FEDERAI - NO DF,23106.038356/2022-57,"AQUISIÇÃO DE MATERIAIS DE CONSUMO (PEÇAS DE COMPUTADOR) PARA ATENDER AS NECESSIDADESDO DPI/NICDT. SEI: 23106.038356/2022-57",400007,MAT. CONSUMO,SUPER LICITE LICITACOES LTDA,null,CENTRO DE APOIO AO DESENVOLVIMENTO TECNOLÓGICO,null,688.00,ordinário,643
PRÓPRIOS -  PREST.SERVICOS FUB/FUNDO,1700.00,FISCAL,PR 306/2021 - UNB,2022,11/10/2022,CRÉDITOS DISTRIBUÍDOS PARA AS UNIDADES ACADÊMICAS,null,null,null,FUNCIONAMENTO DE INSTITUICOES FEDERAI - NO DF,23106.119449/2022-81,"C. CUSTO: FAV.        PROT:11010105{SM6025/2022(1700,00)}        SEI 23106.119449/2022-81.AQUISIÇÃO DE ROÇADEIRA MANUAL.2022ND001863.      MEMO 002/2022/FAV.",25530,EQUIP. MATERIAL PERMANENTE,"MCA ASSESSORIA, IMPORTACAO E COMERCIO LTDA",null,UNIVERSIDADE DE BRASÍLIA,null,1700.00,ordinário,605
PRÓPRIOS -  PREST.SERVICOS FUB/FUNDO,307.00,FISCAL,PR 1/2022 - UNB,2022,21/11/2022,CRÉDITOS DISTRIBUÍDOS PARA AS UNIDADES ACADÊMICAS,null,null,null,FUNCIONAMENTO DE INSTITUICOES FEDERAI - NO DF,23106.134727/2022-21,"C. CUSTO: ICH.      PROT:11010118{SM6578/2022(307,00)}        SEI 23106.134727/2022-21.AQUISIÇÃO DE MATERIAL DE COPA E COZINHA.2022ND005471.       DESPACHO ICH/FIL/PPGFIL 8943212.         PREGÃO 1/2022.",3173,MAT. CONSUMO,NOVA MESA DISTRIBUIDORA DE ALIMENTOS E UTILIDADES LTDA,null,UNIVERSIDADE DE BRASÍLIA,null,307.00,global,605
PRÓPRIOS -  PREST.SERVICOS FUB/FUNDO,42876.00,FISCAL,PR 202/2022 - UNB,2022,21/11/2022,CRÉDITOS DISTRIBUÍDOS PARA AS UNIDADES ADMINISTRATIVAS,null,null,null,FUNCIONAMENTO DE INSTITUICOES FEDERAI - NO DF,23106.038751/2022-30,"C. CUSTO: DPG                     SEI: 23106.137669/2022-97ATT: DIANA LUCIA MOURA PINHO      2022ND005481MEMO.099/2022/DPG/APAF            PROT:110108{SM6715/2022(42876,00)}MATERIAL DE PERMANENTE - PEDIDO:6715/2022 -   PREG:202/2022  EQUIPAMENTOS TIC - MICROCOMPUTADOR E NOTEBOOK TIPO PADRÃO",3172,EQUIPAMENTOS E MATERIAL PERMANENTE,DATEN TECNOLOGIA LTDA,null,UNIVERSIDADE DE BRASÍLIA,null,42876.00,ordinário,605
PRÓPRIOS -  PREST.SERVICOS FUB/FUNDO,133293.80,FISCAL,PR 202/2022 - UNB,2022,21/11/2022,CRÉDITOS DISTRIBUÍDOS PARA AS UNIDADES ACADÊMICAS,null,null,null,FUNCIONAMENTO DE INSTITUICOES FEDERAI - NO DF,23106.038751/2022-30,"C. CUSTO: FDD                    SEI 23106.135599/2022-32ATT: DANIELA MARQUES DE MORAES   2022ND000000MEMO.S.N/2022/FD/FDD/FIN         PROT:11010106{SM6734/2022(133293,80)}MATERIAL DE PERMANENTE - PEDIDO:6734/2022 - PREG:202/2022  EQUIPAMENTOS TIC - MICROCOMPUTADOR TIPO PADRÃO E AVANÇADO",3171,EQUIPAMENTOS E MATERIAL PERMANENTE,DATEN TECNOLOGIA LTDA,null,UNIVERSIDADE DE BRASÍLIA,null,133293.80,ordinário,605
PRÓPRIOS -  PREST.SERVICOS FUB/FUNDO,155.97,FISCAL,PR 1/2022 - UNB,2022,21/11/2022,CRÉDITOS DISTRIBUÍDOS PARA AS UNIDADES ACADÊMICAS,null,null,null,FUNCIONAMENTO DE INSTITUICOES FEDERAI - NO DF,23106.119475/2021-29,"C.CUSTO: IHD  AT-ANDRÉ LECLERC - PROT:11010118{SM6576/2022(155,97)}         MATERIAL DE CONSUMO-PEDIDO:6576/2022 - 2022ND005470 - PREG:001/2022MATERIAL DE COPA E COZINHA - BANDEJA RETANGULAR INOXMEMO.S.N/2022/FIL/PPGFIL -  S.E.I 23106.134728/2022-75",3170,MAT. CONSUMO,NOVA MESA DISTRIBUIDORA DE ALIMENTOS E UTILIDADES LTDA,null,UNIVERSIDADE DE BRASÍLIA,null,155.97,ordinário,605
RECURSOS DIR.ARRECADADOS(PROPRIOS)-FUB -,577.50,FISCAL,PR 41/2021 - UNB,2022,21/11/2022,ARRECADACOES DA FAL - HORTIFRUTIGRANJEIRO,null,null,null,FUNCIONAMENTO DE INSTITUICOES FEDERAI - NO DF,23106.078404/2021-69,"C. CUSTO: FAL.         PROT:110116{SM6726/2022(577,50)}        SEI 23106.137974/2022-89.AQUISIÇÃO DE VACINAS.2022ND005456.     MEMO 115/2022/FAL.",3169,MAT. CONSUMO,VETMAX PRODUTOS AGROPECUARIOS EIRELI,null,UNIVERSIDADE DE BRASÍLIA,null,577.50,ordinário,605
PRÓPRIOS -  PREST.SERVICOS FUB/FUNDO,45422.30,FISCAL,PR 202/2022 - UNB,2022,21/11/2022,CRÉDITOS DISTRIBUÍDOS PARA AS UNIDADES ADMINISTRATIVAS,null,null,null,FUNCIONAMENTO DE INSTITUICOES FEDERAI - NO DF,23106.038751/2022-30,"C. CUSTO FGA PROT:110132{SM6755/2022(45422,30)} PR: 202/2022AQUISIÇÃO DE MICROCOMPUTADORES SEI: 23106.138312/2022-26 ANEXO SALDO PDI 449052 (8997766)",3168,EQUIPAMENTOS E MATERIAL PERMANENTE,DATEN TECNOLOGIA LTDA,null,UNIVERSIDADE DE BRASÍLIA,null,45422.30,ordinário,605
PRÓPRIOS -  PREST.SERVICOS FUB/FUNDO,33.15,FISCAL,PR 1/2022 - UNB,2022,21/11/2022,CRÉDITOS DISTRIBUÍDOS PARA AS UNIDADES ACADÊMICAS,null,null,null,FUNCIONAMENTO DE INSTITUICOES FEDERAI - NO DF,23106.119475/2021-29,"C.CUSTO:IHD//  AQUISIÇÃO DE PILHAS// REQ. 6575/2022PROT:11010118(33,15)// PREGÃO: 01/2022// SEI N.23106.134722/2022-06",3167,MAT. CONSUMO,RRA COMERCIO ELETRO-FONIA LTDA,null,UNIVERSIDADE DE BRASÍLIA,null,33.15,ordinário,605
PRÓPRIOS -  PREST.SERVICOS FUB/FUNDO,307.00,FISCAL,PR 1/2022 - UNB,2022,21/11/2022,CRÉDITOS DISTRIBUÍDOS PARA AS UNIDADES ACADÊMICAS,null,null,null,FUNCIONAMENTO DE INSTITUICOES FEDERAI - NO DF,23106.119475/2021-29,"C. CUSTO: ICH.      PROT:11010118(307,00)       SEI 23106.134727/2022-21.AQUISIÇÃO DE  MATERIAL DE COPA E COZINHA.2022ND005471.       DESPACHO ICH/FIL/PPGFIL 8943212.",3165,MAT. CONSUMO,NOVA MESA DISTRIBUIDORA DE ALIMENTOS E UTILIDADES LTDA,null,UNIVERSIDADE DE BRASÍLIA,null,307.00,ordinário,605
PRÓPRIOS -  PREST.SERVICOS FUB/FUNDO,55861.00,FISCAL,PR 202/2022 - UNB,2022,21/11/2022,CRÉDITOS DISTRIBUÍDOS PARA AS UNIDADES ACADÊMICAS,null,null,null,FUNCIONAMENTO DE INSTITUICOES FEDERAI - NO DF,23106.038751/2022-30,"C. CUSTO FGA PROT:{SM6756/2022(55861,00}} PR: 202/2022AQUISIÇÃO DE MICROCOMPUTADORES SEI: 23106.138312/2022-26 ANEXO SALDO MATRIZ (8995427)",3164,EQUIPAMENTOS E MATERIAL PERMANENTE,DATEN TECNOLOGIA LTDA,null,UNIVERSIDADE DE BRASÍLIA,null,55861.00,ordinário,605
PRÓPRIOS -  PREST.SERVICOS FUB/FUNDO,1003.85,FISCAL,PR 28/2022 - UNB,2022,21/11/2022,CRÉDITOS DISTRIBUÍDOS PARA AS UNIDADES ACADÊMICAS,null,null,null,FUNCIONAMENTO DE INSTITUICOES FEDERAI - NO DF,23106.054309/2021-70,"C. CUSTO: FAV                     SEI: 23106.138487/2022-33ATT: MAX DA COSTA OLIVEIRA        2022ND000000MEMO.S.N/2022/FAV/DIR             PROT:11010105{SM6767/2022(1003,85)}MATERIAL DE PERMANENTE - PEDIDO:6767/2022 -   PREG:028/2022  MAQ.EQUIP.UTEN.DIVERSOS - APARELHO PURIFICADOR DE ÁGUA",3161,EQUIP. MATERIAL PERMANENTE,BSB CAPITAL SOLUCOES LTDA,null,UNIVERSIDADE DE BRASÍLIA,null,1003.85,ordinário,605
PRÓPRIOS -  PREST.SERVICOS FUB/FUNDO,15082.90,FISCAL,PR 202/2022 - UNB,2022,21/11/2022,CRÉDITOS DISTRIBUÍDOS PARA AS UNIDADES ACADÊMICAS,null,null,null,FUNCIONAMENTO DE INSTITUICOES FEDERAI - NO DF,23106.038751/2022-30,"C. CUSTO: ICS                 SEI 23106.135917/2022-65ATT: DANIEL SCHROETER SIMIAO  2022ND000000MEMO.036/2022/ICS/DAN         PROT:11010113{SM6611/2022(15082,90)}MATERIAL DE PERMANENTE - PEDIDO:6611/2022 - PREG:202/2022  EQUIPAMENTOS TIC - MICROCOMPUTADOR TIPO PADRÃO E AVANÇADO",3160,EQUIPAMENTOS E MATERIAL PERMANENTE,DATEN TECNOLOGIA LTDA,null,UNIVERSIDADE DE BRASÍLIA,null,15082.90,ordinário,605
PRÓPRIOS -  PREST.SERVICOS FUB/FUNDO,19466.70,FISCAL,PR 202/2022 - UNB,2022,21/11/2022,CRÉDITOS DISTRIBUÍDOS PARA AS UNIDADES ACADÊMICAS,null,null,null,FUNCIONAMENTO DE INSTITUICOES FEDERAI - NO DF,23106.135225/2022-17,"C.CUSTO:IHD// AQUISIÇÃO DE MICROCOMPUTADOR// SEI N.23106.135225/2022-17PROT:11010118(19466,70)// 2022ND005477",3158,EQUIP. MATERIAL PERMANENTE,DATEN TECNOLOGIA LTDA,null,UNIVERSIDADE DE BRASÍLIA,null,19466.70,global,605
RECURSOS ORDINÁRIOS,551.00,FISCAL,PR 35/2022 - UNB,2022,21/11/2022,MATRIZ HVET_,null,null,null,20RK - FUNCIONAMENTO DOS HOSPITAL VETERINARIOS,23106.079543/2022-91,"C.CUSTO:HVET// MATERIAL PARA UTILIZAÇÃO DA FACULDADE DE AGRONOMIA E MEDICINA VETERINARIA//REQ.6656/2022PROT:1101010501(551,00)// DESPACHO FAV / HVET / HVETINHO (8973352)// SEI N.23106.137736/2022-73",3155,MAT. CONSUMO,D PRONTO NUTRIÇÃO ANIMAL E PRODUTOS VETERINÁRIOS LTDA,null,UNIVERSIDADE DE BRASÍLIA,null,551.00,ordinário,605
PRÓPRIOS -  PREST.SERVICOS FUB/FUNDO,4297.00,FISCAL,PR 202/2022 - UNB,2022,21/11/2022,CRÉDITOS DISTRIBUÍDOS PARA AS UNIDADES ADMINISTRATIVAS,null,null,null,FUNCIONAMENTO DE INSTITUICOES FEDERAI - NO DF,23106.038751/2022-30,"C. CUSTO: DAC.       PROT:110109{SM6597/2022(4297,00)}       SEI 23106.135531/2022-53.       AQUISIÇÃO DE  MICROCOMPUTADOR.2022ND005479.       MEMO 50/2022/DAC/DRU.      PREGÃO 202/2022.",3154,EQUIPAMENTOS E MATERIAL PERMANENTE,DATEN TECNOLOGIA LTDA,null,UNIVERSIDADE DE BRASÍLIA,null,4297.00,ordinário,605
PRÓPRIOS -  PREST.SERVICOS FUB/FUNDO,4821.00,FISCAL,PR 1/2021 - UNB,2022,21/11/2022,CRÉDITOS DISTRIBUÍDOS PARA AS UNIDADES ACADÊMICAS,null,null,null,FUNCIONAMENTO DE INSTITUICOES FEDERAI - NO DF,23106.136812/2022-23,"C.CUSTO:ILD// COFFEE BREAK PARA EVENTO DE CONFRATERNIZAÇÃO// MEMO N.107/ILD/2022PROT:11010119(4821,00)// SEI N.23106.136812/2022-23",3153,SERV. PESSOA JURÍDICA,ISM GOMES DE MATTOS EIRELI,null,UNIVERSIDADE DE BRASÍLIA,null,4821.00,global,605
PRÓPRIOS -  PREST.SERVICOS FUB/FUNDO,220.00,FISCAL,PR 1/2022 - UNB,2022,21/11/2022,CRÉDITOS DISTRIBUÍDOS PARA AS UNIDADES ACADÊMICAS,null,null,null,FUNCIONAMENTO DE INSTITUICOES FEDERAI - NO DF,23106.119475/2021-29,"C. CUSTO: ICH.      PROT:11010118{SM6574/2022(220,00)}       SEI 23106.134675/2022-92.   AQUISIÇÃO DE  MATERIAL DE COPA E COZINHA.2022ND005457.       DESPACHO ICH/FIL/PPGFIL 8942768.       PREGÃO 1/2022.",3152,MAT. CONSUMO,G B LEITE COMERCIO E MERCEARIA,null,UNIVERSIDADE DE BRASÍLIA,null,220.00,ordinário,605
PRÓPRIOS -  PREST.SERVICOS FUB/FUNDO,12891.00,FISCAL,PR 202/2022 - UNB,2022,18/11/2022,CRÉDITOS DISTRIBUÍDOS PARA AS UNIDADES ACADÊMICAS,null,null,null,FUNCIONAMENTO DE INSTITUICOES FEDERAI - NO DF,23106.038751/2022-30,"C. CUSTO: IDA               SEI:23106.135425/2022-70ATT: FATIMA APARECIDA DOS SANTOS   2022ND005382MEMO.101/2022/IDA           PROT:11010114{SM6709/2022(12891,00)}MATERIAL DE PERMANENTE - PEDIDO:6709/2022 - PREG:202/2022  EQUIPAMENTOS TIC - MICROCOMPUTADOR TIPO PADRÃO",3143,EQUIPAMENTOS E MATERIAL PERMANENTE,DATEN TECNOLOGIA LTDA,null,UNIVERSIDADE DE BRASÍLIA,null,12891.00,ordinário,605
PRÓPRIOS -  PREST.SERVICOS FUB/FUNDO,68611.00,FISCAL,PR 202/2022 - UNB,2022,18/11/2022,CRÉDITOS DISTRIBUÍDOS PARA AS UNIDADES ACADÊMICAS,null,null,null,FUNCIONAMENTO DE INSTITUICOES FEDERAI - NO DF,23106.038751/2022-30,"C. CUSTO: IDA                    SEI:23106.135425/2022-70ATT: CECILIA MORI CRUZ           2022ND005386MEMO.077/2022/IDA/VIS            PROT:11010103{SM6589/2022(68611,00)}MATERIAL DE PERMANENTE - PEDIDO:6589/2022 - PREG:202/2022  EQUIPAMENTOS TIC - MICROCOMPUTADOR  E NOTEBOOK TIPO  PADRÃO",3142,EQUIPAMENTOS E MATERIAL PERMANENTE,DATEN TECNOLOGIA LTDA,null,UNIVERSIDADE DE BRASÍLIA,null,68611.00,ordinário,605
PRÓPRIOS -  PREST.SERVICOS FUB/FUNDO,64889.00,FISCAL,PR 202/2022 - UNB,2022,18/11/2022,CRÉDITOS DISTRIBUÍDOS PARA AS UNIDADES ACADÊMICAS,null,null,null,FUNCIONAMENTO DE INSTITUICOES FEDERAI - NO DF,23106.038751/2022-30,"C. CUSTO: FAC                       SEI:23106.136736/2022-56ATT: DIONE OLIVEIRA MOURA           2022ND005390MEMO.058/2022/FAC                   PROT:11010103{SM6672/2022(64889,00)}MATERIAL DE PERMANENTE - PEDIDO:6672/2022 - PREG:202/2022  EQUIPAMENTOS TIC - MICROCOMPUTADOR TIPO AVANÇADO",3141,EQUIPAMENTOS E MATERIAL PERMANENTE,DATEN TECNOLOGIA LTDA,null,UNIVERSIDADE DE BRASÍLIA,null,64889.00,ordinário,605
PRÓPRIOS -  PREST.SERVICOS FUB/FUNDO,83679.50,FISCAL,PR 202/2022 - UNB,2022,18/11/2022,CRÉDITOS DISTRIBUÍDOS PARA AS UNIDADES ACADÊMICAS,null,null,null,FUNCIONAMENTO DE INSTITUICOES FEDERAI - NO DF,23106.038751/2022-30,"C. CUSTO FAV PROT:11010105{SM6742/2022(83679,50)AQUISIÇÃO DE COMPUTADORESSEI: 23106.138370/2022-50  2022ND005214 PR: 202/2022",3134,EQUIPAMENTOS E MATERIAL PERMANENTE,DATEN TECNOLOGIA LTDA,null,UNIVERSIDADE DE BRASÍLIA,null,83679.50,ordinário,605
PRÓPRIOS -  PREST.SERVICOS FUB/FUNDO,43120.00,FISCAL,IN 20028/2022 - UNB,2022,18/11/2022,CRÉDITOS DISTRIBUÍDOS PARA AS UNIDADES ACADÊMICAS,null,null,null,FUNCIONAMENTO DE INSTITUICOES FEDERAI - NO DF,23106.067271/2022-24,"C.CUSTO:FCE// PRESTAÇÃO DE SERV P/ TESTE DE FUNCIONAMENTO E CALIBRAÇÃO DO CONJUNTOISOCINÉTICO BIODEX// PROT:110131(43120,00)// SEI N.23106.067271/2022-86// 2022ND003748",3132,SERV. PESSOA JURÍDICA,CARCI IND COM APARELHOS CIRURGICOS E ORTOPEDICOS LTDA,null,UNIVERSIDADE DE BRASÍLIA,null,43120.00,global,605
PRÓPRIOS -  PREST.SERVICOS FUB/FUNDO,1003.85,FISCAL,PR 28/2022 - UNB,2022,18/11/2022,CRÉDITOS DISTRIBUÍDOS PARA AS UNIDADES ACADÊMICAS,null,null,null,FUNCIONAMENTO DE INSTITUICOES FEDERAI - NO DF,23106.054309/2021-70,"C. CUSTO: FAV.    PROT:11010105{SM6582/2022(1003,85)}      SEI 23106.135369/2022-73.AQUISIÇÃO DE PURIFICADOR DE ÁGUA.2022ND005214.      MEMO FAV/DIR/57/2022.",3131,EQUIP. MATERIAL PERMANENTE,BSB CAPITAL SOLUCOES LTDA,null,UNIVERSIDADE DE BRASÍLIA,null,1003.85,ordinário,605
PRÓPRIOS -  PREST.SERVICOS FUB/FUNDO,15880.00,FISCAL,IN 20028/2022 - UNB,2022,18/11/2022,CRÉDITOS DISTRIBUÍDOS PARA AS UNIDADES ACADÊMICAS,null,null,null,FUNCIONAMENTO DE INSTITUICOES FEDERAI - NO DF,23106.067271/2022-24,"C.CUSTO:FCE// AQUISIÇÃO DE ITENS PARA TESTE DE FUNCIONAMENTO E CALIBRAÇÃO DO CONJUNTOISOCINÉTICO BIODEX//PROT:110131(15880,00)// SEI N.23106.067271/2022-86// 2022ND005224",3130,MAT. CONSUMO,CARCI IND COM APARELHOS CIRURGICOS E ORTOPEDICOS LTDA,null,UNIVERSIDADE DE BRASÍLIA,null,15880.00,global,605
PRÓPRIOS -  PREST.SERVICOS FUB/FUNDO,1440.00,FISCAL,DL 10032/2022 - UNB,2022,18/11/2022,CRÉDITOS DISTRIBUÍDOS PARA AS UNIDADES ADMINISTRATIVAS,null,null,null,FUNCIONAMENTO DE INSTITUICOES FEDERAI - NO DF,23106.128172/2022-41,"C.CUSTO:SECOM// AQUISIÇÃO DE TROFÉUS E BOTONS/PINS// MEMO N.128/2022/SECOMPROT:110111(1440,00)// SEI N.23106.128172/2022-88// DISPENSA N.10032/2022",3129,MAT. CONSUMO,ARTE FINA ESPORTIVOS BRASIL LTDA - ME,null,UNIVERSIDADE DE BRASÍLIA,null,1440.00,global,605
PRÓPRIOS -  PREST.SERVICOS FUB/FUNDO,1192.50,FISCAL,DL 10032/2022 - UNB,2022,18/11/2022,CRÉDITOS DISTRIBUÍDOS PARA AS UNIDADES ADMINISTRATIVAS,null,null,null,FUNCIONAMENTO DE INSTITUICOES FEDERAI - NO DF,23106.128172/2022-41,"C.CUSTO:SECOM// AQUISIÇÃO DE TROFÉUS E BOTONS/PINS// MEMO N.128/2022/SECOMPROT:110111(1192,50)// SEI N.23106.128172/2022-88// DISPENSA N.10032/2022",3128,MAT. CONSUMO,FORTUNE COMUNICACAO E SERVICOS LTDA - ME,null,UNIVERSIDADE DE BRASÍLIA,null,1192.50,global,605
RECURSOS ORDINÁRIOS,50302.35,FISCAL,PR,2022,17/11/2022,SERVIÇO IMPRESSÃO CORPORATIVA - UNIDADES. EMPRESA SIMPRESS.,null,null,null,FUNCIONAMENTO DE INSTITUICOES FEDERAI - NO DF,23106.128651/2022-02,"C. CUSTO CPD PROT:110114(50302,35)PAGAMENTO DA NOTA FISCAL 174441 DA SIMPRESSCOMÉRCIO, LOCAÇÃO E SERVIÇOS LTDA. AGOSTO/2022.CONTRATO 512/2021 SEI: 23106.128651/2022-02 2022ND005335",3125,SERV. PESSOA JURÍDICA,"SIMPRESS COMERCIO, LOCACAO E SERVICOS S/A",null,UNIVERSIDADE DE BRASÍLIA,null,50302.35,global,605
RECURSOS ORDINÁRIOS,46544.94,FISCAL,PR,2022,17/11/2022,EMENDAS PARLAMENTARES,null,null,null,REESTRUTURAÇÃO E MODERNIZAÇÃO DAS INSTITUIÇÕES - EMENDA,23106.026013/2022-40,"C. CUSTO DAC PROT:110109(46544,94)EMENDA DE BANCADA Nº 71080011 (PARCELA À ASSISTÊNCIAESTUDANTIL). CRÉDITO PARA MANUTENÇÃO DO PRÉDIO DAPÓS-GRADUAÇÃO. CONTRATO 1223/2022 23106.026013/2022-40 2022ND005336",3124,SERV. PESSOA JURÍDICA,CONSTRUTORA ENGEMEGA LTDA,null,UNIVERSIDADE DE BRASÍLIA,null,46544.94,global,605
RECURSOS DIRETAM.ARREC FUNDAÇÃO UNIV.BRASÍLIA,8594.00,FISCAL,PR 202/2022 - UNB,2022,17/11/2022,FUNCIONAMENTO GERAL,null,null,null,FUNCIONAMENTO DE INSTITUICOES FEDERAI - NO DF,23106.038751/2022-30,"C. CUSTO SEMA PROT:110146(8594,00) REQ: 6675/2022MICROCOMPUTADOR, TIPO, PADRÃO PR: 202/2022SEI: 23106.136802/2022-98 2022ND005325",3123,EQUIPAMENTOS E MATERIAL PERMANENTE,DATEN TECNOLOGIA LTDA,null,UNIVERSIDADE DE BRASÍLIA,null,8594.00,ordinário,605
RECURSOS DIRETAM.ARREC FUNDAÇÃO UNIV.BRASÍLIA,24000.00,FISCAL,PR 318/2020 - UNB,2022,17/11/2022,CUSTOS INDIRETOS DAS UNIDADES - RECOMPOSICAO,null,null,null,FUNCIONAMENTO DE INSTITUICOES FEDERAI - NO DF,23106.131799/2022-16,"C. CUSTO: FUP                         SEI: 23106.135620/2022-08ATT: REINALDO JOSE DE MIRANDA FILHO   2022ND005320MEMO.S.N/2022/FUP/GCF                 PROT:110129(24000,00)MATERIAL DE PERMANENTE - PEDIDO:0000/2022 -   PREG:318/2020EQUIPAMENTOS TIC - NOBREAK (UPS) ONLINE MONOFÁSICO DE 6 KVA",3119,EQUIP. MATERIAL PERMANENTE,FONTES BH SISTEMAS DE ENERGIA EIRELI,null,UNIVERSIDADE DE BRASÍLIA,null,24000.00,global,605
RECURSOS DIRETAM.ARREC FUNDAÇÃO UNIV.BRASÍLIA,36000.00,FISCAL,PR 318/2020 - UNB,2022,17/11/2022,CUSTOS INDIRETOS DAS UNIDADES - RECOMPOSICAO,null,null,null,FUNCIONAMENTO DE INSTITUICOES FEDERAI - NO DF,23106.131799/2022-16,"C. CUSTO: FUP                         SEI: 23106.135620/2022-08ATT: REINALDO JOSE DE MIRANDA FILHO   2022ND005320MEMO.S.N/2022/FUP/GCF                 PROT:110129(36000,00)MATERIAL DE PERMANENTE - PEDIDO:0000/2022 -   PREG:318/2020EQUIPAMENTOS TIC - NOBREAK (UPS) INTERATIVO SENOIDAL¿ DE 1,4 KVA",3117,EQUIP. MATERIAL PERMANENTE,TECSOLUTI COMERCIO E SOLUCOES LTDA,null,UNIVERSIDADE DE BRASÍLIA,null,36000.00,global,605
PRÓPRIOS -  PREST.SERVICOS FUB/FUNDO,3794.40,FISCAL,PR 1/2021 - UNB,2022,17/11/2022,CRÉDITOS DISTRIBUÍDOS PARA AS UNIDADES ACADÊMICAS,null,null,null,FUNCIONAMENTO DE INSTITUICOES FEDERAI - NO DF,23106.135729/2022-37,"C.CUSTO:IB// COFFE BREAK CERIMONIA OUTORGA DE TÍTULO DE PROFESSOR EMÉRITA// DESPACHO IB / CEL (8951938)PROT:11010112(3794,40)//SEI N.23106.135729/2022-37// 2022ND005322",3115,SERV. PESSOA JURÍDICA,ISM GOMES DE MATTOS EIRELI,null,UNIVERSIDADE DE BRASÍLIA,null,3794.40,global,605
PRÓPRIOS -  PREST.SERVICOS FUB/FUNDO,57.00,FISCAL,PR 201/2022 - UNB,2022,17/11/2022,CRÉDITOS DISTRIBUÍDOS PARA AS UNIDADES ACADÊMICAS,null,null,null,FUNCIONAMENTO DE INSTITUICOES FEDERAI - NO DF,23106.074895/2020-98,"C. CUSTO: IB.     PROT:11010112{SM6181/2022(57,00)}       SEI 23106.124842/2022-97.AQUISIÇÃO DE FONE DE OUVIDO HEADSET.   2022ND005299.       DESPACHO IB/CFS 8845825.     PREGÃO 201/2022.",3114,MAT. CONSUMO,RF PRODUCOES ARTISTICAS LTDA,null,UNIVERSIDADE DE BRASÍLIA,null,57.00,ordinário,605
PRÓPRIOS -  PREST.SERVICOS FUB/FUNDO,8594.00,FISCAL,PR 202/2022 - UNB,2022,17/11/2022,CRÉDITOS DISTRIBUÍDOS PARA AS UNIDADES ACADÊMICAS,null,null,null,FUNCIONAMENTO DE INSTITUICOES FEDERAI - NO DF,23106.038751/2022-30,"C. CUSTO: IBD                            SEI: 23106.135620/2022-08ATT: JULIANA VIEIRA FLORES SALES         2022ND000000MEMO.S.N/2022/IB/COMPRAS                 PROT:11010112{SM6605/2022(8594,00)}MATERIAL DE PERMANENTE - PEDIDO:6605/2022 -   PREG:202/2022  EQUIPAMENTOS TIC - MICROCOMPUTADOR TIPO PADRÃO",3113,EQUIPAMENTOS E MATERIAL PERMANENTE,DATEN TECNOLOGIA LTDA,null,UNIVERSIDADE DE BRASÍLIA,null,8594.00,ordinário,605
PRÓPRIOS -  PREST.SERVICOS FUB/FUNDO,68.50,FISCAL,PR 201/2022 - UNB,2022,17/11/2022,CRÉDITOS DISTRIBUÍDOS PARA AS UNIDADES ACADÊMICAS,null,null,null,FUNCIONAMENTO DE INSTITUICOES FEDERAI - NO DF,23106.074895/2020-98,"C. CUSTO: IB.     PROT:11010112{SM6180/2022(68,50)}       SEI 23106.124842/2022-97.AQUISIÇÃO DE WEBCAM.2022ND005299.       DESPACHO IB/CFS 8845825.     PREGÃO 201/2022.",3112,MAT. CONSUMO,MAXICOMP COMERCIO DE PRODUTOS DE INFORMATICA EIRELI,null,UNIVERSIDADE DE BRASÍLIA,null,68.50,ordinário,605
PRÓPRIOS -  PREST.SERVICOS FUB/FUNDO,95.97,FISCAL,PR 1/2022 - UNB,2022,17/11/2022,CRÉDITOS DISTRIBUÍDOS PARA AS UNIDADES ACADÊMICAS,null,null,null,FUNCIONAMENTO DE INSTITUICOES FEDERAI - NO DF,23106.119475/2021-29,"C. CUSTO: IB.     PROT:11010112{SM6163/2022(95,97)}       SEI 23106.124842/2022-97.AQUISIÇÃO DE MATERIAL DE COPA E COZINHA.  2022ND005299.       DESPACHO IB/CFS 8845825.     PREGÃO 1/2022.",3111,MAT. CONSUMO,NOVA MESA DISTRIBUIDORA DE ALIMENTOS E UTILIDADES LTDA,null,UNIVERSIDADE DE BRASÍLIA,null,95.97,ordinário,605
RECURSOS ORDINÁRIOS,6433.50,FISCAL,PR 40/2022 - UNB,2022,17/11/2022,MATRIZ HVET_,null,null,null,20RK - FUNCIONAMENTO DOS HOSPITAL VETERINARIOS,23106.082731/2022-04,"C.CUSTO: HVET - AT - FABIO HENRIQUE BEZERRA - PROT:1101010501{SM6645/2022(6433,50)}         MATERIAL DE CONSUMO - PEDIDO:6645/2022 - 2022ND005298 - PREG:040/2022ALIMENTAÇÃO  PARA ANIMAIS  - RAÇÃO  EXTRUSADA  ANIMAL -  EQUINOMEMO.S.N/2022/FAV/HVET/HVETINHO  -  S.E.I 23106.129390/2022-30",3110,MAT. CONSUMO,D PRONTO NUTRIÇÃO ANIMAL E PRODUTOS VETERINÁRIOS LTDA,null,UNIVERSIDADE DE BRASÍLIA,null,6433.50,ordinário,605
PRÓPRIOS -  PREST.SERVICOS FUB/FUNDO,93.70,FISCAL,PR 1/2022 - UNB,2022,17/11/2022,CRÉDITOS DISTRIBUÍDOS PARA AS UNIDADES ACADÊMICAS,null,null,null,FUNCIONAMENTO DE INSTITUICOES FEDERAI - NO DF,23106.119475/2021-29,"C. CUSTO: IB.     PROT:11010112{SM6164/2022(93,70)}       SEI 23106.124842/2022-97.AQUISIÇÃO DE BATERIA 9V.2022ND005299.       DESPACHO IB/CFS 8845825.     PREGÃO 1/2022.",3109,MAT. CONSUMO,RAFA PAPER DISTRIBUIDORA EIRELI,null,UNIVERSIDADE DE BRASÍLIA,null,93.70,ordinário,605
RECURSOS ORDINÁRIOS,33100.00,FISCAL,PR 40/2022 - UNB,2022,17/11/2022,MATRIZ HVET_,null,null,null,20RK - FUNCIONAMENTO DOS HOSPITAL VETERINARIOS,23106.082731/2022-04,"C.CUSTO: HVET - AT - FABIO HENRIQUE BEZERRA - PROT:1101010501{SM6644/2022(33100,00)}         MATERIAL DE CONSUMO - PEDIDO:6644/2022 - 2022ND005298 - PREG:040/2022ALIMENTO P/ ANIMAIS E SEMENTES E PLANTAS E INSUMOS - FENO E SERRAGEM MARAVALHAMEMO.S.N/2022/FAV/HVET/HVETINHO  -  S.E.I 23106.129390/2022-30",3108,MAT. CONSUMO,AGROVERDE COMERCIO DE PRODUTOS AGROPECUARIOS LTDA,null,UNIVERSIDADE DE BRASÍLIA,null,33100.00,ordinário,605
PRÓPRIOS -  PREST.SERVICOS FUB/FUNDO,36.10,FISCAL,PR 1/2022 - UNB,2022,17/11/2022,CRÉDITOS DISTRIBUÍDOS PARA AS UNIDADES ACADÊMICAS,null,null,null,FUNCIONAMENTO DE INSTITUICOES FEDERAI - NO DF,23106.119475/2021-29,"C. CUSTO: IB.     PROT:11010112{SM6165/2022(36,10)}       SEI 23106.124842/2022-97.AQUISIÇÃO DE MATERIAL DE COPA E COZINHA.2022ND005299.       DESPACHO IB/CFS 8845825.     PREGÃO 1/2022.",3107,MAT. CONSUMO,M.Z.A.S SUPERMERCADO EIRELI,null,UNIVERSIDADE DE BRASÍLIA,null,36.10,ordinário,605
PRÓPRIOS -  PREST.SERVICOS FUB/FUNDO,25.78,FISCAL,PR 1/2022 - UNB,2022,17/11/2022,CRÉDITOS DISTRIBUÍDOS PARA AS UNIDADES ACADÊMICAS,null,null,null,FUNCIONAMENTO DE INSTITUICOES FEDERAI - NO DF,23106.119475/2021-29,"C. CUSTO: IB.     PROT:11010112{SM6166/2022(25,78)}       SEI 23106.124842/2022-97.AQUISIÇÃO DE MOUSE PAD.2022ND005299.       DESPACHO IB/CFS 8845825.     PREGÃO 1/2022.",3106,MAT. CONSUMO,DARLU INDUSTRIA TEXTIL LTDA,null,UNIVERSIDADE DE BRASÍLIA,null,25.78,ordinário,605
PRÓPRIOS -  PREST.SERVICOS FUB/FUNDO,66.30,FISCAL,PR 1/2022 - UNB,2022,17/11/2022,CRÉDITOS DISTRIBUÍDOS PARA AS UNIDADES ACADÊMICAS,null,null,null,FUNCIONAMENTO DE INSTITUICOES FEDERAI - NO DF,23106.119475/2021-29,"C. CUSTO: IB.     PROT:11010112{SM6168/2022(66,30)}       SEI 23106.124842/2022-97.AQUISIÇÃO DE PILHA.2022ND005299.       DESPACHO IB/CFS 8845825.     PREGÃO 1/2022.",3105,MAT. CONSUMO,RRA COMERCIO ELETRO-FONIA LTDA,null,UNIVERSIDADE DE BRASÍLIA,null,66.30,ordinário,605
PRÓPRIOS -  PREST.SERVICOS FUB/FUNDO,980.00,FISCAL,PR 38/2022 - UNB,2022,17/11/2022,CRÉDITOS DISTRIBUÍDOS PARA AS UNIDADES ACADÊMICAS,null,null,null,FUNCIONAMENTO DE INSTITUICOES FEDERAI - NO DF,23106.053722/2022-06,"C.CUSTO:FAL// AQUISIÇÃO DE PRODUTOS PREGÃO 38/2022// MEMO N.113/2022/FAL// REQ. 6641/2022PROT:11010105(980,00)// SEI N.23106.135321/2022-65",3104,MAT. CONSUMO,NUTRINI COMERCIO E DISTRIBUICAO DE PRODUTOS AGROPECUARIOS LTDA,null,UNIVERSIDADE DE BRASÍLIA,null,980.00,ordinário,605
PRÓPRIOS -  PREST.SERVICOS FUB/FUNDO,45830.05,FISCAL,PR 38/2022 - UNB,2022,17/11/2022,CRÉDITOS DISTRIBUÍDOS PARA AS UNIDADES ACADÊMICAS,null,null,null,FUNCIONAMENTO DE INSTITUICOES FEDERAI - NO DF,23106.053722/2022-06,"C.CUSTO:FAL// AQUISIÇÃO DE PRODUTOS PREGÃO 38/2022// MEMO N.113/2022/FAL// REQ. 6640/2022PROT:11010105(45830,05)// SEI N.23106.135321/2022-65",3103,MAT. CONSUMO,AGROBELIA - INSUMOS AGRICOLAS LTA,null,UNIVERSIDADE DE BRASÍLIA,null,45830.05,ordinário,605
PRÓPRIOS -  PREST.SERVICOS FUB/FUNDO,11782.08,FISCAL,PR 38/2022 - UNB,2022,17/11/2022,CRÉDITOS DISTRIBUÍDOS PARA AS UNIDADES ACADÊMICAS,null,null,null,FUNCIONAMENTO DE INSTITUICOES FEDERAI - NO DF,23106.053722/2022-06,"C.CUSTO:FAL// AQUISIÇÃO DE PRODUTOS PREGÃO 38/2022// MEMO N.113/2022/FAL// REQ. 6643/2022PROT:11010105(11782,08)// SEI N.23106.135321/2022-65",3102,MAT. CONSUMO,GRANDES MARCAS DE MATERIAIS E EQUIPAMENTOS EIRELI - ME,null,UNIVERSIDADE DE BRASÍLIA,null,11782.08,ordinário,605
PRÓPRIOS -  PREST.SERVICOS FUB/FUNDO,12124.81,FISCAL,PR 38/2022 - UNB,2022,17/11/2022,CRÉDITOS DISTRIBUÍDOS PARA AS UNIDADES ACADÊMICAS,null,null,null,FUNCIONAMENTO DE INSTITUICOES FEDERAI - NO DF,23106.053722/2022-06,"C.CUSTO:FAL// AQUISIÇÃO DE PRODUTOS PREGÃO 38/2022// MEMO N.113/2022/FAL// REQ. 6642/2022PROT:11010105(12124,81)// SEI N.23106.135321/2022-65",3101,MAT. CONSUMO,ALMIX COMERCIO DE SUPRIMENTOS LTDA-EPP,null,UNIVERSIDADE DE BRASÍLIA,null,12124.81,ordinário,605
RECURSOS PRÓPRIOSS,1735194.00,FISCAL,PR 33/2022 - UNB,2022,17/11/2022,PORTARIA,null,null,null,FUNCIONAMENTO DE INSTITUICOES FEDERAI - NO DF,23106.121104/2022-98,"C. CUSTO DTER PROT:11011007(1735194,00) PR 33/2022PRESTAÇÃO DE SERVIÇOS DE APOIO ADMINISTRATIVO - PORTARIASEI: 23106.121104/2022-98 2022ND005248",3100,LOC. MÃO-DE-OBRA,G&E SERVIÇOS TERCEIRIZADOS LTDA,null,UNIVERSIDADE DE BRASÍLIA,null,1735194.00,global,605
RECURSOS ORDINÁRIOS,10696.00,FISCAL,PR 30/2022 - UNB,2022,16/11/2022,REPOSIÇÃO DE MATERIAL DO ALMOXARIFADO,null,null,null,FUNCIONAMENTO DE INSTITUICOES FEDERAI - NO DF,23106.053398/2022-18,"C. CUSTO: ALM.       PROT:1101100601{SM6395/2022(10696,00)}       SEI 23106.130641/2022-29.AQUISIÇÃO DE MATERIAL DE EXPEDIENTE.2022ND005187.        MEMO 36/ALM (8902351).      PREGÃO 30/2022.",3084,MAT. CONSUMO,ALEGRENSE DISTRIBUIDORA E REPRESENTACAO COMERCIAL LTDA,null,UNIVERSIDADE DE BRASÍLIA,null,10696.00,ordinário,605
RECURSOS ORDINÁRIOS,797.00,FISCAL,PR 30/2022 - UNB,2022,16/11/2022,REPOSIÇÃO DE MATERIAL DO ALMOXARIFADO,null,null,null,FUNCIONAMENTO DE INSTITUICOES FEDERAI - NO DF,23106.053398/2022-18,"C. CUSTO: ALM.       PROT:1101100601{SM6393/2022(797,00)}       SEI 23106.130641/2022-29.AQUISIÇÃO DE MATERIAL DE EXPEDIENTE.2022ND005187.        MEMO 36/ALM (8902351).      PREGÃO 30/2022.",3082,MAT. CONSUMO,PRATICO COMERCIO LTDA,null,UNIVERSIDADE DE BRASÍLIA,null,797.00,ordinário,605
RECURSOS ORDINÁRIOS,3292.50,FISCAL,PR 30/2022 - UNB,2022,16/11/2022,REPOSIÇÃO DE MATERIAL DO ALMOXARIFADO,null,null,null,FUNCIONAMENTO DE INSTITUICOES FEDERAI - NO DF,23106.053398/2022-18,"C. CUSTO: ALM.       PROT:1101100601{SM6391/2022(3292,50)}       SEI 23106.130641/2022-29.AQUISIÇÃO DE MATERIAL DE EXPEDIENTE.2022ND005187.        MEMO 36/ALM (8902351).      PREGÃO 30/2022.",3081,MAT. CONSUMO,RAFA PAPER DISTRIBUIDORA EIRELI,null,UNIVERSIDADE DE BRASÍLIA,null,3292.50,ordinário,605
RECURSOS ORDINÁRIOS,832.50,FISCAL,PR 30/2022 - UNB,2022,16/11/2022,REPOSIÇÃO DE MATERIAL DO ALMOXARIFADO,null,null,null,FUNCIONAMENTO DE INSTITUICOES FEDERAI - NO DF,23106.053398/2022-18,"C. CUSTO: ALM.       PROT:1101100601{SM6389/2022(832,50)}       SEI 23106.130641/2022-29.   AQUISIÇÃO DE MATERIAL DE EXPEDIENTE.2022ND005187.        MEMO 36/ALM (8902351).      PREGÃO 30/2022.",3080,MAT. CONSUMO,BOING COMERCIO ATACADISTA DE MATERIAIS LTDA,null,UNIVERSIDADE DE BRASÍLIA,null,832.50,ordinário,605
RECURSOS ORDINÁRIOS,216.00,FISCAL,PR 30/2022 - UNB,2022,16/11/2022,REPOSIÇÃO DE MATERIAL DO ALMOXARIFADO,null,null,null,FUNCIONAMENTO DE INSTITUICOES FEDERAI - NO DF,23106.053398/2022-18,"C. CUSTO: ALM.       PROT:1101100601{SM6388/2022(216,00)}       SEI 23106.130641/2022-29.   AQUISIÇÃO DE MATERIAL DE EXPEDIENTE.2022ND005187.        MEMO 36/ALM (8902351).      PREGÃO 30/2022.",3079,MAT. CONSUMO,LER - LIVRARIA E PAPELARIA LTDA,null,UNIVERSIDADE DE BRASÍLIA,null,216.00,ordinário,605
RECURSOS ORDINÁRIOS,6460.00,FISCAL,PR 30/2022 - UNB,2022,16/11/2022,REPOSIÇÃO DE MATERIAL DO ALMOXARIFADO,null,null,null,FUNCIONAMENTO DE INSTITUICOES FEDERAI - NO DF,23106.053398/2022-18,"C. CUSTO: ALM.       PROT:1101100601{SM6387/2022(6460,00)}       SEI 23106.130641/2022-29.   AQUISIÇÃO DE MATERIAL DE EXPEDIENTE.2022ND005187.        MEMO 36/ALM (8902351).      PREGÃO 30/2022.",3077,MAT. CONSUMO,RC RAMOS COMERCIO LTDA - EPP,null,UNIVERSIDADE DE BRASÍLIA,null,6460.00,ordinário,605
PRÓPRIOS -  PREST.SERVICOS FUB/FUNDO,375.00,FISCAL,PR 23/2022 - UNB,2022,16/11/2022,CRÉDITOS DISTRIBUÍDOS PARA AS UNIDADES ACADÊMICAS,null,null,null,FUNCIONAMENTO DE INSTITUICOES FEDERAI - NO DF,23106.031609/2022-61,"C. CUSTO: IDA.       PROT:11010114{SM6527/2022(375,00)}       SEI 23106.134032/2022-49.  AQUISIÇÃO DE GARRAFA TÉRMICA.2022ND005251.        MEMO 75/2022/IDA/VIS.",3075,MAT. CONSUMO,CDV COMERCIAL DE ALIMENTOS EIRELI,null,UNIVERSIDADE DE BRASÍLIA,null,375.00,ordinário,605
PRÓPRIOS -  PREST.SERVICOS FUB/FUNDO,132.60,FISCAL,PR 1/2022 - UNB,2022,16/11/2022,CRÉDITOS DISTRIBUÍDOS PARA AS UNIDADES ACADÊMICAS,null,null,null,FUNCIONAMENTO DE INSTITUICOES FEDERAI - NO DF,23106.119475/2021-29,"C. CUSTO: IDA.      PROT:11010114{SM6533/2022(132,60)}      SEI 23106.134144/2022-08.AQUISIÇÃO DE PILHA ALCALINA.2022ND005253.         MEMO 76/2022/IDA/VIS.",3069,MAT. CONSUMO,RRA COMERCIO ELETRO-FONIA LTDA,null,UNIVERSIDADE DE BRASÍLIA,null,132.60,ordinário,605
PRÓPRIOS -  PREST.SERVICOS FUB/FUNDO,922.62,FISCAL,PR 1/2022 - UNB,2022,16/11/2022,CRÉDITOS DISTRIBUÍDOS PARA AS UNIDADES ACADÊMICAS,null,null,null,FUNCIONAMENTO DE INSTITUICOES FEDERAI - NO DF,23106.119475/2021-29,"C. CUSTO: IDA.      PROT:11010114{SM6532/2022(922,62)}      SEI 23106.134144/2022-08.AQUISIÇÃO DE MATERIAL DE COPA E COZINHA.2022ND005253.         MEMO 76/2022/IDA/VIS.",3068,MAT. CONSUMO,NOVA MESA DISTRIBUIDORA DE ALIMENTOS E UTILIDADES LTDA,null,UNIVERSIDADE DE BRASÍLIA,null,922.62,ordinário,605
PRÓPRIOS -  PREST.SERVICOS FUB/FUNDO,73.50,FISCAL,PR 1/2022 - UNB,2022,16/11/2022,CRÉDITOS DISTRIBUÍDOS PARA AS UNIDADES ACADÊMICAS,null,null,null,FUNCIONAMENTO DE INSTITUICOES FEDERAI - NO DF,23106.119475/2021-29,"C. CUSTO: IDA.      PROT:11010114{SM6531/2022(73,50)}      SEI 23106.134144/2022-08.AQUISIÇÃO DE MATERIAL DE COPA E COZINHA.2022ND005253.         MEMO 76/2022/IDA/VIS.",3067,MAT. CONSUMO,M.Z.A.S SUPERMERCADO EIRELI,null,UNIVERSIDADE DE BRASÍLIA,null,73.50,ordinário,605
PRÓPRIOS -  PREST.SERVICOS FUB/FUNDO,9454.30,FISCAL,PR 202/2022 - UNB,2022,16/11/2022,CRÉDITOS DISTRIBUÍDOS PARA AS UNIDADES ACADÊMICAS,null,null,null,FUNCIONAMENTO DE INSTITUICOES FEDERAI - NO DF,23106.038751/2022-30,"C.CUSTO:IREL// AQUISIÇÃO DE MICROCOMPUTADOR TIPO PADRAO// REQ. 6614/2022PROT:11010125(9454,30)// MEMORANDO 88 (8948912)// SEI N.23106.135381/2022-88",3066,EQUIPAMENTOS E MATERIAL PERMANENTE,B.DANIEL INFORMATICA,null,UNIVERSIDADE DE BRASÍLIA,null,9454.30,ordinário,605
PRÓPRIOS -  PREST.SERVICOS FUB/FUNDO,15.20,FISCAL,PR 1/2022 - UNB,2022,16/11/2022,CRÉDITOS DISTRIBUÍDOS PARA AS UNIDADES ACADÊMICAS,null,null,null,FUNCIONAMENTO DE INSTITUICOES FEDERAI - NO DF,23106.119475/2021-29,"C. CUSTO: IDA.      PROT:11010114{SM6530/2022(15,20)}      SEI 23106.134144/2022-08.AQUISIÇÃO DE MATERIAL DE COPA E COZINHA.2022ND005253.         MEMO 76/2022/IDA/VIS.",3065,MAT. CONSUMO,LPK LTDA,null,UNIVERSIDADE DE BRASÍLIA,null,15.20,ordinário,605
PRÓPRIOS -  PREST.SERVICOS FUB/FUNDO,8838.00,FISCAL,PR 202/2022 - UNB,2022,16/11/2022,CRÉDITOS DISTRIBUÍDOS PARA AS UNIDADES ACADÊMICAS,null,null,null,FUNCIONAMENTO DE INSTITUICOES FEDERAI - NO DF,23106.038751/2022-30,"C.CUSTO:IREL// AQUISIÇÃO DE NOTEBOOK TIPO PADRAO// REQ. 6613/2022PROT:11010125(8838,00)// MEMORANDO 88 (8948912)// SEI N.23106.135381/2022-88",3064,EQUIPAMENTOS E MATERIAL PERMANENTE,CENTERDATA ANALISES DE SISTEMAS E SERVICOS DE INFORMATICA EIRELI,null,UNIVERSIDADE DE BRASÍLIA,null,8838.00,ordinário,605
PRÓPRIOS -  PREST.SERVICOS FUB/FUNDO,51.68,FISCAL,PR 1/2022 - UNB,2022,16/11/2022,CRÉDITOS DISTRIBUÍDOS PARA AS UNIDADES ACADÊMICAS,null,null,null,FUNCIONAMENTO DE INSTITUICOES FEDERAI - NO DF,23106.119475/2021-29,"C. CUSTO: IDA.      PROT:11010114{SM6529/2022(51,68)}      SEI 23106.134144/2022-08.AQUISIÇÃO DE PILHA ALCALINA.2022ND005253.         MEMO 76/2022/IDA/VIS.",3063,MAT. CONSUMO,JANETE MARIA CHAVES BRANDAO 04957560595,null,UNIVERSIDADE DE BRASÍLIA,null,51.68,ordinário,605
PRÓPRIOS -  PREST.SERVICOS FUB/FUNDO,1500.00,FISCAL,PR,2022,16/11/2022,CRÉDITOS DISTRIBUÍDOS PARA AS UNIDADES ACADÊMICAS,null,null,null,FUNCIONAMENTO DE INSTITUICOES FEDERAI - NO DF,23106.126010/2022-13,"C.CUSTO:FSD// SEGURO VIAGEM// MEMORANDO 001 (8859020)PROT:11010110(1500,00)// 2022ND05269// SEI N.23106.126010/2022-13",3062,SERV. PESSOA JURÍDICA,VOETUR TURISMO E REPRESENTACOES LTDA,null,UNIVERSIDADE DE BRASÍLIA,null,1500.00,global,605
PRÓPRIOS -  PREST.SERVICOS FUB/FUNDO,20000.00,FISCAL,PR,2022,16/11/2022,CRÉDITOS DISTRIBUÍDOS PARA AS UNIDADES ACADÊMICAS,null,null,null,FUNCIONAMENTO DE INSTITUICOES FEDERAI - NO DF,23106.126010/2022-13,"C.CUSTO:FSD// PASSAGEM INTERNACIONAL// MEMORANDO 001 (8859020)PROT:11010110(20000,00)// 2022ND05269// SEI N.23106.126010/2022-13",3061,PASSAGENS,VOETUR TURISMO E REPRESENTACOES LTDA,null,UNIVERSIDADE DE BRASÍLIA,null,20000.00,global,605
PRÓPRIOS -  PREST.SERVICOS FUB/FUNDO,55.00,FISCAL,PR 1/2022 - UNB,2022,16/11/2022,CRÉDITOS DISTRIBUÍDOS PARA AS UNIDADES ACADÊMICAS,null,null,null,FUNCIONAMENTO DE INSTITUICOES FEDERAI - NO DF,23106.119475/2021-29,"C. CUSTO: IDA.      PROT:11010114{SM6528/2022(55,00)}      SEI 23106.134144/2022-08.AQUISIÇÃO DE MATERIAL DE COPA E COZINHA.2022ND005253.         MEMO 76/2022/IDA/VIS.",3060,MAT. CONSUMO,G B LEITE COMERCIO E MERCEARIA,null,UNIVERSIDADE DE BRASÍLIA,null,55.00,ordinário,605
RECURSOS PRÓPRIOSSS,102083.00,FISCAL,PR 1/2021 - UNB,2022,16/11/2022,ALIMENTACAO,null,null,null,FUNCIONAMENTO DE INSTITUICOES FEDERAI - NO DF,23106.121104/2022-98,"C. CUSTO DRU PROT:11010903(102083,00) CONTRATO 31/2021FORNECIMENTO DE ALIMENTAÇÃO NO RU. ISMSEI: 23106.121104/2022-98  2022ND005249 PR: 01/2021",3058,SERV. PESSOA JURÍDICA,ISM GOMES DE MATTOS EIRELI,null,UNIVERSIDADE DE BRASÍLIA,null,102083.00,global,605
RECURSOS PRÓPRIOSS,2152058.00,FISCAL,RDC 2/2021 - UNB,2022,16/11/2022,OBRA DE CONSTRUÇÃO DO CENTRO DE BIOTECNOLOGIA MOLECULAR - CBIOTECH,null,null,null,FUNCIONAMENTO DE INSTITUICOES FEDERAI - NO DF,23106.121104/2022-98,"C. CUSTO: INFRA. PROT:110137(2152058,00) SEI 23106.121104/2022-98.OBRA DE CONSTRUÇÃO DO CENTRO DE BIOTECNOLOGIA MOLECULARCBIOTECH. 2022ND005247 RDC: 02/2021 ID-CIPI: 5565.53-30",3054,OBRAS E INSTALAÇÕES,D & M CONSTRUTORA LTDA - EPP,null,UNIVERSIDADE DE BRASÍLIA,null,2152058.00,global,605
RECURSOS PRÓPRIOSS,1735194.00,FISCAL,PR,2022,16/11/2022,PORTARIA,null,null,null,FUNCIONAMENTO DE INSTITUICOES FEDERAI - NO DF,23106.121104/2022-98,"C. CUSTO DTER PROT:11011007(1735194,00) CONTRATO Nº 212/2020 PRESTAÇÃO DE SERVIÇOS DE APOIO ADMINISTRATIVO - PORTARIASEI: 23106.121104/2022-98 2022ND005248",3053,LOC. MÃO-DE-OBRA,SERVITIUM EIRELI,null,UNIVERSIDADE DE BRASÍLIA,null,1735194.00,global,605
PRÓPRIOS -  PREST.SERVICOS FUB/FUNDO,40000.00,FISCAL,PR,2022,16/11/2022,CRÉDITOS DISTRIBUÍDOS PARA AS UNIDADES ADMINISTRATIVAS,null,null,null,FUNCIONAMENTO DE INSTITUICOES FEDERAI - NO DF,23106.127833/2022-58,"C. CUSTO: EDU                       S.E.I:23106.127833/2022-58SERV.DE TERCEIROS                   PROT:110903(40000,00)MEMO.048/2022/EDU/DIR               2022ND005147 - CONTRATO:1210/2021 SERVIÇOS GRÁFICOS E EDITORIAIS - IMPRESSÃO DE LIVROS E ANUAIS EM PAPEL COUCHÉ",3049,SERV. PESSOA JURÍDICA,TAVARES & TAVARES EMPREENDIMENTOS COMERCIAIS LTDA - ME,null,UNIVERSIDADE DE BRASÍLIA,null,40000.00,global,605
RECURSOS ORDINÁRIOS,7200.00,FISCAL,IN 20036/2022 - UNB,2022,16/11/2022,CAPACITAÇÃO DE SERVIDORES,null,null,null,CAPACITACAO DE SERVIDORES PUBLICOS FE - NO DI,23106.097276/2022-33,"C. CUSTO DGP PROT:110134(7200,00)PASSAGEM NACIONAL SERVIDORESSEI: 23106.097276/2022-33 2022ND005259",3047,PASSAGENS,VOETUR TURISMO E REPRESENTACOES LTDA,null,UNIVERSIDADE DE BRASÍLIA,null,7200.00,global,605
RECURSOS ORDINÁRIOS,15599.91,FISCAL,IN 20036/2022 - UNB,2022,16/11/2022,CAPACITAÇÃO DE SERVIDORES,null,null,null,CAPACITACAO DE SERVIDORES PUBLICOS FE - NO DI,23106.097276/2022-33,"C. CUSTO DGP PROT:110134(15599,91)INSCRIÇÃO DE 07(SETE) SERVIDORES PARA PARTICIPAR DA29 SEMANA NACIONAL DE LICITAÇÕES E CONTRATOS (SNLC):A LEI N 14.133/2021 EM FOCO INEX: 20036/2022SEI: 23106.097276/2022-33 2022ND005262",3046,SERV. PESSOA JURÍDICA,CONSULTRE CONSULTORIA E TREINAMENTO LTDA,null,UNIVERSIDADE DE BRASÍLIA,null,15599.91,global,605
PRÓPRIOS -  PREST.SERVICOS FUB/FUNDO,6100.00,FISCAL,IN 20036/2022 - UNB,2022,16/11/2022,CRÉDITOS DISTRIBUÍDOS PARA AS UNIDADES ADMINISTRATIVAS,null,null,null,FUNCIONAMENTO DE INSTITUICOES FEDERAI - NO DF,23106.097276/2022-33,"C. CUSTO DAF PROT:110110(6100,00)INSCRIÇÃO DE 07(SETE) SERVIDORES PARA PARTICIPAR DA29 SEMANA NACIONAL DE LICITAÇÕES E CONTRATOS (SNLC):A LEI N 14.133/2021 EM FOCO INEX: 20036/2022SEI: 23106.097276/2022-33 2022ND005260",3045,SERV. PESSOA JURÍDICA,CONSULTRE CONSULTORIA E TREINAMENTO LTDA,null,UNIVERSIDADE DE BRASÍLIA,null,6100.00,global,605
RECURSOS DIRETAM.ARREC FUNDAÇÃO UNIV.BRASÍLIA,237110.00,FISCAL,PR,2022,16/11/2022,SERV TEC ESPEC MANUT DE GRUPO GERADORES UNID,null,null,null,FUNCIONAMENTO DE INSTITUICOES FEDERAI - NO DF,23106.023215/2017-72,"C.CUSTO: PRC - PROT:110105(237110,00) 7 TERMO ADITIVO AO CONTRATO 664/2018COM A EMPRESA EFL SILVA MANUTENÇÃO DE NO-BREAKS E GERADORES-ME.2022ND004347 SEI: 23106.023215/2017-72",3044,SERV. PESSOA JURÍDICA,EFL SILVA MANUTENCAO DE NO-BREAKS E GERADORE,null,UNIVERSIDADE DE BRASÍLIA,null,237110.00,global,605
PRÓPRIOS -  PREST.SERVICOS FUB/FUNDO,1824.00,FISCAL,PR 201/2022 - UNB,2022,11/11/2022,CRÉDITOS DISTRIBUÍDOS PARA AS UNIDADES ACADÊMICAS,null,null,null,FUNCIONAMENTO DE INSTITUICOES FEDERAI - NO DF,23106.074895/2020-98,"C.CUSTO:IE  - AT- RICARDO RUVIARO - PROT:11010115{SM6632/2022(1824,00)}        MATERIAL DE CONSUMO - PEDIDO:6632/2022 - 2022ND005235 - PREG:201/2022MATERIAL TIC - MATERIAL DE CONSUMO - FONE OUVIDO -  TIPO HEADSET -  POTÊNCIA 100 (MÁXIMA) MMEMO.142/2022/IE/EST -  S.E.I 23106.125345/2022-14",3039,MAT. CONSUMO,RF PRODUCOES ARTISTICAS LTDA,null,UNIVERSIDADE DE BRASÍLIA,null,1824.00,ordinário,605
PRÓPRIOS -  PREST.SERVICOS FUB/FUNDO,1456.00,FISCAL,PR 201/2022 - UNB,2022,11/11/2022,CRÉDITOS DISTRIBUÍDOS PARA AS UNIDADES ACADÊMICAS,null,null,null,FUNCIONAMENTO DE INSTITUICOES FEDERAI - NO DF,23106.074895/2020-98,"C.CUSTO:IE  - AT- RICARDO RUVIARO - PROT:11010115{SM6631/2022(1456,00)}        MATERIAL DE CONSUMO - PEDIDO:6631/2022 - 2022ND005235 - PREG:201/2022MATERIAL TIC - MATERIAL DE CONSUMO - CÂMERA VIDEOCONFERÊNCIA - RESOLUÇÃO 1080 X 1920MEMO.142/2022/IE/EST -  S.E.I 23106.125345/2022-14",3038,MAT. CONSUMO,RESILIRE S F COMERCIO LTDA,null,UNIVERSIDADE DE BRASÍLIA,null,1456.00,ordinário,605
RECURSOS DIRETAM.ARREC FUNDAÇÃO UNIV.BRASÍLIA,25782.00,FISCAL,PR 202/2022 - UNB,2022,11/11/2022,FUNCIONAMENTO GERAL,null,null,null,FUNCIONAMENTO DE INSTITUICOES FEDERAI - NO DF,23106.038751/2022-30,"C. CUSTO: HVET                     SEI: 23106.135267/2022-58ATT: FABIO HENRIQUE BEZERRA        2022ND005210MEMO.S.N/2022/FAV/HVET/HVETINHO    PROT:1101010501{SM6655/2022(25977,70)}MATERIAL DE PERMANENTE - PEDIDO:6655/2022 -   PREG:202/2022  EQUIPAMENTOS TIC - COMPUTADORES - MICROCOMPUTADOR TIPO PADRÃO",3037,EQUIPAMENTOS E MATERIAL PERMANENTE,DATEN TECNOLOGIA LTDA,null,UNIVERSIDADE DE BRASÍLIA,null,25782.00,ordinário,605
PRÓPRIOS -  PREST.SERVICOS FUB/FUNDO,19466.70,FISCAL,PR 202/2022 - UNB,2022,11/11/2022,CRÉDITOS DISTRIBUÍDOS PARA AS UNIDADES ACADÊMICAS,null,null,null,FUNCIONAMENTO DE INSTITUICOES FEDERAI - NO DF,23106.038751/2022-30,"C. CUSTO: FAV.     PROT:11010105{SM6569/2022(19466,70)}        SEI 23106.135185/2022-11.AQUISIÇÃO DE MICROCOMPUTADOR.2022ND005214.      MEMO FAV/DIR/ 56/2022.",3034,EQUIPAMENTOS E MATERIAL PERMANENTE,DATEN TECNOLOGIA LTDA,null,UNIVERSIDADE DE BRASÍLIA,null,19466.70,ordinário,605
RECURSOS ORDINÁRIOS,8220.00,FISCAL,IN 20041/2022 - UNB,2022,11/11/2022,CAPACITAÇÃO DE SERVIDORES,null,null,null,CAPACITACAO DE SERVIDORES PUBLICOS FE - NO DI,23106.124020/2022-13,"C.CUSTO:DGP// PARTICIPAÇÃO EM EVENTO// MEMORANDO Nº 125/2022/DGP / DAPPROT:110134(8220,00)// 2022ND005132// SEI N.23106.124020/2022-14",3033,SERV. PESSOA JURÍDICA,IOC CAPACITACAO LTDA,null,UNIVERSIDADE DE BRASÍLIA,null,8220.00,global,605
RECURSOS ORDINÁRIOS,5300.00,FISCAL,PR 1/2022 - UNB,2022,11/11/2022,REPOSIÇÃO DE MATERIAL DO ALMOXARIFADO,null,null,null,FUNCIONAMENTO DE INSTITUICOES FEDERAI - NO DF,23106.119475/2021-29,"C.CUSTO:ALM - AT- ALEXANDRE PEIXOTO BEZERRA - PROT:1101100601{SM6383/2022(5300,00)}        MATERIAL DE CONSUMO - PEDIDO:6383/2022 - 2022ND005184 - PREG:001/2022MATERIAL DE COPA E COZINHA - MERGULHÃO ELÉTRICO - TAMANHO GRANDE - TENSÃO 220 VMEMO.033/2022/ALMOX  -  S.E.I 23106.130606/2022-18",3029,MAT. CONSUMO,ONE COMERCIAL LTDA,null,UNIVERSIDADE DE BRASÍLIA,null,5300.00,ordinário,605
PRÓPRIOS -  PREST.SERVICOS FUB/FUNDO,1897.20,FISCAL,PR 1/2021 - UNB,2022,11/11/2022,CRÉDITOS DISTRIBUÍDOS PARA AS UNIDADES ACADÊMICAS,null,null,null,FUNCIONAMENTO DE INSTITUICOES FEDERAI - NO DF,23106.133219/2022-25,"C. CUSTO: FACE                           SEI:23106.133219/2022-25ATT:SERGIO RICARDO MIRANDA NAZARÉ        2022ND005186MEMO.S.N/2022/FACE/CCA                   PROT:11010102(1897,20)SERVIÇOS DE TERCEIROS - PEDIDO:0000/2022 - CONTRATO: 031/2021FORNECIMENTO DE ALIMENTAÇÃO - FORNECIMENTO DE REFEIÇÕES -  COFFEE BREAK",3028,SERV. PESSOA JURÍDICA,ISM GOMES DE MATTOS EIRELI,null,UNIVERSIDADE DE BRASÍLIA,null,1897.20,global,605
PRÓPRIOS -  PREST.SERVICOS FUB/FUNDO,22500.00,FISCAL,PR 207/2021 - UNB,2022,10/11/2022,CRÉDITOS DISTRIBUÍDOS PARA AS UNIDADES ACADÊMICAS,null,null,null,FUNCIONAMENTO DE INSTITUICOES FEDERAI - NO DF,23106.079963/2020-13,"C. CUSTO: IPOL                     SEI:23106.132802/2022-19ATT: DANUSA MARQUES                2022ND005163MEMO.063/2022/IPOL / ORÇAMENTO     PROT:11010124{SM6360/2022(22500,00)}MATERIAL DE PERMANENTE - PEDIDO:6360/2022 -   PREG:207/2021  EQUIPAMENTOS TIC - TABLET - TELA 9.1 A 10 POL - MEMÓRIA RAM MÍNIMO 4 GB",3020,EQUIPAMENTOS E MATERIAL PERMANENTE,POLLIANA IOLANDA ASSUNCAO SILVA NUNES,null,UNIVERSIDADE DE BRASÍLIA,null,22500.00,ordinário,605
TED SIMEC 8323 - PROAP,1536.00,FISCAL,DL 10031/2022 - UNB,2022,10/11/2022,CAPES,null,null,null,TED SIMEC 8323 - PROAP,23106.111859/2022-15,"C.CUSTO:DPG// PUBLICAÇÃO DE ARTIGO CIENTIFICO // SEI N.23106.111859/2022-84PROT:11010806(1536,00)// 2022ND001482// TED CAPES 10790// TRANSF:697550",3017,SERV. PESSOA JURÍDICA,TIKINET ACADEMIC EIRELLI.,null,UNIVERSIDADE DE BRASÍLIA,null,1536.00,ordinário,605
PRÓPRIOS -  PREST.SERVICOS FUB/FUNDO,20000.00,FISCAL,PR 17/2020 - UNB,2022,10/11/2022,CRÉDITOS DISTRIBUÍDOS PARA AS UNIDADES ACADÊMICAS,null,null,null,FUNCIONAMENTO DE INSTITUICOES FEDERAI - NO DF,23106.132317/2022-45,"C. CUSTO: FAU.       PROT:11010114(20000,00)     SEI 23106.132317/2022-45.     SERVIÇOS GRÁFICOS.2022ND005192.         DESPACHO FAU/PPG 8918473.",3012,SERV. PESSOA JURÍDICA,TAVARES & TAVARES EMPREENDIMENTOS COMERCIAIS LTDA - ME,null,UNIVERSIDADE DE BRASÍLIA,null,20000.00,global,605
RECURSOS ORDINÁRIOS,3800.00,FISCAL,PR 18/2022 - UNB,2022,10/11/2022,MATRIZ HVET_,null,null,null,20RK - FUNCIONAMENTO DOS HOSPITAL VETERINARIOS,23106.132821/2022-45,"C. CUSTO: HVET.       PROT:1101010501(3800,00)     SEI 23106.132821/2022-45.AQUISIÇÃO DE FLUORESCEÍNA. 2022ND005189.      DESPACHO FAV/HVET/HVETINHO 8923744.",3011,MAT. CONSUMO,ORTHOFACOS PRODUTOS PARA ORTOPEDIA E OFTALMOLOGIA LTDA,null,UNIVERSIDADE DE BRASÍLIA,null,3800.00,global,605
PRÓPRIOS -  PREST.SERVICOS FUB/FUNDO,1928.04,FISCAL,PR 28/2022 - UNB,2022,10/11/2022,CRÉDITOS DISTRIBUÍDOS PARA AS UNIDADES ACADÊMICAS,null,null,null,FUNCIONAMENTO DE INSTITUICOES FEDERAI - NO DF,23106.054309/2021-70,"C. CUSTO: ICH.        PROT:11010118{SM6407/2022(1928,04)}        SEI 23106.130761/2022-26.AQUISIÇÃO DE VENTILADOR.2022ND005194.      DESPACHO ICH/FIL/PPGFIL 8903497.",3010,EQUIP. MATERIAL PERMANENTE,BSB CAPITAL SOLUCOES LTDA,null,UNIVERSIDADE DE BRASÍLIA,null,1928.04,ordinário,605
RECURSOS ORDINÁRIOS,3385.59,FISCAL,PR 28/2022 - UNB,2022,10/11/2022,EMENDAS PARLAMENTARES,null,null,null,REESTRUTURAÇÃO E MODERNIZAÇÃO DAS INSTITUIÇÕES - EMENDA,23106.054309/2021-70,"C.CUSTO:DAC// AQUISIÇÃO DE BEBEDOURO INDUSTRIAL// REQ. 6329/2022PROT:110109(3385,59)// 2022ND004984// MEMORANDO 113 (8870063)",3006,EQUIP. MATERIAL PERMANENTE,ARGOS LTDA,null,UNIVERSIDADE DE BRASÍLIA,null,3385.59,ordinário,605
RECURSOS ORDINÁRIOS,494551.35,FISCAL,PR 313/2022 - UNB,2022,10/11/2022,SERVICOS COMUNS DE ENGENHARIA-PREGAO 306/2019,null,null,null,FUNCIONAMENTO DE INSTITUICOES FEDERAI - NO DF,23106.117479/2022-53,"C. CUSTO PRC PROT:110105(494551,35) PR: 313/2022CELEBRAÇÃO DO CONTRATO Nº 1226/2022 COM A EMPRESA POLI ENGENHARIA LTDACUJO O OBJETO É A PRESTAÇÃO DE SERVIÇOS COMUNS DE ENGENHARIA.MESES DE REF.: JAN, FEV E MAR DE 2023. SEI: 23106.117479/2022-53 2022ND005174",2997,SERV. PESSOA JURÍDICA,POLI ENGENHARIA EIRELI,null,UNIVERSIDADE DE BRASÍLIA,null,494551.35,global,605
PRÓPRIOS -  PREST.SERVICOS FUB/FUNDO,2250.00,FISCAL,PR 207/2021 - UNB,2022,09/11/2022,CRÉDITOS DISTRIBUÍDOS PARA AS UNIDADES ACADÊMICAS,null,null,null,FUNCIONAMENTO DE INSTITUICOES FEDERAI - NO DF,23106.079963/2020-13,"C.CUSTO: IBD - AT -  JULIANA VIEIRA FLORES SALES - PROT:11010112{SM6521/2022(2250,00)}         MATERIAL  PERMANENTE - PEDIDO:6521/2022 - 2022ND000000 - PREG:207/2021MATERIAL TIC - MAT.PERMANENTE - TABLET TELA 9.1 - 4GB RAM - 32GB - MEMÓRIA - INTERNAMEMO.S.N/2022/IB/CP -  S.E.I 23106.133662/2022-04",2987,EQUIPAMENTOS E MATERIAL PERMANENTE,POLLIANA IOLANDA ASSUNCAO SILVA NUNES,null,UNIVERSIDADE DE BRASÍLIA,null,2250.00,ordinário,605
PRÓPRIOS -  PREST.SERVICOS FUB/FUNDO,57.00,FISCAL,PR 201/2022 - UNB,2022,09/11/2022,CRÉDITOS DISTRIBUÍDOS PARA AS UNIDADES ACADÊMICAS,null,null,null,FUNCIONAMENTO DE INSTITUICOES FEDERAI - NO DF,23106.074895/2020-98,"C. CUSTO: FAV.      PROT:11010105{SM6511/2022(57,00)}      SEI 23106.133701/2022-65.     AQUISIÇÃO DE FONE DE OUVIDO HEADSET.2022ND005134.            MEMO FAV/DIR/55/2022.",2986,MAT. CONSUMO,RF PRODUCOES ARTISTICAS LTDA,null,UNIVERSIDADE DE BRASÍLIA,null,57.00,ordinário,605
PRÓPRIOS -  PREST.SERVICOS FUB/FUNDO,814.98,FISCAL,PR 7/2022 - UNB,2022,09/11/2022,CRÉDITOS DISTRIBUÍDOS PARA AS UNIDADES ACADÊMICAS,null,null,null,FUNCIONAMENTO DE INSTITUICOES FEDERAI - NO DF,23106.054297/2021-83,"C.CUSTO: IBD - AT -  LUIZ EDUARDO BASSAY BLUM - PROT:11010112{SM6426/2022(814,98)}         MATERIAL  PERMANENTE - PEDIDO:6426/2022 - 2022ND000000 - PREG:007/2022APA.DE UTENS.DOMÉSTICO - ESCADA - MATERIAL ALUMÍNIO -  ARTICULADA - 16 DEGRAUSMEMO.S.N/2022/IB/CP -  S.E.I 23106.131681/2022-98",2985,EQUIP. MATERIAL PERMANENTE,ARGOS LTDA,null,UNIVERSIDADE DE BRASÍLIA,null,814.98,ordinário,605
PRÓPRIOS -  PREST.SERVICOS FUB/FUNDO,624.00,FISCAL,PR 201/2022 - UNB,2022,09/11/2022,CRÉDITOS DISTRIBUÍDOS PARA AS UNIDADES ACADÊMICAS,null,null,null,FUNCIONAMENTO DE INSTITUICOES FEDERAI - NO DF,23106.074895/2020-98,"C. CUSTO: IPOL.     PROT:11010124{SM6359/2022(624,00)}      SEI 23106.132763/2022-50.AQUISIÇÃO DE CÂMERA VIDEOCONFERÊNCIA.2022ND005133.          MEMO 0062/2022/IPOL/ORÇAMENTO.",2984,MAT. CONSUMO,RESILIRE S F COMERCIO LTDA,null,UNIVERSIDADE DE BRASÍLIA,null,624.00,ordinário,605
PRÓPRIOS -  PREST.SERVICOS FUB/FUNDO,113.00,FISCAL,PR 35/2022 - UNB,2022,09/11/2022,CRÉDITOS DISTRIBUÍDOS PARA AS UNIDADES ACADÊMICAS,null,null,null,FUNCIONAMENTO DE INSTITUICOES FEDERAI - NO DF,23106.079543/2022-91,"C. CUSTO: FAV.     PROT:11010105{SM6490/2022(113,00)}      SEI 23106.118068/2022-85.AQUISIÇÃO DE GLICOSE.2022ND005107.",2981,MAT. CONSUMO,D PRONTO NUTRIÇÃO ANIMAL E PRODUTOS VETERINÁRIOS LTDA,null,UNIVERSIDADE DE BRASÍLIA,null,113.00,ordinário,605
PRÓPRIOS -  PREST.SERVICOS FUB/FUNDO,3018.50,FISCAL,PR 35/2022 - UNB,2022,09/11/2022,CRÉDITOS DISTRIBUÍDOS PARA AS UNIDADES ACADÊMICAS,null,null,null,FUNCIONAMENTO DE INSTITUICOES FEDERAI - NO DF,23106.079543/2022-91,"C. CUSTO: FAV.     PROT:11010105{SM6489/2022(3018,50)}      SEI 23106.118068/2022-85.AQUISIÇÃO DE ISOFLURANO. 2022ND005107.",2980,MAT. CONSUMO,CRISTALIA PRODUTOS QUIMICOS FARMACEUTICOS LTDA,null,UNIVERSIDADE DE BRASÍLIA,null,3018.50,ordinário,605
PRÓPRIOS -  PREST.SERVICOS FUB/FUNDO,474.50,FISCAL,PR 17/2022 - UNB,2022,09/11/2022,CRÉDITOS DISTRIBUÍDOS PARA AS UNIDADES ACADÊMICAS,null,null,null,FUNCIONAMENTO DE INSTITUICOES FEDERAI - NO DF,23106.030293/2022-91,"C. CUSTO: FAV.     PROT:11010105{SM6487/2022(474,50)}      SEI 23106.118068/2022-85.AQUISIÇÃO DE CETAMINA.   2022ND005107.",2979,MAT. CONSUMO,RENATO MACHADO PINTO,null,UNIVERSIDADE DE BRASÍLIA,null,474.50,ordinário,605
PRÓPRIOS -  PREST.SERVICOS FUB/FUNDO,18271.14,FISCAL,PR 40/2022 - UNB,2022,09/11/2022,CRÉDITOS DISTRIBUÍDOS PARA AS UNIDADES ACADÊMICAS,null,null,null,FUNCIONAMENTO DE INSTITUICOES FEDERAI - NO DF,23106.082731/2022-04,"C. CUSTO: FAV.     PROT:11010105{SM6486/2022(18271,14)}      SEI 23106.118068/2022-85.AQUISIÇÃO DE RAÇÃO.2022ND005107.",2978,MAT. CONSUMO,D PRONTO NUTRIÇÃO ANIMAL E PRODUTOS VETERINÁRIOS LTDA,null,UNIVERSIDADE DE BRASÍLIA,null,18271.14,ordinário,605
RECURSOS DIR.ARRECADADOS(PROPRIOS)-FUB -,22421.00,FISCAL,PR 47/2022 - UNB,2022,09/11/2022,ARRECADACOES DA FAL - HORTIFRUTIGRANJEIRO,null,null,null,FUNCIONAMENTO DE INSTITUICOES FEDERAI - NO DF,23106.083257/2022-20,"C. CUSTO FAL PROT:110116(22421,00) PR: 47/2022AQUISIÇÃO DE ANIMAIS SUÍNOS PARA UTILIZAÇÃO EM PESQUISASEI: 23106.083257/2022-20 2022ND005109",2977,MAT. CONSUMO,PRO FEEDS - SAUDE ANIMAL LTDA - ME,null,UNIVERSIDADE DE BRASÍLIA,null,22421.00,global,605
PRÓPRIOS -  PREST.SERVICOS FUB/FUNDO,1415.37,FISCAL,PR 40/2022 - UNB,2022,09/11/2022,CRÉDITOS DISTRIBUÍDOS PARA AS UNIDADES ACADÊMICAS,null,null,null,FUNCIONAMENTO DE INSTITUICOES FEDERAI - NO DF,23106.082731/2022-04,"C.CUSTO: FAV - AT - RICARDO MIYASAKA DE ALMEIDA - PROT:11010105{SM6475/2022(1415,37)}         MATERIAL DE CONSUMO - PEDIDO:6475/2022 - 2022ND005098- PREG:040/2022ALIMENTOS PARA ANIMAIS - RAÇÃO EXTRUSADA ANIMAL - EQUINOMEMO.009/2022/FAV -  S.E.I 23106.131160/2022-31",2976,MAT. CONSUMO,D PRONTO NUTRIÇÃO ANIMAL E PRODUTOS VETERINÁRIOS LTDA,null,UNIVERSIDADE DE BRASÍLIA,null,1415.37,ordinário,605
PRÓPRIOS -  PREST.SERVICOS FUB/FUNDO,3794.40,FISCAL,PR 1/2021 - UNB,2022,09/11/2022,CRÉDITOS DISTRIBUÍDOS PARA AS UNIDADES ADMINISTRATIVAS,null,null,null,FUNCIONAMENTO DE INSTITUICOES FEDERAI - NO DF,23106.107526/2022-51,"C. CUSTO: VRT                           SEI:  23106.107526/2022-51ATT: ENRIQUE HUELVA UNTERNBÄUMEN        2022ND005097MEMO.018/2022/VRT                       PROT:110101(3794,40)SERVIÇOS DE TERCEIROS - PEDIDO:0000/2022 - CONTRATO: 031/2021FORNECIMENTO DE ALIMENTAÇÃO - FORNECIMENTO DE REFEIÇÕES -  COFFEE BREAK",2974,SERV. PESSOA JURÍDICA,ISM GOMES DE MATTOS EIRELI,null,UNIVERSIDADE DE BRASÍLIA,null,3794.40,global,605
PRÓPRIOS -  PREST.SERVICOS FUB/FUNDO,4320.85,FISCAL,PR 40/2022 - UNB,2022,09/11/2022,CRÉDITOS DISTRIBUÍDOS PARA AS UNIDADES ACADÊMICAS,null,null,null,FUNCIONAMENTO DE INSTITUICOES FEDERAI - NO DF,23106.082731/2022-04,"C.CUSTO: FAV - AT - DEBORAH CLEA RUY - PROT:11010105{SM6470/2022(4320,85)}         MATERIAL DE CONSUMO - PEDIDO:6470/2022 - 2022ND005099 - PREG:040/2022SEMENTES MUDAS E PLANTAS - SERRAGEM - MARAVALHA - ME- EPPMEMO.005/2022/FAV -  S.E.I 23106.132616/2022-80",2973,MAT. CONSUMO,LICITOP COMERCIO E SERVICO EIRELI - EPP,null,UNIVERSIDADE DE BRASÍLIA,null,4320.85,ordinário,605
RECURSOS ORDINÁRIOS,6480.00,FISCAL,PR 23/2022 - UNB,2022,09/11/2022,REPOSIÇÃO DE MATERIAL DO ALMOXARIFADO,null,null,null,FUNCIONAMENTO DE INSTITUICOES FEDERAI - NO DF,23106.031609/2022-61,"C.CUSTO:ALMOX - AT -  ALEXANDRE PEIXOTO BEZERRA - PROT:1101100601{SM6382/2022(6480,00)}         MATERIAL DE CONSUMO - PEDIDO:6382/2022 - 2022ND005038 - PREG:023/2022MATERIAL DE LIMPEZA E HIGIENE - ÁLCOOL ETÍLICO LIMPEZA DE AMBIENTESMEMO.032/2022/ALMOX -  S.E.I 23106.130591/2022-80",2972,MAT. CONSUMO,CDV COMERCIAL DE ALIMENTOS EIRELI,null,UNIVERSIDADE DE BRASÍLIA,null,6480.00,ordinário,605
TAXA DE ALUNO ESPECIAL -FUB,1100.00,FISCAL,PR,2022,09/11/2022,PROGRAMA POS-GRADUACAO EM PSICOLOGIA SOCIAL,null,null,null,FUNCIONAMENTO DE INSTITUICOES FEDERAI - NO DF,23106.131356/2022-25,"C. CUSTO: PST.        PROT:110101200501(1100,00)        SEI 23106.131356/2022-25.PASSAGENS AÉREAS NACIONAIS.2022ND005110.      MEMO 76/2021/IP/PST/PPG-PSTO.",2971,PASSAGENS,VOETUR TURISMO E REPRESENTACOES LTDA,null,UNIVERSIDADE DE BRASÍLIA,null,1100.00,estimativo,605
RECURSOS ORDINÁRIOS,1750.00,FISCAL,PR 35/2022 - UNB,2022,09/11/2022,MATRIZ HVET_,null,null,null,20RK - FUNCIONAMENTO DOS HOSPITAL VETERINARIOS,23106.079543/2022-91,"C.CUSTO:HVET//AQUISIÇÃO DE MEDICAMENTOS DE USO VETERINARIO//REQ. 6465/2022PROT:1101010501(1750,00)// DESPACHO FAV / HVET / HVETINHO (8922493)//  2022ND005122",2968,MAT. CONSUMO,CAPROMED FARMACEUTICA LTDA,null,UNIVERSIDADE DE BRASÍLIA,null,1750.00,ordinário,605
RECURSOS ORDINÁRIOS,125.00,FISCAL,PR 35/2022 - UNB,2022,09/11/2022,MATRIZ HVET_,null,null,null,20RK - FUNCIONAMENTO DOS HOSPITAL VETERINARIOS,23106.079543/2022-91,"C.CUSTO:HVET//AQUISIÇÃO DE CLORETO POTASSIO 19,1%//REQ. 6464/2022PROT:1101010501(125,00)// DESPACHO FAV / HVET / HVETINHO (8922493)//  2022ND005122",2967,MAT. CONSUMO,D PRONTO NUTRIÇÃO ANIMAL E PRODUTOS VETERINÁRIOS LTDA,null,UNIVERSIDADE DE BRASÍLIA,null,125.00,ordinário,605
RECURSOS ORDINÁRIOS,154.50,FISCAL,PR 20/2022 - UNB,2022,09/11/2022,MATRIZ HVET_,null,null,null,20RK - FUNCIONAMENTO DOS HOSPITAL VETERINARIOS,23106.031067/2022-27,"C.CUSTO:HVET//AQUISIÇÃO DE SONDA TRATO DIGESTIVO//REQ. 6460/2022PROT:1101010501(154,50)// DESPACHO FAV / HVET / HVETINHO (8922493)//  2022ND005122",2966,MAT. CONSUMO,D PRONTO NUTRIÇÃO ANIMAL E PRODUTOS VETERINÁRIOS LTDA,null,UNIVERSIDADE DE BRASÍLIA,null,154.50,ordinário,605
RECURSOS ORDINÁRIOS,97.00,FISCAL,PR 20/2022 - UNB,2022,09/11/2022,MATRIZ HVET_,null,null,null,20RK - FUNCIONAMENTO DOS HOSPITAL VETERINARIOS,23106.031067/2022-27,"C.CUSTO:HVET//AQUISIÇÃO DE TUBO ENDOTRAQUEAL//REQ. 6463/2022PROT:1101010501(97,00)// DESPACHO FAV / HVET / HVETINHO (8922493)//  2022ND005122",2965,MAT. CONSUMO,VIVA CARE MATERIAL MEDICO HOSPITALAR LTDA.,null,UNIVERSIDADE DE BRASÍLIA,null,97.00,ordinário,605
RECURSOS ORDINÁRIOS,106.00,FISCAL,PR 20/2022 - UNB,2022,09/11/2022,MATRIZ HVET_,null,null,null,20RK - FUNCIONAMENTO DOS HOSPITAL VETERINARIOS,23106.031067/2022-27,"C.CUSTO:HVET//AQUISIÇÃO DE TUBO ENDOTRAQUEAL//REQ. 6462/2022PROT:1101010501(106,00)// DESPACHO FAV / HVET / HVETINHO (8922493)//  2022ND005122",2964,MAT. CONSUMO,PRM COMERCIAL LTDA,null,UNIVERSIDADE DE BRASÍLIA,null,106.00,ordinário,605
RECURSOS ORDINÁRIOS,149.85,FISCAL,PR 20/2022 - UNB,2022,09/11/2022,MATRIZ HVET_,null,null,null,20RK - FUNCIONAMENTO DOS HOSPITAL VETERINARIOS,23106.031067/2022-27,"C.CUSTO:HVET//AQUISIÇÃO DE LUVA CIRURGICA TAM 8//REQ. 6461/2022PROT:1101010501(149,85)// DESPACHO FAV / HVET / HVETINHO (8922493)//  2022ND005122",2963,MAT. CONSUMO,DIGITAL BUSINESS LTDA,null,UNIVERSIDADE DE BRASÍLIA,null,149.85,ordinário,605
RECURSOS ORDINÁRIOS,270.00,FISCAL,PR 18/2022 - UNB,2022,09/11/2022,MATRIZ HVET_,null,null,null,20RK - FUNCIONAMENTO DOS HOSPITAL VETERINARIOS,23106.031074/2022-29,"C.CUSTO:HVET//AQUISIÇÃO DE MEDICAMENTOS DE USO VETERINARIO//REQ. 6459/2022PROT:1101010501(270,00)// DESPACHO FAV / HVET / HVETINHO (8922493)//  2022ND005122",2962,MAT. CONSUMO,VGR MEDICAL DISTRIBUIDORA E IMPORTADORA DE PRODUTOS MEDICOS LTDA,null,UNIVERSIDADE DE BRASÍLIA,null,270.00,ordinário,605
RECURSOS ORDINÁRIOS,1791.00,FISCAL,PR 18/2022 - UNB,2022,09/11/2022,MATRIZ HVET_,null,null,null,20RK - FUNCIONAMENTO DOS HOSPITAL VETERINARIOS,23106.031074/2022-29,"C.CUSTO:HVET//AQUISIÇÃO DE MEDICAMENTOS DE USO VETERINARIO//REQ. 6458/2022PROT:1101010501(1791,00)// DESPACHO FAV / HVET / HVETINHO (8922493)//  2022ND005122",2961,MAT. CONSUMO,HEALTH DISTRIBUIDORA DE MEDICAMENTOS LTDA,null,UNIVERSIDADE DE BRASÍLIA,null,1791.00,ordinário,605
RECURSOS ORDINÁRIOS,2998.97,FISCAL,PR 17/2022 - UNB,2022,09/11/2022,MATRIZ HVET_,null,null,null,20RK - FUNCIONAMENTO DOS HOSPITAL VETERINARIOS,23106.030293/2022-91,"C.CUSTO:HVET//MEDICAMENTOS VETERINARIOS//REQ. 6472/2022PROT:1101010501(2998,97)// DESPACHO FAV / HVET / HVETINHO (8922493)//  2022ND005122",2960,MAT. CONSUMO,TURVOMED DISTRIBUIDORA E SERVICOS,null,UNIVERSIDADE DE BRASÍLIA,null,2998.97,ordinário,605
RECURSOS ORDINÁRIOS,2499.70,FISCAL,PR 17/2022 - UNB,2022,09/11/2022,MATRIZ HVET_,null,null,null,20RK - FUNCIONAMENTO DOS HOSPITAL VETERINARIOS,23106.030293/2022-91,"C.CUSTO:HVET//MEDICAMENTOS DE USO VETERINARIO//REQ. 6471/2022PROT:1101010501(2499,70)// DESPACHO FAV / HVET / HVETINHO (8922493)//  2022ND005122",2959,MAT. CONSUMO,RENATO MACHADO PINTO,null,UNIVERSIDADE DE BRASÍLIA,null,2499.70,ordinário,605
RECURSOS ORDINÁRIOS,195.65,FISCAL,PR 17/2022 - UNB,2022,09/11/2022,MATRIZ HVET_,null,null,null,20RK - FUNCIONAMENTO DOS HOSPITAL VETERINARIOS,23106.030293/2022-91,"C.CUSTO:HVET//IVERMECTINA INJETÁVEL 50ML//REQ. 6469/2022PROT:1101010501(195,65)// DESPACHO FAV / HVET / HVETINHO (8922493)//  2022ND005122",2958,MAT. CONSUMO,D PRONTO NUTRIÇÃO ANIMAL E PRODUTOS VETERINÁRIOS LTDA,null,UNIVERSIDADE DE BRASÍLIA,null,195.65,ordinário,605
RECURSOS DIR.ARRECADADOS(PROPRIOS)-FUB -,2198.00,FISCAL,PR 28/2022 - UNB,2022,09/11/2022,CENTRO DE ATENDIMENTO E ESTUDOS PSICOLOG-CAEP,null,null,null,FUNCIONAMENTO DE INSTITUICOES FEDERAI - NO DF,23106.054309/2021-70,"C.CUSTO:IPD// AQUISIÇÃO DE VENTILADOR TORRE// REQ. 6227/2022PROT:11010120(2198,00)// SEI N.23106.131842/2022-43",2957,EQUIP. MATERIAL PERMANENTE,VENGOV PRODUTOS E SERVICOS LTDA,null,UNIVERSIDADE DE BRASÍLIA,null,2198.00,ordinário,605
RECURSOS DIR.ARRECADADOS(PROPRIOS)-FUB -,803.35,FISCAL,PR 28/2022 - UNB,2022,09/11/2022,CENTRO DE ATENDIMENTO E ESTUDOS PSICOLOG-CAEP,null,null,null,FUNCIONAMENTO DE INSTITUICOES FEDERAI - NO DF,23106.054309/2021-70,"C.CUSTO:IPD// AQUISIÇÃO DE VENTILADOR, MESA, 40 CM// REQ. 6430/2022PROT:11010120(803,35)// MEMO Nº 113/2022/IP / CAEP// SEI N.23106.131842/2022-43",2956,EQUIP. MATERIAL PERMANENTE,BSB CAPITAL SOLUCOES LTDA,null,UNIVERSIDADE DE BRASÍLIA,null,803.35,ordinário,605
RECURSOS ORDINÁRIOS,3162.00,FISCAL,PR 1/2021 - UNB,2022,09/11/2022,CRÉDITOS PARA APOIO ÀS AÇÕES DE DECANATOS ACADÊMICOS,null,null,null,"FOMENTO AS ACOES DE GRADUACAO, POS-GR - NO DF",23106.028391/2022-68,"C.CUSTO:DEX// SERVIÇO DE COFFE BREAK PARA EVENTO EXPOSIÇÃO// 2022ND005128PROT:110107(3162,00)//DESPACHO DEX (8926363)// SEI N.23106.028391/2022-68",2955,SERV. PESSOA JURÍDICA,ISM GOMES DE MATTOS EIRELI,null,UNIVERSIDADE DE BRASÍLIA,null,3162.00,global,605
RECURSOS DIRETAM.ARREC FUNDAÇÃO UNIV.BRASÍLIA,578000.00,FISCAL,PR 206/2021 - UNB,2022,09/11/2022,FUNCIONAMENTO GERAL,null,null,null,FUNCIONAMENTO DE INSTITUICOES FEDERAI - NO DF,23106.132442/2022-55,"C.CUSTO:CPD//  AQUISIÇÃO DE DOIS SWITCHES DE FIBRA// REQ. 6488/2022PROT:110114(578000,00)// PREGÃO N.206/2021",2954,EQUIP. MATERIAL PERMANENTE,WISEIT - SISTEMAS E INFORMATICA LTDA,null,UNIVERSIDADE DE BRASÍLIA,null,578000.00,global,605
PRÓPRIOS -  PREST.SERVICOS FUB/FUNDO,2213.40,FISCAL,PR 1/2021 - UNB,2022,08/11/2022,CRÉDITOS DISTRIBUÍDOS PARA AS UNIDADES ADMINISTRATIVAS,null,null,null,FUNCIONAMENTO DE INSTITUICOES FEDERAI - NO DF,23106.131251/2022-76,"C. CUSTO: GRE.       PROT:1101(2213,40)       SEI 23106.131251/2022-76.SERVIÇOS DE COFFEE BREAK PARA EVENTO DE LANÇAMENTO DO GUIA DE CERIMÔNIAS.2022ND005118.      MEMO 50/2022/CERI.",2950,SERV. PESSOA JURÍDICA,ISM GOMES DE MATTOS EIRELI,null,UNIVERSIDADE DE BRASÍLIA,null,2213.40,ordinário,605
PRÓPRIOS -  PREST.SERVICOS FUB/FUNDO,7156.30,FISCAL,DL 10028/2022 - UNB,2022,09/11/2022,CRÉDITOS DISTRIBUÍDOS PARA AS UNIDADES ACADÊMICAS,null,null,null,FUNCIONAMENTO DE INSTITUICOES FEDERAI - NO DF,23106.094786/2022-42,"C. CUSTO: IFD. PROT:11010116(7156,30) SEI 23106.094786/2022-59.AQUISIÇÃO DE GÁS HÉLIO.2022ND005032. MEMO 012/2022/IF.",2949,MAT. CONSUMO,BRASÍLIA GASES MEDICINAIS EIRELI,null,UNIVERSIDADE DE BRASÍLIA,null,7156.30,global,605
PRÓPRIOS -  PREST.SERVICOS FUB/FUNDO,1897.20,FISCAL,PR 1/2021 - UNB,2022,08/11/2022,CRÉDITOS DISTRIBUÍDOS PARA AS UNIDADES ACADÊMICAS,null,null,null,FUNCIONAMENTO DE INSTITUICOES FEDERAI - NO DF,23106.128428/2022-57,"C.CUSTO:FTD// COFFEEBREAK COMEMORAÇÃO 55 ANOS DO ENE// MEMO N.038/2022/FT/ENE PROT:11010111(1897,20)// MEMORANDO Nº 038/ENE (8883453)// SEI N.23106.128428/2022-57",2948,SERV. PESSOA JURÍDICA,ISM GOMES DE MATTOS EIRELI,null,UNIVERSIDADE DE BRASÍLIA,null,1897.20,global,605
RECURSOS ORDINÁRIOS,10000.00,FISCAL,PR 32/2022 - UNB,2022,08/11/2022,REPOSIÇÃO DE MATERIAL DO ALMOXARIFADO,null,null,null,FUNCIONAMENTO DE INSTITUICOES FEDERAI - NO DF,23106.050631/2022-19,"C.CUSTO:ALMOX//  TECLADO MICROCOMPUTADOR//MEMORANDO 31 (8899798)PROT:1101100601( 1000,00)// REQ. 6368/2022",2926,MAT. CONSUMO,HYPER TECHNOLOGIES COMERCIO DE INFORMATICA E SERVICOS EIRELI,null,UNIVERSIDADE DE BRASÍLIA,null,10000.00,ordinário,605
RECURSOS ORDINÁRIOS,5548.00,FISCAL,PR 32/2022 - UNB,2022,08/11/2022,REPOSIÇÃO DE MATERIAL DO ALMOXARIFADO,null,null,null,FUNCIONAMENTO DE INSTITUICOES FEDERAI - NO DF,23106.050631/2022-19,"C.CUSTO:ALMOX//  AQUISIÇÃO DE MOUSE OPTICO USB//MEMORANDO 31 (8899798)PROT:1101100601( 5548,00)// REQ. 6365/2022",2925,MAT. CONSUMO,JULIO CESAR DE CARVALHO JUNIOR,null,UNIVERSIDADE DE BRASÍLIA,null,5548.00,ordinário,605
PRÓPRIOS -  PREST.SERVICOS FUB/FUNDO,23.00,FISCAL,PR 1/2022 - UNB,2022,08/11/2022,CRÉDITOS DISTRIBUÍDOS PARA AS UNIDADES ACADÊMICAS,null,null,null,FUNCIONAMENTO DE INSTITUICOES FEDERAI - NO DF,23106.119475/2021-29,"C.CUSTO:IBD// PORTA OBJETO// REQ. 6348/2022 PROT:11010112(23,00)// 2022ND005064// DESPACHO IB / CP (8895986)",2924,MAT. CONSUMO,ALEGRENSE DISTRIBUIDORA E REPRESENTACAO COMERCIAL LTDA,null,UNIVERSIDADE DE BRASÍLIA,null,23.00,ordinário,605
PRÓPRIOS -  PREST.SERVICOS FUB/FUNDO,30.40,FISCAL,PR 1/2022 - UNB,2022,08/11/2022,CRÉDITOS DISTRIBUÍDOS PARA AS UNIDADES ACADÊMICAS,null,null,null,FUNCIONAMENTO DE INSTITUICOES FEDERAI - NO DF,23106.119475/2021-29,"C.CUSTO:IBD// JARRA PLASTICA 2 LITROS// REQ. 6349/2022 PROT:11010112(30,40)// 2022ND005064// DESPACHO IB / CP (8895986)",2923,MAT. CONSUMO,LPK LTDA,null,UNIVERSIDADE DE BRASÍLIA,null,30.40,ordinário,605
PRÓPRIOS -  PREST.SERVICOS FUB/FUNDO,73.50,FISCAL,PR 1/2022 - UNB,2022,08/11/2022,CRÉDITOS DISTRIBUÍDOS PARA AS UNIDADES ACADÊMICAS,null,null,null,FUNCIONAMENTO DE INSTITUICOES FEDERAI - NO DF,23106.119475/2021-29,"C.CUSTO:IBD// COPO DE VIDRO 300ML// REQ. 6350/2022PROT:11010112(73,50)// 2022ND005064// DESPACHO IB / CP (8895986)",2922,MAT. CONSUMO,M.Z.A.S SUPERMERCADO EIRELI,null,UNIVERSIDADE DE BRASÍLIA,null,73.50,ordinário,605
PRÓPRIOS -  PREST.SERVICOS FUB/FUNDO,311.93,FISCAL,PR 1/2022 - UNB,2022,08/11/2022,CRÉDITOS DISTRIBUÍDOS PARA AS UNIDADES ACADÊMICAS,null,null,null,FUNCIONAMENTO DE INSTITUICOES FEDERAI - NO DF,23106.119475/2021-29,"C.CUSTO:IBD// ITENS PARA COPA E COZINHA// REQ. 6351/2022PROT:11010112(311,93)// 2022ND005064// DESPACHO IB / CP (8895986)",2921,MAT. CONSUMO,NOVA MESA DISTRIBUIDORA DE ALIMENTOS E UTILIDADES LTDA,null,UNIVERSIDADE DE BRASÍLIA,null,311.93,ordinário,605
PRÓPRIOS -  PREST.SERVICOS FUB/FUNDO,56.20,FISCAL,PR 1/2022 - UNB,2022,08/11/2022,CRÉDITOS DISTRIBUÍDOS PARA AS UNIDADES ACADÊMICAS,null,null,null,FUNCIONAMENTO DE INSTITUICOES FEDERAI - NO DF,23106.119475/2021-29,"C.CUSTO:IBD// BANDEJA ESCRITORIO DUPLA// REQ. 6352/2022PROT:11010112(56,20)// 2022ND005064// DESPACHO IB / CP (8895986)",2920,MAT. CONSUMO,PRISMA PAPELARIA LTDA,null,UNIVERSIDADE DE BRASÍLIA,null,56.20,ordinário,605
PRÓPRIOS -  PREST.SERVICOS FUB/FUNDO,0.00,FISCAL,PR 1/2021 - UNB,2022,08/11/2022,CRÉDITOS DISTRIBUÍDOS PARA AS UNIDADES ACADÊMICAS,null,1897.20,null,FUNCIONAMENTO DE INSTITUICOES FEDERAI - NO DF,23106.128428/2022-57,"C.CUSTO:FTD// COFFEEBREAK COMEMORAÇÃO 55 ANOS DO ENE// MEMO N.038/2022/FT/ENEPROT:11010111(1897,20)// MEMORANDO Nº 038/ENE (8883453)// SEI N.23106.128428/2022-57",2919,SERV. PESSOA JURÍDICA,ISM GOMES DE MATTOS EIRELI,null,UNIVERSIDADE DE BRASÍLIA,null,1897.20,global,605
PRÓPRIOS -  PREST.SERVICOS FUB/FUNDO,1003.85,FISCAL,PR 28/2022 - UNB,2022,07/11/2022,CRÉDITOS DISTRIBUÍDOS PARA AS UNIDADES ACADÊMICAS,null,null,null,FUNCIONAMENTO DE INSTITUICOES FEDERAI - NO DF,23106.054309/2021-70,"C. CUSTO: ICH.       PROT:11010118{SM6405/2022(1003,85)}         SEI 23106.130766/2022-59.         AQUISIÇÃO DE PURIFICADOR DE ÁGUA REFRIGERADO.2022ND005052.      DESPACHO ICH/FIL/PPGFIL 8903528.       PREGÃO 28/2022.",2916,EQUIP. MATERIAL PERMANENTE,BSB CAPITAL SOLUCOES LTDA,null,UNIVERSIDADE DE BRASÍLIA,null,1003.85,ordinário,605
PRÓPRIOS -  PREST.SERVICOS FUB/FUNDO,1425.44,FISCAL,PR 7/2022 - UNB,2022,07/11/2022,CRÉDITOS DISTRIBUÍDOS PARA AS UNIDADES ACADÊMICAS,null,null,null,FUNCIONAMENTO DE INSTITUICOES FEDERAI - NO DF,23106.054297/2021-83,"C. CUSTO: IB.       PROT:11010112{SM6354/2022(1425,44)}         SEI 23106.129854/2022-16.    AQUISIÇÃO DE ASPIRADOR DE PÓ.2022ND005056.      DESPACHO IB/CP 8896255.      PREGÃO 7/2022.",2915,EQUIP. MATERIAL PERMANENTE,ARGOS LTDA,null,UNIVERSIDADE DE BRASÍLIA,null,1425.44,ordinário,605
PRÓPRIOS -  PREST.SERVICOS FUB/FUNDO,4893.00,FISCAL,PR 28/2022 - UNB,2022,07/11/2022,CRÉDITOS DISTRIBUÍDOS PARA AS UNIDADES ACADÊMICAS,null,null,null,FUNCIONAMENTO DE INSTITUICOES FEDERAI - NO DF,23106.054309/2021-70,"C. CUSTO: ICH.       PROT:11010118{SM6406/2022(4893,00)}         SEI 23106.130763/2022-15.AQUISIÇÃO DE NOBREAK.2022ND005067.     DESPACHO ICH/FIL/PPGFIL 8903512.     PREGÃO 28/2022.",2914,EQUIP. MATERIAL PERMANENTE,VENGOV PRODUTOS E SERVICOS LTDA,null,UNIVERSIDADE DE BRASÍLIA,null,4893.00,ordinário,605
PRÓPRIOS -  PREST.SERVICOS FUB/FUNDO,570.00,FISCAL,PR 201/2022 - UNB,2022,07/11/2022,CRÉDITOS DISTRIBUÍDOS PARA AS UNIDADES ADMINISTRATIVAS,null,null,null,FUNCIONAMENTO DE INSTITUICOES FEDERAI - NO DF,23106.099131/2022-77,"C.CUSTO:DEX  - AT - LAILA FERNANDES CAMARGOS - PROT:110107{SM5826/2022(570,00)}         MATERIAL DE CONSUMO - PEDIDO:5826/2022 - 2022ND005033 - PREG:201/2022MATERIAL TIC - MATERIAL DE CONSUMO - FONE OUVIDO - TIPO HEADSET -  POTÊNCIA 100 (MÁXIMA) MMEMO.032/2022/DEX  - S.E.I 23106.099131/2022-77",2910,MAT. CONSUMO,RF PRODUCOES ARTISTICAS LTDA,null,UNIVERSIDADE DE BRASÍLIA,null,570.00,global,605
PRÓPRIOS -  PREST.SERVICOS FUB/FUNDO,570.00,FISCAL,PR 201/2022 - UNB,2022,07/11/2022,CRÉDITOS DISTRIBUÍDOS PARA AS UNIDADES ADMINISTRATIVAS,null,null,null,FUNCIONAMENTO DE INSTITUICOES FEDERAI - NO DF,23106.074895/2020-98,"C.CUSTO:DEX  - AT - LAILA FERNANDES CAMARGOS - PROT:110107{SM5865/2022(570,00)}         MATERIAL DE CONSUMO - PEDIDO:5865/2022 - 2022ND005033 - PREG:201/2022MATERIAL TIC - MATERIAL DE CONSUMO - FONE OUVIDO - TIPO HEADSET -  POTÊNCIA 100 (MÁXIMA) MMEMO.032/2022/DEX  - S.E.I 23106.099131/2022-77",2909,MAT. CONSUMO,RF PRODUCOES ARTISTICAS LTDA,null,UNIVERSIDADE DE BRASÍLIA,null,570.00,ordinário,605
PRÓPRIOS -  PREST.SERVICOS FUB/FUNDO,570.00,FISCAL,PR 201/2022 - UNB,2022,07/11/2022,CRÉDITOS DISTRIBUÍDOS PARA AS UNIDADES ADMINISTRATIVAS,null,null,null,FUNCIONAMENTO DE INSTITUICOES FEDERAI - NO DF,23106.074895/2020-98,"C.CUSTO:DEX  - AT - LAILA FERNANDES CAMARGOS - PROT:110107{SM5864/2022(570,00)}         MATERIAL DE CONSUMO - PEDIDO:5864/2022 - 2022ND005033 - PREG:201/2022MATERIAL TIC - MATERIAL DE CONSUMO - FONE OUVIDO - TIPO HEADSET -  POTÊNCIA 100 (MÁXIMA) MMEMO.032/2022/DEX  - S.E.I 23106.099131/2022-77",2908,MAT. CONSUMO,RF PRODUCOES ARTISTICAS LTDA,null,UNIVERSIDADE DE BRASÍLIA,null,570.00,ordinário,605
PRÓPRIOS -  PREST.SERVICOS FUB/FUNDO,570.00,FISCAL,PR 201/2022 - UNB,2022,07/11/2022,CRÉDITOS DISTRIBUÍDOS PARA AS UNIDADES ADMINISTRATIVAS,null,null,null,FUNCIONAMENTO DE INSTITUICOES FEDERAI - NO DF,23106.074895/2020-98,"C.CUSTO:DEX  - AT - LAILA FERNANDES CAMARGOS - PROT:110107{SM5863/2022(570,00)}         MATERIAL DE CONSUMO - PEDIDO:5863/2022 - 2022ND005033 - PREG:201/2022MATERIAL TIC - MATERIAL DE CONSUMO - FONE OUVIDO - TIPO HEADSET -  POTÊNCIA 100 (MÁXIMA) MMEMO.032/2022/DEX  - S.E.I 23106.099131/2022-77",2907,MAT. CONSUMO,RF PRODUCOES ARTISTICAS LTDA,null,UNIVERSIDADE DE BRASÍLIA,null,570.00,ordinário,605
PRÓPRIOS -  PREST.SERVICOS FUB/FUNDO,1140.00,FISCAL,PR 201/2022 - UNB,2022,07/11/2022,CRÉDITOS DISTRIBUÍDOS PARA AS UNIDADES ADMINISTRATIVAS,null,null,null,FUNCIONAMENTO DE INSTITUICOES FEDERAI - NO DF,23106.074895/2020-98,"C.CUSTO:DEX  - AT - LAILA FERNANDES CAMARGOS - PROT:110107{SM6046/2022(1140,00)}         MATERIAL DE CONSUMO - PEDIDO:6046/2022 - 2022ND005033 - PREG:201/2022MATERIAL TIC - MATERIAL DE CONSUMO - FONE OUVIDO - TIPO HEADSET -  POTÊNCIA 100 (MÁXIMA) MMEMO.032/2022/DEX  - S.E.I 23106.099131/2022-77",2905,MAT. CONSUMO,RF PRODUCOES ARTISTICAS LTDA,null,UNIVERSIDADE DE BRASÍLIA,null,1140.00,ordinário,605
PRÓPRIOS -  PREST.SERVICOS FUB/FUNDO,156.00,FISCAL,PR 201/2022 - UNB,2022,07/11/2022,CRÉDITOS DISTRIBUÍDOS PARA AS UNIDADES ADMINISTRATIVAS,null,null,null,FUNCIONAMENTO DE INSTITUICOES FEDERAI - NO DF,23106.074895/2020-98,"C.CUSTO:DEX  - AT - LAILA FERNANDES CAMARGOS - PROT:110107{SM5441/2022(156,00)}         MATERIAL DE CONSUMO - PEDIDO:5441/2022 - 2022ND005033 - PREG:201/2022MATERIAL TIC - MATERIAL DE CONSUMO - CÂMERA VIDEOCONFERÊNCIA - RESOLUÇÃO 1080 X 1920MEMO.032/2022/DEX  - S.E.I 23106.099131/2022-77",2903,MAT. CONSUMO,RESILIRE S F COMERCIO LTDA,null,UNIVERSIDADE DE BRASÍLIA,null,156.00,ordinário,605
PRÓPRIOS -  PREST.SERVICOS FUB/FUNDO,8456.40,FISCAL,PR 1/2021 - UNB,2022,07/11/2022,CRÉDITOS DISTRIBUÍDOS PARA AS UNIDADES ACADÊMICAS,null,null,null,FUNCIONAMENTO DE INSTITUICOES FEDERAI - NO DF,23106.131459/2022-95,"C. CUSTO: IFD..       PROT:11010116(8456,40)      SEI 23106.131459/2022-95.    SERVIÇOS DE COFFEE BREAK PARA 2 EVENTOS.2022ND005070.        MEMO 51/2022/IF/DIREÇÃO.",2892,SERV. PESSOA JURÍDICA,ISM GOMES DE MATTOS EIRELI,null,UNIVERSIDADE DE BRASÍLIA,null,8456.40,ordinário,605
PRÓPRIOS -  PREST.SERVICOS FUB/FUNDO,3162.00,FISCAL,PR 1/2021 - UNB,2022,07/11/2022,CRÉDITOS DISTRIBUÍDOS PARA AS UNIDADES ACADÊMICAS,null,null,null,FUNCIONAMENTO DE INSTITUICOES FEDERAI - NO DF,23106.131575/2022-12,"C.CUSTO:IDA/VIS// COFFEE BREAK// MEMO N.74/2022/IDA/VISPROT:11010114(3162,00)// 2022ND005042// SEI N.23106.131575/2022-12",2888,SERV. PESSOA JURÍDICA,ISM GOMES DE MATTOS EIRELI,null,UNIVERSIDADE DE BRASÍLIA,null,3162.00,global,605
PRÓPRIOS -  PREST.SERVICOS FUB/FUNDO,2365.50,FISCAL,PR 7/2022 - UNB,2022,07/11/2022,CRÉDITOS DISTRIBUÍDOS PARA AS UNIDADES ACADÊMICAS,null,null,null,FUNCIONAMENTO DE INSTITUICOES FEDERAI - NO DF,23106.054297/2021-83,"C. CUSTO: IB.       PROT:11010112{SM6353/2022(2365,50)}      SEI 23106.129845/2022-17.AQUISIÇÃO DE LAVADORA DE ROUPA.DEMONSTRATIVO (8930768).     DESPACHO IB/CP 8896216.",2887,EQUIP. MATERIAL PERMANENTE,MAYAS COMERCIAL DE PRODUTOS E SERVICOS EIRELI,null,UNIVERSIDADE DE BRASÍLIA,null,2365.50,ordinário,605
PRÓPRIOS -  PREST.SERVICOS FUB/FUNDO,74003.03,FISCAL,PR 39/2021 - UNB,2022,07/11/2022,CRÉDITOS DISTRIBUÍDOS PARA AS UNIDADES ACADÊMICAS,null,null,null,FUNCIONAMENTO DE INSTITUICOES FEDERAI - NO DF,23106.095902/2021-76,"C.CUSTO:HVET//FORNECIMENTO DE ALIMENTOS E SEMENTES PARA ANIMAIS// CONTRATO N.099/2021PROT:1101010501(74003,03)// MINUTA DE TERMO ADITIVO DAF / DCA / CES (8736532)//2022ND005022",2884,MAT. CONSUMO,J E S COMERCIAL DE ALIMENTOS EIRELI,null,UNIVERSIDADE DE BRASÍLIA,null,74003.03,global,605
RECURSOS ORDINÁRIOS,510.00,FISCAL,PR 39/2021 - UNB,2022,07/11/2022,MATRIZ HVET_,null,null,null,20RK - FUNCIONAMENTO DOS HOSPITAL VETERINARIOS,23106.095902/2021-76,"C.CUSTO:HVET//FORNECIMENTO DE ALIMENTOS E SEMENTES PARA ANIMAIS// CONTRATO N.099/2021PROT:1101010501(510,00)// MINUTA DE TERMO ADITIVO DAF / DCA / CES (8736532)//   ITEM 1",2883,MAT. CONSUMO,J E S COMERCIAL DE ALIMENTOS EIRELI,null,UNIVERSIDADE DE BRASÍLIA,null,510.00,global,605
RECURSOS ORDINÁRIOS,120806.40,FISCAL,PR 27/2021 - UNB,2022,07/11/2022,REPOSIÇÃO DE MATERIAL DO ALMOXARIFADO,null,null,null,FUNCIONAMENTO DE INSTITUICOES FEDERAI - NO DF,23106.130615/2022-09,"C. CUSTO ALM PROT:1101100601(120806,40)AQUISIÇÃO DE CAFÉ TORRADO, 500 GR.SEI: 23106.130615/2022-09 2022ND005037 PR: 27/2021",2878,MAT. CONSUMO,FINO SABOR INDUSTRIA E COMERCIO LTDA,null,UNIVERSIDADE DE BRASÍLIA,null,120806.40,global,605
PRÓPRIOS -  PREST.SERVICOS FUB/FUNDO,2007.70,FISCAL,PR 28/2022 - UNB,2022,04/11/2022,CRÉDITOS DISTRIBUÍDOS PARA AS UNIDADES ACADÊMICAS,null,null,null,FUNCIONAMENTO DE INSTITUICOES FEDERAI - NO DF,23106.054309/2021-70,"C. CUSTO: IDA.      PROT:11010114{SM6386/2022(2007,70)}     SEI 23106.130638/2022-13.AQUISIÇÃO DE PURIFICADOR DE ÁGUA REFRIGERADO.2022ND005026.        MEMO 91/2022/IDA.",2871,EQUIP. MATERIAL PERMANENTE,BSB CAPITAL SOLUCOES LTDA,null,UNIVERSIDADE DE BRASÍLIA,null,2007.70,ordinário,605
CUSTOS INDIRETOS - UNIDADES DIVERSAS,3162.00,FISCAL,PR 1/2021 - UNB,2022,04/11/2022,CUSTOS INDIRETOS UNIDADE CAPTADORA,null,null,null,FUNCIONAMENTO DE INSTITUICOES FEDERAI - NO DF,23106.131435/2022-36,"C. CUSTO: IPD.      PROT:11010120(3162,00)          SEI 23106.131435/2022-36.    SERVIÇOS DE COFFEE BREAK PARA EVENTO DE COMEMORAÇÃO AOS 35 ANOS DO PET - PSICOLOGIA.2022ND004997.        MEMO 338/2022/IP/DIR.",2866,SERV. PESSOA JURÍDICA,ISM GOMES DE MATTOS EIRELI,null,UNIVERSIDADE DE BRASÍLIA,null,3162.00,ordinário,605
PRÓPRIOS -  PREST.SERVICOS FUB/FUNDO,14229.00,FISCAL,PR 1/2021 - UNB,2022,04/11/2022,CRÉDITOS DISTRIBUÍDOS PARA AS UNIDADES ACADÊMICAS,null,null,null,FUNCIONAMENTO DE INSTITUICOES FEDERAI - NO DF,23106.130708/2022-25,"C. CUSTO: IQD.     PROT:11010122(14229,00)          SEI 23106.130708/2022-25.SERVIÇOS DE COFFEE BREAK PARA EVENTO 14º ENCONTRO BRASILEIRO SOBRE ADSORÇÃO.2022ND004991.      MEMO 193/2022/IQ/SECADM.",2864,SERV. PESSOA JURÍDICA,ISM GOMES DE MATTOS EIRELI,null,UNIVERSIDADE DE BRASÍLIA,null,14229.00,ordinário,605
PRÓPRIOS -  PREST.SERVICOS FUB/FUNDO,198.90,FISCAL,PR 1/2022 - UNB,2022,04/11/2022,CRÉDITOS DISTRIBUÍDOS PARA AS UNIDADES ADMINISTRATIVAS,null,null,null,FUNCIONAMENTO DE INSTITUICOES FEDERAI - NO DF,23106.119475/2021-29,"C.CUSTO: DPI - AT- MARIA EMILIA MACHADO  - PROT:110142{SM6237/2022(198,90)}         MATERIAL DE CONSUMO - PEDIDO:6237/2022 -2022ND005001 - PREG:001/2022MATERIAL ELÉTRICO ELETRÔNICO - PILHA - TAMANHO PEQUENA - TIPO ALCALINA - MODELO AAAMEMO.125/2022/DPI  -  S.E.I 23106.127516/2022-31",2860,MAT. CONSUMO,RRA COMERCIO ELETRO-FONIA LTDA,null,UNIVERSIDADE DE BRASÍLIA,null,198.90,ordinário,605
TAXA DE ALUNO ESPECIAL -FUB,3000.00,FISCAL,PR,2022,04/11/2022,PROG DE PóS-GRAD EM SAUDE COLETIVA - PPGSC,null,null,null,FUNCIONAMENTO DE INSTITUICOES FEDERAI - NO DF,23106.124011/2022-15,"C. CUSTO: DSC                               SEI: 23106.124011/2022-15 PAGAMENTO DE PASSAGEM NACIONAL              PROT:1101011001(3000,00)MEMO.S.N/2022/FS/PPGSC                      2022ND004987",2859,PASSAGENS,VOETUR TURISMO E REPRESENTACOES LTDA,null,UNIVERSIDADE DE BRASÍLIA,null,3000.00,estimativo,605
RECURSOS ORDINÁRIOS,2696.40,FISCAL,PR 39/2021 - UNB,2022,04/11/2022,MATRIZ HVET_,null,null,null,20RK - FUNCIONAMENTO DOS HOSPITAL VETERINARIOS,23106.095902/2021-76,"C.CUSTO:HVET//FORNECIMENTO DE ALIMENTOS E SEMENTES PARA ANIMAIS// CONTRATO N.099/2021PROT:1101010501(2696,40)// MINUTA DE TERMO ADITIVO DAF / DCA / CES (8736532)",2855,MAT. CONSUMO,J E S COMERCIAL DE ALIMENTOS EIRELI,null,UNIVERSIDADE DE BRASÍLIA,null,2696.40,global,605
RECURSOS ORDINÁRIOS,400000.00,FISCAL,PR 307/2022 - UNB,2022,04/11/2022,COMBUSTIVEL_,null,null,null,FUNCIONAMENTO DE INSTITUICOES FEDERAI - NO DF,23106.116807/2021-13,"C.CUSTO: PRC - PROT:110105(400000,00) - S.E.I Nº 23106.116807/2021-13SERV.APOIO TÉC OPERACIONAL - GERENCIAMENTO DO FORNECIMENTO DE COMBUSTÍVEISEMPRESA ESPECIALIZADA EM CONTROLE DE ABASTECIMENTO DE VEÍCULOSMEMO.S.N/2022/PRC/DIMAT/COTR - 2022ND004831 - CONTRATO: 1222/2022PERÍODO: OUTUBRO/22 A JANEIRO/23. - PRORROGAÇÃO DE CONTRATO POR MAIS 4 MESES",2852,SERV. PESSOA JURÍDICA,TICKET SOLUÇÕES HDFGT S/A,null,UNIVERSIDADE DE BRASÍLIA,null,400000.00,global,605
PRÓPRIOS -  PREST.SERVICOS FUB/FUNDO,2048.74,FISCAL,PR 7/2022 - UNB,2022,04/11/2022,CRÉDITOS DISTRIBUÍDOS PARA AS UNIDADES ACADÊMICAS,null,null,null,FUNCIONAMENTO DE INSTITUICOES FEDERAI - NO DF,23106.054297/2021-83,"C. CUSTO: IHD.      PROT:11010118{SM6328/2022(2048,74)}        SEI 23106.128567/2022-81.AQUISIÇÃO DE CAFETEIRA ELÉTRICA.2022ND004963.         DESPACHO ICH/FIL/PPGFIL 8884891.",2847,EQUIP. MATERIAL PERMANENTE,SIS COMERCIO DE MATERIAIS E EQUIPAMENTOS LTDA,null,UNIVERSIDADE DE BRASÍLIA,null,2048.74,ordinário,605
PRÓPRIOS -  PREST.SERVICOS FUB/FUNDO,129.20,FISCAL,PR 1/2022 - UNB,2022,03/11/2022,CRÉDITOS DISTRIBUÍDOS PARA AS UNIDADES ACADÊMICAS,null,null,null,FUNCIONAMENTO DE INSTITUICOES FEDERAI - NO DF,23106.119475/2021-29,"C.CUSTO:IDA - AT- FATIMA APARECIDA DOS SANTOS - PROT:11010114{SM6330/2022(129,20)}         MATERIAL DE CONSUMO - PEDIDO:6330/2024 - 2022ND004948 - PREG:001/2022MATERIAL ELÉTRICO ELETRÔNICO - PILHA - TAMANHO PEQUENA - TIPO ALCALINAMEMO.091/2022/IDA  - S.E.I 23106.129009/2022-32",2836,MAT. CONSUMO,JANETE MARIA CHAVES BRANDAO 04957560595,null,UNIVERSIDADE DE BRASÍLIA,null,129.20,ordinário,605
PRÓPRIOS -  PREST.SERVICOS FUB/FUNDO,115.00,FISCAL,PR 1/2022 - UNB,2022,03/11/2022,CRÉDITOS DISTRIBUÍDOS PARA AS UNIDADES ACADÊMICAS,null,null,null,FUNCIONAMENTO DE INSTITUICOES FEDERAI - NO DF,23106.119475/2021-29,"C.CUSTO:IDA - AT- FATIMA APARECIDA DOS SANTOS - PROT:11010114{SM6331/2022(115,00)}         MATERIAL DE CONSUMO - PEDIDO:6331/2024 - 2022ND004948 - PREG:001/2022MATERIAL DE EXPEDIENTE - PORTA-LÁPIS-CLIPE-LEMBRETE MEMO.091/2022/IDA  - S.E.I 23106.129009/2022-32",2835,MAT. CONSUMO,ALEGRENSE DISTRIBUIDORA E REPRESENTACAO COMERCIAL LTDA,null,UNIVERSIDADE DE BRASÍLIA,null,115.00,ordinário,605
PRÓPRIOS -  PREST.SERVICOS FUB/FUNDO,73.50,FISCAL,PR 1/2022 - UNB,2022,03/11/2022,CRÉDITOS DISTRIBUÍDOS PARA AS UNIDADES ACADÊMICAS,null,null,null,FUNCIONAMENTO DE INSTITUICOES FEDERAI - NO DF,23106.119475/2021-29,"C.CUSTO:IDA - AT- FATIMA APARECIDA DOS SANTOS - PROT:11010114{SM6332/2022(73,50)}         MATERIAL DE CONSUMO - PEDIDO:6332/2024 - 2022ND004948 - PREG:001/2022MATERIAL DE COPA E COZINHA - COPO DE VIDRO - CAPACIDADE 300 MLMEMO.091/2022/IDA  - S.E.I 23106.129009/2022-32",2834,MAT. CONSUMO,M.Z.A.S SUPERMERCADO EIRELI,null,UNIVERSIDADE DE BRASÍLIA,null,73.50,ordinário,605
PRÓPRIOS -  PREST.SERVICOS FUB/FUNDO,200.97,FISCAL,PR 1/2022 - UNB,2022,03/11/2022,CRÉDITOS DISTRIBUÍDOS PARA AS UNIDADES ACADÊMICAS,null,null,null,FUNCIONAMENTO DE INSTITUICOES FEDERAI - NO DF,23106.119475/2021-29,"C.CUSTO:IDA - AT- FATIMA APARECIDA DOS SANTOS - PROT:11010114{SM6333/2022(200,97)}         MATERIAL DE CONSUMO - PEDIDO:6333/2024 - 2022ND004948 - PREG:001/2022MATERIAL DE COPA E COZINHA - XÍCARA DE CAFÉ DE PORCELANA - 50 MLMEMO.091/2022/IDA  - S.E.I 23106.129009/2022-32",2833,MAT. CONSUMO,NOVA MESA DISTRIBUIDORA DE ALIMENTOS E UTILIDADES LTDA,null,UNIVERSIDADE DE BRASÍLIA,null,200.97,ordinário,605
PRÓPRIOS -  PREST.SERVICOS FUB/FUNDO,2213.40,FISCAL,PR 1/2021 - UNB,2022,03/11/2022,CRÉDITOS DISTRIBUÍDOS PARA AS UNIDADES ACADÊMICAS,null,null,null,FUNCIONAMENTO DE INSTITUICOES FEDERAI - NO DF,23106.130984/2022-93,"C. CUSTO: IDA.     PROT:11010114(2213,40)         SEI 23106.130984/2022-93.SERVIÇOS DE COFFEE BREAK PARA EVENTO DE POSSE DA DIREÇÃO DO INSTITUTO DE ARTES.2022ND004932.       MEMO 92/2022/IDA.",2832,SERV. PESSOA JURÍDICA,ISM GOMES DE MATTOS EIRELI,null,UNIVERSIDADE DE BRASÍLIA,null,2213.40,ordinário,605
PRÓPRIOS -  PREST.SERVICOS FUB/FUNDO,198.90,FISCAL,PR 1/2022 - UNB,2022,03/11/2022,CRÉDITOS DISTRIBUÍDOS PARA AS UNIDADES ACADÊMICAS,null,null,null,FUNCIONAMENTO DE INSTITUICOES FEDERAI - NO DF,23106.119475/2021-29,"C.CUSTO:IDA - AT- FATIMA APARECIDA DOS SANTOS - PROT:11010114{SM6334/2022(198,90)}         MATERIAL DE CONSUMO - PEDIDO:6334/2024 - 2022ND004948 - PREG:001/2022MATERIAL ELÉTRICO ELETRÔNICO - PILHA - TAMANHO PEQUENA - TIPO ALCALINAMEMO.091/2022/IDA  - S.E.I 23106.129009/2022-32",2831,MAT. CONSUMO,RRA COMERCIO ELETRO-FONIA LTDA,null,UNIVERSIDADE DE BRASÍLIA,null,198.90,ordinário,605
PRÓPRIOS -  PREST.SERVICOS FUB/FUNDO,1421.24,FISCAL,PR 7/2022 - UNB,2022,03/11/2022,CRÉDITOS DISTRIBUÍDOS PARA AS UNIDADES ACADÊMICAS,null,null,null,FUNCIONAMENTO DE INSTITUICOES FEDERAI - NO DF,23106.054297/2021-83,"C. CUSTO: ICS.     PROT:11010118{SM6055/2022(1421,24)}        SEI 23106.120109/2022-01.AQUISIÇÃO DE REFRIGERADOR FRIGOBAR.SALDO SIAFI (8908767).    DESPACHO ICH/FIL/PPGFIL 8797438.",2830,EQUIP. MATERIAL PERMANENTE,ARGOS LTDA,null,UNIVERSIDADE DE BRASÍLIA,null,1421.24,ordinário,605
RECURSOS ORDINÁRIOS,3850.00,FISCAL,PR,2022,03/11/2022,FUNCIONAMENTO GERAL,null,null,null,FUNCIONAMENTO DE INSTITUICOES FEDERAI - NO DF,23106.115291/2022-71,"C.CUSTO : SPI. PROT:110147(3850,00)// SEI 23106.115291/2022-71MANUTENÇÃO E CONSERV. DE BENS E IMÓVEIS//2022ND004915// CONTRATO 1223/2022SEI N.23106.115291/2022-71",2828,SERV. PESSOA JURÍDICA,CONSTRUTORA ENGEMEGA LTDA,null,UNIVERSIDADE DE BRASÍLIA,null,3850.00,global,605
PRÓPRIOS -  PREST.SERVICOS FUB/FUNDO,0.00,FISCAL,PR,2022,03/11/2022,CRÉDITOS DISTRIBUÍDOS PARA AS UNIDADES ACADÊMICAS,null,10000.00,null,FUNCIONAMENTO DE INSTITUICOES FEDERAI - NO DF,23106.131227/2022-37,"C.CUSTO:FCI//  PASSAGEM NACIONAL// MEMORANDO 32 (8907703)PROT:110133(10000,00)// 2022ND004934// SEI N.23106.131227/2022-37",2816,PASSAGENS,VOETUR TURISMO E REPRESENTACOES LTDA,null,UNIVERSIDADE DE BRASÍLIA,null,10000.00,estimativo,605
PRÓPRIOS -  PREST.SERVICOS FUB/FUNDO,7500.00,FISCAL,DL 10029/2022 - UNB,2022,09/11/2022,CRÉDITOS DISTRIBUÍDOS PARA AS UNIDADES ADMINISTRATIVAS,null,null,null,FUNCIONAMENTO DE INSTITUICOES FEDERAI - NO DF,23106.115783/2022-88,"C. CUSTO: DPG SEI:23106.115783/2022-66PAGAMENTO DE PUBLICAÇÃO DE ARTIGO PROT:110108(7500,00)MEMO.087/2022/DPG / DIRIC 2022ND004850 - DISP:10029/202228º CONGRESSO DE INICIAÇÃO CIENTÍFICA DA UNB",2809,SERV. PESSOA JURÍDICA,INTERFACE - SOLUÇÕES EM BUSINESS E TI LTDA,null,UNIVERSIDADE DE BRASÍLIA,null,7500.00,estimativo,605
PRÓPRIOS -  PREST.SERVICOS FUB/FUNDO,2529.60,FISCAL,PR 1/2021 - UNB,2022,01/11/2022,CRÉDITOS DISTRIBUÍDOS PARA AS UNIDADES ACADÊMICAS,null,null,null,FUNCIONAMENTO DE INSTITUICOES FEDERAI - NO DF,23106.128380/2022-87,"C. CUSTO: ILD                              SEI:  23106.128380/2022-87ATT:   GLADYS PLENS DE QUEVEDO             2022ND004907MEMO.S.N/2022/ILD                          PROT:11010119(2529,60)SERVIÇOS DE TERCEIROS - PEDIDO:0000/2022 - CONTRATO: 031/2021FORNECIMENTO DE ALIMENTAÇÃO - FORNECIMENTO DE REFEIÇÕES -  COFFEE BREAK",2807,SERV. PESSOA JURÍDICA,ISM GOMES DE MATTOS EIRELI,null,UNIVERSIDADE DE BRASÍLIA,null,2529.60,global,605
PRÓPRIOS -  PREST.SERVICOS FUB/FUNDO,1003.85,FISCAL,PR 28/2022 - UNB,2022,01/11/2022,CRÉDITOS DISTRIBUÍDOS PARA AS UNIDADES ACADÊMICAS,null,null,null,FUNCIONAMENTO DE INSTITUICOES FEDERAI - NO DF,23106.054309/2021-70,"C. CUSTO: FUP.        PROT:110129{SM6201/2022(1003,85)}         SEI 23106.125551/2022-16.AQUISIÇÃO DE PURIFICADOR DE ÁGUA.ANEXO SALDO SIAFI (8889648).      DESPACHO FUP/GCF 8853727.      PREGÃO 28/2022.",2805,EQUIP. MATERIAL PERMANENTE,BSB CAPITAL SOLUCOES LTDA,null,UNIVERSIDADE DE BRASÍLIA,null,1003.85,ordinário,605
PRÓPRIOS -  PREST.SERVICOS FUB/FUNDO,10980.00,FISCAL,DL 11572/2022 - UNB,2022,09/11/2022,CRÉDITOS DISTRIBUÍDOS PARA AS UNIDADES ACADÊMICAS,null,null,null,FUNCIONAMENTO DE INSTITUICOES FEDERAI - NO DF,23106.115720/2022-43,"C. CUSTO: FGA SEI:23106.115720/2022-18ATT:KLEBER SEBASTIAO RODRIGUES 2022ND004812MEMO.S.N/2022/FGA/ADM/COMPRASC PROT:110132(10980,00)MATERIAL DE CONSUMO - PEDIDO:0000/2022 - DISPENSA DE LICITAÇÃO: 11572/2022MATERIAL DE CONSUNO - MATERIAL TIC - PLACAS DE DESENVOLVIMENTO FPGA",2804,MAT. CONSUMO,FGP SOLUTIONS LTDA,null,UNIVERSIDADE DE BRASÍLIA,null,10980.00,global,605
RECURSOS DIR.ARRECADADOS(PROPRIOS)-FUB -,20650.00,FISCAL,PR 38/2022 - UNB,2022,31/10/2022,ARRECADACOES DA FAL - HORTIFRUTIGRANJEIRO,null,null,null,FUNCIONAMENTO DE INSTITUICOES FEDERAI - NO DF,23106.053722/2022-06,"C.CUSTO: FAL - AT- REGINALDO SERGIO PEREIRA - PROT:110116{SM6261/2022(20650,00)}         MATERIAL DE CONSUMO - PEDIDO:6261/2022 - 2022ND004848 - PREG:038/2022SEMENTES MUDAS DE PLANTAS E INSUMOS - FERTILIZANTES - HERBICIDA MEMO.108/2022/FAL -   S.E.I 23106.127087/2022-01",2795,MAT. CONSUMO,PLANTIUN DISTRIBUIDORA LTDA EPP,null,UNIVERSIDADE DE BRASÍLIA,null,20650.00,ordinário,605
RECURSOS DIR.ARRECADADOS(PROPRIOS)-FUB -,105298.10,FISCAL,PR 38/2022 - UNB,2022,31/10/2022,ARRECADACOES DA FAL - HORTIFRUTIGRANJEIRO,null,null,null,FUNCIONAMENTO DE INSTITUICOES FEDERAI - NO DF,23106.053722/2022-06,"C.CUSTO: FAL - AT- REGINALDO SERGIO PEREIRA - PROT:110116{SM6259/2022(105298,10)}         MATERIAL DE CONSUMO - PEDIDO:6259/2022 - 2022ND004848 - PREG:038/2022SEMENTES MUDAS DE PLANTAS E INSUMOS - FERTILIZANTES - HERBICIDA MEMO.108/2022/FAL -   S.E.I 23106.127087/2022-01",2794,MAT. CONSUMO,AGROBELIA - INSUMOS AGRICOLAS LTA,null,UNIVERSIDADE DE BRASÍLIA,null,105298.10,ordinário,605
PRÓPRIOS -  PREST.SERVICOS FUB/FUNDO,69104.50,FISCAL,PR 38/2022 - UNB,2022,31/10/2022,CRÉDITOS DISTRIBUÍDOS PARA AS UNIDADES ADMINISTRATIVAS,null,null,null,FUNCIONAMENTO DE INSTITUICOES FEDERAI - NO DF,23106.053722/2022-06,"C.CUSTO: FAL - AT- REGINALDO SERGIO PEREIRA - PROT:110116{SM6257/2022(69104,50)}         MATERIAL DE CONSUMO - PEDIDO:6257/2022 - 2022ND004849 - PREG:038/2022SEMENTES MUDAS DE PLANTAS E INSUMOS - FERTILIZANTES - HERBICIDA MEMO.108/2022/FAL -   S.E.I 23106.127087/2022-0",2793,MAT. CONSUMO,AGROBELIA - INSUMOS AGRICOLAS LTA,null,UNIVERSIDADE DE BRASÍLIA,null,69104.50,ordinário,605
RECURSOS DIRETAM.ARREC FUNDAÇÃO UNIV.BRASÍLIA,17011.08,FISCAL,PR 28/2022 - UNB,2022,31/10/2022,FUNCIONAMENTO GERAL,null,null,null,FUNCIONAMENTO DE INSTITUICOES FEDERAI - NO DF,23106.054309/2021-70,"C.CUSTO:PRC// AQUISIÇÃO DE BEBEDOURO INDUSTRIAL// REQ. 6208/2022PROT:110105(17011,08)// SEI N.23106.125899/2022-11// 2022ND004654",2792,EQUIP. MATERIAL PERMANENTE,ARGOS LTDA,null,UNIVERSIDADE DE BRASÍLIA,null,17011.08,ordinário,605
RECURSOS DIRETAM.ARREC FUNDAÇÃO UNIV.BRASÍLIA,53255.90,FISCAL,PR 28/2022 - UNB,2022,31/10/2022,FUNCIONAMENTO GERAL,null,null,null,FUNCIONAMENTO DE INSTITUICOES FEDERAI - NO DF,23106.054309/2021-70,"C.CUSTO:PRC//  AQUISIÇÃO DE BEBEDOURO INDUSTRIAL// REQ. 6207/2022PROT:110105(53255,90)// MEMORANDO 259 (8857409)// SEI N.23106.125899/2022-11",2791,EQUIP. MATERIAL PERMANENTE,ARGOS LTDA,null,UNIVERSIDADE DE BRASÍLIA,null,53255.90,ordinário,605
PRÓPRIOS -  PREST.SERVICOS FUB/FUNDO,110.00,FISCAL,PR 1/2022 - UNB,2022,27/10/2022,CRÉDITOS DISTRIBUÍDOS PARA AS UNIDADES ACADÊMICAS,null,null,null,FUNCIONAMENTO DE INSTITUICOES FEDERAI - NO DF,23106.119475/2021-29,"C.CUSTO: IDA -AT- FATIMA APARECIDA DOS SANTOS- PROT:11010114{SM6268/2022(110,00)}         MATERIAL DE CONSUMO-PEDIDO:6268/2022 - 2022ND004874 - PREG:001/2022MATERIAL DE COPA E COZINHA - COADOR DE CAFÉ DE PANOMEMO.077/2022/IDA  -  S.E.I 23106.127250/2022-27",2790,MAT. CONSUMO,G B LEITE COMERCIO E MERCEARIA,null,UNIVERSIDADE DE BRASÍLIA,null,110.00,ordinário,605
RECURSOS ORDINÁRIOS,500.00,FISCAL,PR,2022,27/10/2022,CRÉDITOS PARA APOIO ÀS AÇÕES DE DECANATOS ACADÊMICOS,null,null,null,FUNCIONAMENTO DE INSTITUICOES FEDERAI - NO DF,23106.028402/2022-18,"C. CUSTO: DPG                           SEI:23106.028402/2022-18PAGAMENTO DE SEGURO VIAGEM              PROT:110108(500,00)MEMO.S.N/2022/DPG/APAF                  2022ND004856 - CONTRATO:125/2018",2788,SERV. PESSOA JURÍDICA,VOETUR TURISMO E REPRESENTACOES LTDA,null,UNIVERSIDADE DE BRASÍLIA,null,500.00,estimativo,605
RECURSOS ORDINÁRIOS,18000.00,FISCAL,PR,2022,27/10/2022,CRÉDITOS PARA APOIO ÀS AÇÕES DE DECANATOS ACADÊMICOS,null,null,null,FUNCIONAMENTO DE INSTITUICOES FEDERAI - NO DF,23106.028402/2022-18,"C. CUSTO: DPG                                     SEI:23106.028402/2022-18PAGAMENTO DE PASSAGEM  INTERNACIONAL              PROT:110108(18000,00)MEMO.S.N/2022/DPG/APAF                            2022ND004856 - CONTRATO:125/2018",2787,PASSAGENS,VOETUR TURISMO E REPRESENTACOES LTDA,null,UNIVERSIDADE DE BRASÍLIA,null,18000.00,estimativo,605
RECURSOS DIRETAM.ARREC FUNDAÇÃO UNIV.BRASÍLIA,0.00,FISCAL,PR 206/2020 - UNB,2022,01/06/2022,FUNCIONAMENTO GERAL,null,28665.00,null,FUNCIONAMENTO DE INSTITUICOES FEDERAI - NO DF,23106.057698/2022-76,23106.057698/2022-76,2786,EQUIP. MATERIAL PERMANENTE,POSITIVO TECNOLOGIA S.A.,null,UNIVERSIDADE DE BRASÍLIA,null,28665.00,global,605
PRÓPRIOS -  PREST.SERVICOS FUB/FUNDO,2850.00,FISCAL,PR 201/2022 - UNB,2022,27/10/2022,CRÉDITOS DISTRIBUÍDOS PARA AS UNIDADES ACADÊMICAS,null,null,null,FUNCIONAMENTO DE INSTITUICOES FEDERAI - NO DF,23106.074895/2020-98,"C.CUSTO: FSD - AT- LAUDIMAR ALVES DE OLIVEIRA - PROT:11010110{SM4598/2022(2850,00)}         MATERIAL DE CONSUMO - PEDIDO:4598/2022 - 2022ND004883 - PREG:201/2022MATERIAL TIC MATERIAL DE CONSUMO - FONE OUVIDO -  TIPO HEADSET - POTÊNCIA 100 (MÁXIMA) MMEMO.S.N/2022/FS-   S.E.I 23106.128432/2022-15",2785,EXCLUSIVO PARA CONV. DNOC - MATERIAL DE CONSUMO,RF PRODUCOES ARTISTICAS LTDA,null,UNIVERSIDADE DE BRASÍLIA,null,2850.00,ordinário,605
PRÓPRIOS -  PREST.SERVICOS FUB/FUNDO,2600.00,FISCAL,PR 201/2022 - UNB,2022,27/10/2022,CRÉDITOS DISTRIBUÍDOS PARA AS UNIDADES ACADÊMICAS,null,null,null,FUNCIONAMENTO DE INSTITUICOES FEDERAI - NO DF,23106.074895/2020-98,"C.CUSTO: FSD -AT- LAUDIMAR ALVES DE OLIVEIRA - PROT:11010110{SM4597/2022(2600,00)}         MATERIAL DE CONSUMO - PEDIDO:4597/2022 - 2022ND004883 - PREG:201/2022MATERIAL TIC MATERIAL DE CONSUMO - CÂMERA VIDEOCONFERÊNCIA - RESOLUÇÃO 1080 X 1920MEMO.S.N/2022/FS-   S.E.I 23106.128432/2022-15",2784,EXCLUSIVO PARA CONV. DNOC - MATERIAL DE CONSUMO,RESILIRE S F COMERCIO LTDA,null,UNIVERSIDADE DE BRASÍLIA,null,2600.00,ordinário,605
PRÓPRIOS -  PREST.SERVICOS FUB/FUNDO,220.00,FISCAL,PR 1/2022 - UNB,2022,27/10/2022,CRÉDITOS DISTRIBUÍDOS PARA AS UNIDADES ACADÊMICAS,null,null,null,FUNCIONAMENTO DE INSTITUICOES FEDERAI - NO DF,23106.119475/2021-29,"C.CUSTO: IDA -AT- SUSAN CRISTINA CAPITULINO - PROT:11010114{SM6260/2022(220,00)}         MATERIAL DE CONSUMO-PEDIDO:6260/2022 - 2022ND004876 - PREG:001/2022MATERIAL DE COPA E COZINHA - COADOR DE CAFÉ - PANOMEMO.135/2022/CEN -   S.E.I 23106.128963/2022-16",2777,MAT. CONSUMO,G B LEITE COMERCIO E MERCEARIA,null,UNIVERSIDADE DE BRASÍLIA,null,220.00,ordinário,605
RECURSOS ORDINÁRIOS,1114420.11,FISCAL,PR,2022,27/10/2022,PORTARIA,null,null,null,FUNCIONAMENTO DE INSTITUICOES FEDERAI - NO DF,23106.120948/2022-11,"C.CUSTO : DTER                S.E.I Nº : 23106.120948/2022-11MEMO.209/2022/DCA/CDE/DGDE    2022ND004853 -   CONTRATO: 081/2022ATT - JOSUE BARBOSA GUEDES -  PROT:11011007(1114420,11) -  DISP: 85840/2022LOCACAO DE MAO-DE-OBRA - VIGILANCIA OSTENSIVA -  AGENTE DE PORTARIA  - SUPERVISOR DE PORTARIA",2776,LOC. MÃO-DE-OBRA,G&E SERVIÇOS TERCEIRIZADOS LTDA,null,UNIVERSIDADE DE BRASÍLIA,null,1114420.11,global,605
PRÓPRIOS -  PREST.SERVICOS FUB/FUNDO,11890.00,FISCAL,DL 10030/2022 - UNB,2022,01/11/2022,CRÉDITOS DISTRIBUÍDOS PARA AS UNIDADES ACADÊMICAS,null,null,null,FUNCIONAMENTO DE INSTITUICOES FEDERAI - NO DF,23106.120928/2022-77,"C. CUSTO: FAV. PROT: 11010105{SM6185/2022(11890,00)} SEI 23106.120928/2022-41.AQUISIÇÃO DE ESTUFA DIGITAL DE SECAGEM COM CIRCULAÇÃO RENOVADA.2022ND001863.",2774,EQUIP. MATERIAL PERMANENTE,PRO-LAB MATERIAIS PARA LABORATORIOS LTDA,null,UNIVERSIDADE DE BRASÍLIA,null,11890.00,ordinário,605
RECURSOS ORDINÁRIOS,1205915.71,FISCAL,PR,2022,27/10/2022,SERVICOS COMUNS DE ENGENHARIA-PREGAO 306/2019,null,null,null,FUNCIONAMENTO DE INSTITUICOES FEDERAI - NO DF,23106.127495/2022-54,"C. CUSTO: PRC.       PROT:110105(1205915,71)        SEI 23106.127495/2022-54.SERVIÇOS DE MANUTENÇÃO E REFORMA PREDIAL.      CONTRATO 617/2019. 2022ND004846.",2773,SERV. PESSOA JURÍDICA,GÊNNESIS ENGENHARIA E CONSULTORIA LTDA,null,UNIVERSIDADE DE BRASÍLIA,null,1205915.71,global,605
TAXA DE ALUNO ESPECIAL -FUB,3162.00,FISCAL,PR 1/2021 - UNB,2022,27/10/2022,PROG DE POS-GRADUACAO EM ENFERMAGEM - NFPPGE,null,null,null,FUNCIONAMENTO DE INSTITUICOES FEDERAI - NO DF,23106.124620/2022-74,"C. CUSTO: ENF.       PROT:1101011007(3162,00)       SEI 23106.124620/2022-74.SERVIÇOS DE COFFEE BREAK PARA EVENTO DE ACOLHIMENTO DISCENTE DO PPGENF.2022ND004854.      MEMO PPGENF (8876840).",2769,SERV. PESSOA JURÍDICA,ISM GOMES DE MATTOS EIRELI,null,UNIVERSIDADE DE BRASÍLIA,null,3162.00,ordinário,605
PRÓPRIOS -  PREST.SERVICOS FUB/FUNDO,598.00,FISCAL,PR 306/2021 - UNB,2022,26/10/2022,CRÉDITOS DISTRIBUÍDOS PARA AS UNIDADES ACADÊMICAS,null,null,null,FUNCIONAMENTO DE INSTITUICOES FEDERAI - NO DF,23106.127181/2022-51,"C.CUSTO : FGA                      S.E.I Nº : 23106.127181/2022-51MEMO.S.N/2022/FGA/ADM/COMPRAS      2022ND004839ATT - KLEBER SEBASTIAO RODRIGUES - PROT:110132(598,00) - PREGÃO - 306/2021MAT.P/MANUT.DE BENS MÓVEIS - PNEU PARA CARRINHO DE MÃO",2758,MAT. CONSUMO,GMO SOLUCOES COMERCIAIS EIRELI,null,UNIVERSIDADE DE BRASÍLIA,null,598.00,global,605
PRÓPRIOS -  PREST.SERVICOS FUB/FUNDO,16800.00,FISCAL,DL 10027/2022 - UNB,2022,28/10/2022,CRÉDITOS DISTRIBUÍDOS PARA AS UNIDADES ADMINISTRATIVAS,null,null,null,FUNCIONAMENTO DE INSTITUICOES FEDERAI - NO DF,23106.115308/2022-12,"C.CUSTO:DPG// LOCAÇÃO E MONTAGEM DE PAINEIS/TOTENS// SEI N.23106.115308/2022-90PROT:110108(16800,00)// MEMORANDO 086/2022 (8751195)// 2022ND004813",2757,SERV. PESSOA JURÍDICA,SENSES EVENTOS LTDA,null,UNIVERSIDADE DE BRASÍLIA,null,16800.00,ordinário,605
PRÓPRIOS -  PREST.SERVICOS FUB/FUNDO,20000.00,FISCAL,PR,2022,26/10/2022,CRÉDITOS DISTRIBUÍDOS PARA AS UNIDADES ACADÊMICAS,null,null,null,FUNCIONAMENTO DE INSTITUICOES FEDERAI - NO DF,23106.126772/2022-10,"C. CUSTO: LET.   PROT:11010119(20000,00)     SEI 23106.126772/2022-10.   PASSAGENS INTERNACIONAIS.2022ND004819.        MEMO 160/2022/IL/LET.",2756,PASSAGENS,VOETUR TURISMO E REPRESENTACOES LTDA,null,UNIVERSIDADE DE BRASÍLIA,null,20000.00,estimativo,605
RECURSOS ORDINÁRIOS,135888.97,FISCAL,PR 502/2021 - UNB,2022,26/10/2022,ACERVO BIBLIOGRÁFICO,null,null,null,FUNCIONAMENTO DE INSTITUICOES FEDERAI - NO DF,23106.056674/2021-19,"C.CUSTO : BCE                       S.E.I Nº : 23106.056674/2021-19 MEMO.001/2021/BCE/FDA               2022ND004808 -   CONTRATO: 904/2022ATT - KATLEN DAYANE ALVES SOARES -  PROT:110113(135888,97) - PREGÃO - 502/2021EQUIP. E MATERIAL PERMANENTE - COLECOES E MAT. BIBLIOGRAFICOS - MAT. BIBLIOGRÁFICO ESTRANGEIRO",2749,EQUIP. MATERIAL PERMANENTE,LIVRARIA GONCALVES MIRANDA LTDA - ME,null,UNIVERSIDADE DE BRASÍLIA,null,135888.97,global,605
RECURSOS ORDINÁRIOS,108.75,FISCAL,PR 20/2022 - UNB,2022,26/10/2022,MATRIZ HVET_,null,null,null,20RK - FUNCIONAMENTO DOS HOSPITAL VETERINARIOS,23106.031067/2022-27,"C.CUSTO:HVET//  AQUISIÇÃO DE ATADURAS// REQ. 6194/2022PROT:1101010501(108,75)// 2022ND4721// SEI N.23106.125324/2022-91",2739,MAT. CONSUMO,D PRONTO NUTRIÇÃO ANIMAL E PRODUTOS VETERINÁRIOS LTDA,null,UNIVERSIDADE DE BRASÍLIA,null,108.75,ordinário,605
RECURSOS ORDINÁRIOS,125.00,FISCAL,PR 35/2022 - UNB,2022,26/10/2022,MATRIZ HVET_,null,null,null,20RK - FUNCIONAMENTO DOS HOSPITAL VETERINARIOS,23106.079543/2022-91,"C.CUSTO:HVET// AQUISIÇÃO DE MEDICAMENTOS// REQ. 6195/2022PROT:1101010501(125,00)//  SEI N.23106.125324/2022-91// 2022ND004721",2738,MAT. CONSUMO,D PRONTO NUTRIÇÃO ANIMAL E PRODUTOS VETERINÁRIOS LTDA,null,UNIVERSIDADE DE BRASÍLIA,null,125.00,ordinário,605
RECURSOS ORDINÁRIOS,1745.00,FISCAL,PR 17/2022 - UNB,2022,26/10/2022,MATRIZ HVET_,null,null,null,20RK - FUNCIONAMENTO DOS HOSPITAL VETERINARIOS,23106.030293/2022-91,"C.CUSTO:HVET//  AQUISIÇÃO DE MEDICAMENTOS// REQ. 6196/2022PROT:1101010501(1745,00)// DESPACHO FAV / HVET / HVETINHO (8851217)// 2022ND004721",2737,MAT. CONSUMO,RENATO MACHADO PINTO,null,UNIVERSIDADE DE BRASÍLIA,null,1745.00,ordinário,605
TAXA DE ALUNO ESPECIAL -FUB,3800.00,FISCAL,PR,2022,25/10/2022,PROGRAMA DE POS-GRADUACAO EM TRANSPORTES PPGT,null,null,null,FUNCIONAMENTO DE INSTITUICOES FEDERAI - NO DF,23106.124315/2022-82,"C. CUSTO: PPGT                                SEI: 23106.124315/2022-82PAGAMENTO DE PASSAGEM NACIONAL                PROT:110101110201(3800,00)MEMO.052/2022/FT/ENC/PPGT                     2022ND004726 - CONT:125/2018",2733,PASSAGENS,VOETUR TURISMO E REPRESENTACOES LTDA,null,UNIVERSIDADE DE BRASÍLIA,null,3800.00,estimativo,605
PRÓPRIOS -  PREST.SERVICOS FUB/FUNDO,1539.00,FISCAL,PR 201/2022 - UNB,2022,25/10/2022,CRÉDITOS DISTRIBUÍDOS PARA AS UNIDADES ACADÊMICAS,null,null,null,FUNCIONAMENTO DE INSTITUICOES FEDERAI - NO DF,23106.074895/2020-98,"C. CUSTO: IE.      PROT:11010115{SM5805/2022(1539,00)}        SEI 23106.115503/2022-10.AQUISIÇÃO DE FONE DE OUVIDO HEADSET.2022ND004793.           MEMO 5/2022/IE/CIC.        PREGÃO 201/2022.",2728,MAT. CONSUMO,RF PRODUCOES ARTISTICAS LTDA,null,UNIVERSIDADE DE BRASÍLIA,null,1539.00,ordinário,605
PRÓPRIOS -  PREST.SERVICOS FUB/FUNDO,1248.00,FISCAL,PR 201/2022 - UNB,2022,25/10/2022,CRÉDITOS DISTRIBUÍDOS PARA AS UNIDADES ACADÊMICAS,null,null,null,FUNCIONAMENTO DE INSTITUICOES FEDERAI - NO DF,23106.074895/2020-98,"C. CUSTO: IE.      PROT:11010115{SM5804/2022(1248,00)}        SEI 23106.115503/2022-10.AQUISIÇÃO DE CÂMERA VIDEOCONFERÊNCIA.2022ND004793.             MEMO 5/2022/IE/CIC.",2727,MAT. CONSUMO,RESILIRE S F COMERCIO LTDA,null,UNIVERSIDADE DE BRASÍLIA,null,1248.00,ordinário,605
PRÓPRIOS -  PREST.SERVICOS FUB/FUNDO,4686.00,FISCAL,PR,2022,25/10/2022,CRÉDITOS DISTRIBUÍDOS PARA AS UNIDADES ACADÊMICAS,null,null,null,FUNCIONAMENTO DE INSTITUICOES FEDERAI - NO DF,23106.105213/2022-68,"C. CUSTO: FAV.      PROT:11010105(4686,00)      SEI 23106.105213/2022-68.FRETE AÉREO INTERNACIONAL. 2022ND004680.      MEMO 03-SRM/2022/FAV.",2723,SERV. PESSOA JURÍDICA,WEGH ASSESSORIA E LOGISTICA INTERNACIONAL LTDA - EPP,null,UNIVERSIDADE DE BRASÍLIA,null,4686.00,estimativo,605
RECURSOS ORDINÁRIOS,10000.00,FISCAL,PR,2022,25/10/2022,LOCAÇÃO DE TRANSPORTE POR DEMANDAS DAS UNIDADES,null,null,null,"FOMENTO AS ACOES DE GRADUACAO, POS-GR - NO DF",23106.028391/2022-68,"C. CUSTO: DEX.     PROT:110107(10000,00)      SEI 23106.028391/2022-68.LOCAÇÃO DE VEÍCULOS PARA TRANSPORTE NO DF.2022ND004587.     DESPACHO DEX 8841879.",2720,PASSAGENS,EXPRESSO JK TRANSPORTES LTDA,null,UNIVERSIDADE DE BRASÍLIA,null,10000.00,global,605
PRÓPRIOS -  PREST.SERVICOS FUB/FUNDO,14.70,FISCAL,PR 18/2021 - UNB,2022,01/06/2022,CRÉDITOS DISTRIBUÍDOS PARA AS UNIDADES ACADÊMICAS,null,null,null,FUNCIONAMENTO DE INSTITUICOES FEDERAI - NO DF,23106.032985/2021-92,"C.CUSTO: IFD -AT- MARCELLO FERREIRA - PROT:11010116{SM2713/2022(14,70)} MATERIAL DE CONSUMO-PEDIDO:2713/2022 -2022ND002412 -PREG:028/2021 MATERIAL DE LIMPEZA E HIGIENE - RESERVATÓRIO DE ÁLCOOL EM GEL - 800ML MEMO.023/2022/IF/MNPEF - S.E.I 23106.065922/2022-01",2713,MAT. CONSUMO,ALFAMAX COMERCIO DE PRODUTOS PARA LIMPEZA E ESCRITORIO LTDA EPP,null,UNIVERSIDADE DE BRASÍLIA,null,14.70,global,605
RECURSOS DIRETAM.ARREC FUNDAÇÃO UNIV.BRASÍLIA,342.00,FISCAL,PR 201/2022 - UNB,2022,24/10/2022,CUSTOS INDIRETOS DAS UNIDADES - RECOMPOSICAO,null,null,null,FUNCIONAMENTO DE INSTITUICOES FEDERAI - NO DF,23106.074895/2020-98,"C. CUSTO: FEF.     PROT:11010108{SM6229/2022(342,00)}        SEI 23106.126324/2022-16.AQUISIÇÃO DE FONE DE OUVIDO HEADSET.2022ND004704.    MEMO 123/2022/FEF/FINANCEIRO.",2712,MAT. CONSUMO,RF PRODUCOES ARTISTICAS LTDA,null,UNIVERSIDADE DE BRASÍLIA,null,342.00,ordinário,605
RECURSOS DIRETAM.ARREC FUNDAÇÃO UNIV.BRASÍLIA,312.00,FISCAL,PR 201/2022 - UNB,2022,24/10/2022,CUSTOS INDIRETOS DAS UNIDADES - RECOMPOSICAO,null,null,null,FUNCIONAMENTO DE INSTITUICOES FEDERAI - NO DF,23106.074895/2020-98,"C. CUSTO: FEF.     PROT:11010108{SM6224/2022(312,00)}        SEI 23106.126324/2022-16.AQUISIÇÃO DE CÂMERA VIDEOCONFERÊNCIA.2022ND004704.    MEMO 123/2022/FEF/FINANCEIRO.",2711,MAT. CONSUMO,RESILIRE S F COMERCIO LTDA,null,UNIVERSIDADE DE BRASÍLIA,null,312.00,ordinário,605
PRÓPRIOS -  PREST.SERVICOS FUB/FUNDO,3939.31,FISCAL,PR 7/2022 - UNB,2022,24/10/2022,CRÉDITOS DISTRIBUÍDOS PARA AS UNIDADES ADMINISTRATIVAS,null,null,null,FUNCIONAMENTO DE INSTITUICOES FEDERAI - NO DF,23106.054297/2021-83,"C.CUSTO:PRC// AQUISIÇÃO DE FREEZER HORIZONTAL 500L// REQ. 6116/2022PROT:110105(3939,31)// 2022ND004707// MEMORANDO 260 (8858007)",2710,EQUIP. MATERIAL PERMANENTE,MAYAS COMERCIAL DE PRODUTOS E SERVICOS EIRELI,null,UNIVERSIDADE DE BRASÍLIA,null,3939.31,ordinário,605
PRÓPRIOS -  PREST.SERVICOS FUB/FUNDO,3070.00,FISCAL,PR 7/2022 - UNB,2022,24/10/2022,CRÉDITOS DISTRIBUÍDOS PARA AS UNIDADES ACADÊMICAS,null,null,null,FUNCIONAMENTO DE INSTITUICOES FEDERAI - NO DF,23106.054297/2021-83,"C. CUSTO: IDA                            SEI:23106.047161/2021-17 ATT: RITA DE CASSIA DE ALMEIDA           2021ND004678MEMO.126/2022/IDA/CEN                    PROT:11010114{SM5889/2022(3070,00)}MATERIAL DE PERMANENTE - PEDIDO:5889/2022 - PREG:007/2022  APA.E UTEN.DOMÉSTICOS - REFRIG. DUPLEX - CAPACIDADE REFRIG. 300 L",2708,EQUIP. MATERIAL PERMANENTE,M FELIPE GALVAO,null,UNIVERSIDADE DE BRASÍLIA,null,3070.00,ordinário,605
RECURSOS ORDINÁRIOS,3000.00,FISCAL,PR,2022,24/10/2022,CRÉDITOS PARA APOIO ÀS AÇÕES DE DECANATOS ACADÊMICOS,null,null,null,"FOMENTO AS ACOES DE GRADUACAO, POS-GR - NO DF",23106.028391/2022-68,"C. CUSTO: FDD                                 SEI:23106.028391/2022-68PAGAMENTO DE PASSAGEM SERVIDOR NACIONAL       PROT:11010106(3000,00)MEMO.S.N/2022/FDD                             2022ND004696 - CONTRATO: 125/2018",2703,PASSAGENS,VOETUR TURISMO E REPRESENTACOES LTDA,null,UNIVERSIDADE DE BRASÍLIA,null,3000.00,estimativo,605
RECURSOS DIRETAM.ARREC FUNDAÇÃO UNIV.BRASÍLIA,18000.00,FISCAL,PR,2022,24/10/2022,CUSTOS INDIRETOS DAS UNIDADES - RECOMPOSICAO,null,null,null,FUNCIONAMENTO DE INSTITUICOES FEDERAI - NO DF,23106.124965/2022-28,"C.CUSTO:FACE// PASSAGEM INTERNACIONAL// MEMORANDO 8 (8847174) PROT:11010102(18000,00)SEI N.23106.124965/2022-28// 2022ND004691",2702,PASSAGENS,VOETUR TURISMO E REPRESENTACOES LTDA,null,UNIVERSIDADE DE BRASÍLIA,null,18000.00,global,605
RECURSOS ORDINÁRIOS,695.64,FISCAL,PR,2022,24/10/2022,CRÉDITOS PARA APOIO ÀS AÇÕES DE DECANATOS ACADÊMICOS,null,null,null,"FOMENTO AS ACOES DE GRADUACAO, POS-GR - NO DF",23106.028391/2022-68,"C. CUSTO: BCE                          SEI:  23106.028391/2022-68ATT:OLGAMIR AMANCIA FERREIRA           2022ND004697MEMO.S.N/2022/BCE                      PROT:110113(695,64)SERVIÇOS DE TERCEIROS - PEDIDO:0000/2022 - CONTRATO: 031/2021FORNECIMENTO DE ALIMENTAÇÃO - FORNECIMENTO DE REFEIÇÕES -  COFFEE BREAK",2700,SERV. PESSOA JURÍDICA,ISM GOMES DE MATTOS EIRELI,null,UNIVERSIDADE DE BRASÍLIA,null,695.64,global,605
RECURSOS ORDINÁRIOS,12648.00,FISCAL,PR 1/2021 - UNB,2022,24/10/2022,CRÉDITOS PARA APOIO ÀS AÇÕES DE DECANATOS ACADÊMICOS,null,null,null,"FOMENTO AS ACOES DE GRADUACAO, POS-GR - NO DF",23106.028391/2022-68,"C. CUSTO: DEX                          SEI:  23106.028391/2022-68ATT:OLGAMIR AMANCIA FERREIRA           2022ND004698MEMO.S.N/2022/DEX                      PROT:110107(12648,00)SERVIÇOS DE TERCEIROS - PEDIDO:0000/2022 - CONTRATO: 031/2021FORNECIMENTO DE ALIMENTAÇÃO - FORNECIMENTO DE REFEIÇÕES -  COFFEE BREAK",2698,SERV. PESSOA JURÍDICA,ISM GOMES DE MATTOS EIRELI,null,UNIVERSIDADE DE BRASÍLIA,null,12648.00,global,605
PRÓPRIOS -  PREST.SERVICOS FUB/FUNDO,2213.40,FISCAL,PR 1/2021 - UNB,2022,24/10/2022,CRÉDITOS DISTRIBUÍDOS PARA AS UNIDADES ADMINISTRATIVAS,null,null,null,FUNCIONAMENTO DE INSTITUICOES FEDERAI - NO DF,23106.125689/2022-15,"C. CUSTO: CET                          SEI:  23106.125689/2022-15ATT:LUIZ CARLOS SPILLER PENA           2022ND004699MEMO.038/2022/CET                      PROT:1101187(2213,40)SERVIÇOS DE TERCEIROS - PEDIDO:0000/2022 - CONTRATO: 031/2021FORNECIMENTO DE ALIMENTAÇÃO - FORNECIMENTO DE REFEIÇÕES -  COFFEE BREAK",2697,SERV. PESSOA JURÍDICA,ISM GOMES DE MATTOS EIRELI,null,UNIVERSIDADE DE BRASÍLIA,null,2213.40,global,605
PRÓPRIOS -  PREST.SERVICOS FUB/FUNDO,51.56,FISCAL,PR 1/2022 - UNB,2022,24/10/2022,CRÉDITOS DISTRIBUÍDOS PARA AS UNIDADES ACADÊMICAS,null,null,null,FUNCIONAMENTO DE INSTITUICOES FEDERAI - NO DF,23106.119475/2021-29,"C.CUSTO:IBD// AQUISIÇÃO DE MOUSE PAD//REQ.6188/2022 PROT:11010112(51,60)// 2022ND004693//PREGAO: 01/2022",2696,MAT. CONSUMO,DARLU INDUSTRIA TEXTIL LTDA,null,UNIVERSIDADE DE BRASÍLIA,null,51.56,ordinário,605
PRÓPRIOS -  PREST.SERVICOS FUB/FUNDO,46.00,FISCAL,PR 1/2022 - UNB,2022,24/10/2022,CRÉDITOS DISTRIBUÍDOS PARA AS UNIDADES ACADÊMICAS,null,null,null,FUNCIONAMENTO DE INSTITUICOES FEDERAI - NO DF,23106.119475/2021-29,"C.CUSTO:IBD// AQUISIÇÃO DE PORTA OBJETO ESCRITORIO//REQ.6186/2022 PROT:11010112(46,00)// 2022ND004693//PREGAO: 01/2022",2695,MAT. CONSUMO,ALEGRENSE DISTRIBUIDORA E REPRESENTACAO COMERCIAL LTDA,null,UNIVERSIDADE DE BRASÍLIA,null,46.00,ordinário,605
PRÓPRIOS -  PREST.SERVICOS FUB/FUNDO,2843.43,FISCAL,PR,2022,21/10/2022,CRÉDITOS DISTRIBUÍDOS PARA AS UNIDADES ADMINISTRATIVAS,null,null,null,FUNCIONAMENTO DE INSTITUICOES FEDERAI - NO DF,23106.123212/2022-03,"C. CUSTO: SPI                            SEI:23106.123212/2022-03PAGAMENTO DE PASSGEM NACIONAL            PROT:110147(2500,00)MEMO.S.N/2022/SPI                        2022ND004661 - CONT:125/2018",2691,PASSAGENS,VOETUR TURISMO E REPRESENTACOES LTDA,null,UNIVERSIDADE DE BRASÍLIA,343.43,2500.00,estimativo,605
TED INCRA-UNB,4000000.57,FISCAL,PR 1/2021 - UNB,2022,21/10/2022,ALIMENTACAO,null,null,null,ASSISTENCIA AO ESTUDANTE DE ENSINO SU - NO DF,23106.122953/2022-69,"C. CUSTO DAC PROT:110109(4000000,57) CONTRATO 31/2021DESPESAS COM O SERVIÇO DE FORNECIMENTO DEREFEIÇÕES NO RESTAURANTE UNIVERSITÁRIO.SEI: 23106.122953/2022-69 2022ND004664",2687,SERV. PESSOA JURÍDICA,ISM GOMES DE MATTOS EIRELI,null,UNIVERSIDADE DE BRASÍLIA,null,4000000.57,global,605
PRÓPRIOS -  PREST.SERVICOS FUB/FUNDO,245.00,FISCAL,PR 1/2022 - UNB,2022,21/10/2022,CRÉDITOS DISTRIBUÍDOS PARA AS UNIDADES ADMINISTRATIVAS,null,null,null,FUNCIONAMENTO DE INSTITUICOES FEDERAI - NO DF,23106.119475/2021-29,"C. CUSTO: DPI.     PROT:110142{SM6139/2022(245,00)}       SEI 23106.124409/2022-51.AQUISIÇÃO DE COPO DE VIDRO.2022ND004627.        MEMO 120/2022/DPI.    PREGÃO 1/2022.",2675,MAT. CONSUMO,M.Z.A.S SUPERMERCADO EIRELI,null,UNIVERSIDADE DE BRASÍLIA,null,245.00,ordinário,605
RECURSOS ORDINÁRIOS,6275.76,FISCAL,PR,2022,21/10/2022,SERV AQUISICAO CONTROLE SANITARIO INTEGRADO,null,null,null,FUNCIONAMENTO DE INSTITUICOES FEDERAI - NO DF,23106.124527/2022-60,"C.CUSTO:PRC. PROT:110105(6275,76) SEI 23106.124527/2022-60. SERVIÇO DE CONTROLE SANITÁRIO NO COMBATE A PRAGAS URBANAS. 2022ND004643. CONTRATO 624/2019.",2669,SERV. PESSOA JURÍDICA,CASA LIMPA DEDETIZADORA LTDA - ME,null,UNIVERSIDADE DE BRASÍLIA,null,6275.76,global,605
PRÓPRIOS -  PREST.SERVICOS FUB/FUNDO,3939.31,FISCAL,PR 7/2022 - UNB,2022,21/10/2022,CRÉDITOS DISTRIBUÍDOS PARA AS UNIDADES ACADÊMICAS,null,null,null,FUNCIONAMENTO DE INSTITUICOES FEDERAI - NO DF,23106.054297/2021-83,"C.CUSTO:FAV// AQUISIÇÃO DE FREEZER HORIZONTAL 500ML// REQ. 6115/2022PROT:11010105(3939,31)// 2022ND001863// SEI N.23106.115839/2022-82// MEMO N.01/2022",2668,EQUIP. MATERIAL PERMANENTE,MAYAS COMERCIAL DE PRODUTOS E SERVICOS EIRELI,null,UNIVERSIDADE DE BRASÍLIA,null,3939.31,ordinário,605
RECURSOS DIRETAM.ARREC FUNDAÇÃO UNIV.BRASÍLIA,12000.00,FISCAL,PR,2022,21/10/2022,FUNCIONAMENTO GERAL,null,null,null,FUNCIONAMENTO DE INSTITUICOES FEDERAI - NO DF,23106.095402/2022-15,"C. CUSTO: ILD SEI: 23106.095402/2022-15PASSAGEM SERVIDOR INTERNACIONAL CONTRATO: 125/2018PROT:11010119(12000,00) 2022ND004636",2667,PASSAGENS,VOETUR TURISMO E REPRESENTACOES LTDA,null,UNIVERSIDADE DE BRASÍLIA,null,12000.00,estimativo,605
PRÓPRIOS -  PREST.SERVICOS FUB/FUNDO,5000.00,FISCAL,PR 34/2021 - UNB,2022,20/10/2022,CRÉDITOS DISTRIBUÍDOS PARA AS UNIDADES ACADÊMICAS,null,null,null,FUNCIONAMENTO DE INSTITUICOES FEDERAI - NO DF,23106.053995/2021-61,"C.CUSTO:FSD//  AQUISIÇÃO DE BALANÇA ANALITICA// REQ. 5816/2022PROT:11010110(5000,00)// PREG.34/2021// SEI N.23106.110970/2022-53",2660,EQUIP. MATERIAL PERMANENTE,TK SERVICE EIRELI,null,UNIVERSIDADE DE BRASÍLIA,null,5000.00,ordinário,605
RECURSOS ORDINÁRIOS,14726.31,FISCAL,PR,2022,20/10/2022,SERVIÇO IMPRESSÃO CORPORATIVA - UNIDADES. EMPRESA SIMPRESS.,null,null,null,FUNCIONAMENTO DE INSTITUICOES FEDERAI - NO DF,23106.121030/2022-90,"C.CUSTO: CPD//SERVIÇO DE IMPRESSÕES//CONTRATO N.512/2016//PGTO NF 1720862022ND004591// PROT:11011404(14726,31) SEI N.23106.121030/2022-90",2659,SERV. PESSOA JURÍDICA,"SIMPRESS COMERCIO, LOCACAO E SERVICOS S/A",null,UNIVERSIDADE DE BRASÍLIA,null,14726.31,global,605
PRÓPRIOS -  PREST.SERVICOS FUB/FUNDO,2400.00,FISCAL,PR,2022,20/10/2022,CRÉDITOS DISTRIBUÍDOS PARA AS UNIDADES ACADÊMICAS,null,null,null,FUNCIONAMENTO DE INSTITUICOES FEDERAI - NO DF,23106.122520/2022-11,"C. CUSTO: FACE                                SEI:23106.122520/2022-11PAGAMENTO DE PASSAGEM SERVIDOR NACIONAL       PROT:11010102(2400,00)MEMO.S.N/2022/FACE/ECO/PPGECO                 2022ND004619 - CONTRATO: 125/2018",2658,PASSAGENS,VOETUR TURISMO E REPRESENTACOES LTDA,null,UNIVERSIDADE DE BRASÍLIA,null,2400.00,estimativo,605
PRÓPRIOS -  PREST.SERVICOS FUB/FUNDO,1000.00,FISCAL,PR,2022,20/10/2022,CRÉDITOS DISTRIBUÍDOS PARA AS UNIDADES ACADÊMICAS,null,null,null,FUNCIONAMENTO DE INSTITUICOES FEDERAI - NO DF,23106.113909/2022-68,"C.CUSTO:FSD// SEGURO VIAGEM// DESPACHO FS (8843530)//2022ND004609PROT:11010110(1000,00)// SEI N.23106.113909/2022-68",2656,SERV. PESSOA JURÍDICA,VOETUR TURISMO E REPRESENTACOES LTDA,null,UNIVERSIDADE DE BRASÍLIA,null,1000.00,estimativo,605
TAXA DE ALUNO ESPECIAL -FUB,3500.00,FISCAL,PR,2022,19/10/2022,PROG DE POS-GRADUACAO EM ENFERMAGEM - NFPPGE,null,null,null,FUNCIONAMENTO DE INSTITUICOES FEDERAI - NO DF,23106.110781/2022-81,"C. CUSTO: ENF                          SEI: 23106.110781/2022-81PAG.DE PASSAGEM NACIONAL               PROT:1101011002(1500,00)MEMO.S.N/2022/FCE/ENFERM               2022ND004596",2653,PASSAGENS,VOETUR TURISMO E REPRESENTACOES LTDA,null,UNIVERSIDADE DE BRASÍLIA,2000.00,1500.00,estimativo,605
TED SIMEC 8323 - PROAP,7982.18,FISCAL,IN 20026/2022 - UNB,2022,19/10/2022,CAPES,null,null,null,TED SIMEC 8323 - PROAP,23106.053198/2022-46,"C.CUSTO:DPG// MANUTENÇÃO CORRETIVA DE EQUIPAMENTO CROMATOGRAFO LIQUIDO// 2022ND001482PROT:110108(7982,18)// SEI N.23106.053198/2022-65// INEXIG: 20026/2022// TRANSF:697550",2651,SERV. PESSOA JURÍDICA,PERKINELMER DO BRASIL LTDA.,null,UNIVERSIDADE DE BRASÍLIA,null,7982.18,global,605
TED SIMEC 8323 - PROAP,14128.39,FISCAL,IN 20026/2022 - UNB,2022,19/10/2022,CAPES,null,null,null,TED SIMEC 8323 - PROAP,23106.053198/2022-46,"C.CUSTO:DPG// MANUTENÇÃO CORRETIVA DE EQUIPAMENTO CROMATOGRAFO LIQUIDO//PROT:110108(14128,39)// SEI N.23106.053198/2022-65// INEXIG: 20026/2022",2650,MAT. CONSUMO,PERKINELMER DO BRASIL LTDA.,null,UNIVERSIDADE DE BRASÍLIA,null,14128.39,global,605
RECURSOS ORDINÁRIOS,1041.00,FISCAL,PR 43/2021 - UNB,2022,18/10/2022,MATRIZ HVET_,null,null,null,20RK - FUNCIONAMENTO DOS HOSPITAL VETERINARIOS,23106.108460/2021-35,"C.CUSTO: HVET - AT- FABIO HENRIQUE BEZERRA  - PROT:1101010501{SM6114/2022(1041,00)}         MATERIAL DE CONSUMO - PEDIDO:6114/2022 - 2022ND004569 - PREG:43/2022ALIMENTOS PARA ANIMAIS - RAÇÃO ANIMAL - OVINOMEMO.S.N/2022/FAV/HVET/HVETINHO  - S.E.I - 23106.115452/2022-26",2645,MAT. CONSUMO,D PRONTO NUTRIÇÃO ANIMAL E PRODUTOS VETERINÁRIOS LTDA,null,UNIVERSIDADE DE BRASÍLIA,null,1041.00,ordinário,605
RECURSOS ORDINÁRIOS,4923.00,FISCAL,PR 17/2022 - UNB,2022,18/10/2022,MATRIZ HVET_,null,null,null,20RK - FUNCIONAMENTO DOS HOSPITAL VETERINARIOS,23106.030293/2022-91,"C.CUSTO: HVET - AT- LIRIA QUEIROZ LUZ  - PROT:1101010501{SM5757/2022(49323,00)}         MATERIAL DE CONSUMO - PEDIDO:5757/2022 -2022ND004568 - PREG:17/2022MAT.FARMACOLÓGICO E  MAT.E MED PARA USO VET - SORO E MEDICAMENTOS EM GERALMEMO.S.N/2022/FAV/HVET/HVETINHO  - S.E.I - 23106.115452/2022-26",2644,MAT. CONSUMO,RENATO MACHADO PINTO,null,UNIVERSIDADE DE BRASÍLIA,null,4923.00,ordinário,605
RECURSOS ORDINÁRIOS,426.45,FISCAL,PR 17/2022 - UNB,2022,18/10/2022,MATRIZ HVET_,null,null,null,20RK - FUNCIONAMENTO DOS HOSPITAL VETERINARIOS,23106.030293/2022-91,"C.CUSTO: HVET - AT- LIRIA QUEIROZ LUZ HIRANO - PROT:1101010501{SM5770/2022(426,45)}         MATERIAL DE CONSUMO - PEDIDO:5770/2022 -2022ND004568 - PREG:17/2022MAT.E MEDICAMENTOS PARA USO VETERINÁRIO - SUPLEMENTO VITAMÍNICO E VITAMINA K MEMO.S.N/2022/FAV/HVET/HVETINHO -  S.E.I 23106.115452/2022-26",2643,MAT. CONSUMO,RENATO MACHADO PINTO,null,UNIVERSIDADE DE BRASÍLIA,null,426.45,ordinário,605
RECURSOS ORDINÁRIOS,1460.00,FISCAL,PR 20/2022 - UNB,2022,18/10/2022,MATRIZ HVET_,null,null,null,20RK - FUNCIONAMENTO DOS HOSPITAL VETERINARIOS,23106.031067/2022-27,"C.CUSTO: HVET - AT- LIRIA QUEIROZ LUZ HIRANO - PROT:1101010501{SM5764/2022(1460,00)}         MATERIAL DE CONSUMO - PEDIDO:5764/2022 -2022ND004568 - PREG:20/2022MATERIAL HOSPITALAR - CATETER INTRAVENOSO JELCO - CALIBRE 14G E 16GMEMO.S.N/2022/FAV/HVET/HVETINHO -  S.E.I 23106.115452/2022-26",2642,MAT. CONSUMO,VIVA CARE MATERIAL MEDICO HOSPITALAR LTDA.,null,UNIVERSIDADE DE BRASÍLIA,null,1460.00,ordinário,605
RECURSOS ORDINÁRIOS,935.00,FISCAL,PR 20/2022 - UNB,2022,18/10/2022,MATRIZ HVET_,null,null,null,20RK - FUNCIONAMENTO DOS HOSPITAL VETERINARIOS,23106.031067/2022-27,"C.CUSTO: HVET - AT- LIRIA QUEIROZ LUZ HIRANO - PROT:1101010501{SM5763/2022(935,00)}         MATERIAL DE CONSUMO-PEDIDO:5763/2022 -2022ND004568 - PREG:20/2022MATERIAL LABORATORIAL - SWAB - MATERIAL HASTE PLÁSTICA MEMO.S.N/2022/FAV/HVET/HVETINHO -  S.E.I 23106.115452/2022-26",2641,MAT. CONSUMO,SWAB CB BRASIL INDÚSTRIA DE PRODUTOS LABORATORIAIS LTDA,null,UNIVERSIDADE DE BRASÍLIA,null,935.00,ordinário,605
RECURSOS ORDINÁRIOS,930.00,FISCAL,PR 20/2022 - UNB,2022,18/10/2022,MATRIZ HVET_,null,null,null,20RK - FUNCIONAMENTO DOS HOSPITAL VETERINARIOS,23106.031067/2022-27,"C.CUSTO: HVET - AT- LIRIA QUEIROZ LUZ HIRANO - PROT:1101010501{SM5762/2022(930,00)}         MATERIAL DE CONSUMO-PEDIDO:5762/2022 -2022ND004568 - PREG:20/2022MATERIAL HOSPITALAR - ESCOVA DEGERMAÇÃO E SERINGA - AGULHADA 3MLMEMO.S.N/2022/FAV/HVET/HVETINHO -  S.E.I 23106.115452/2022-26",2640,MAT. CONSUMO,INFINITY PHARMA COMERCIO E REPRESENTACOES DE MEDICAMENTOS LTDA,null,UNIVERSIDADE DE BRASÍLIA,null,930.00,ordinário,605
PRÓPRIOS -  PREST.SERVICOS FUB/FUNDO,250.00,FISCAL,PR 23/2022 - UNB,2022,18/10/2022,CRÉDITOS DISTRIBUÍDOS PARA AS UNIDADES ADMINISTRATIVAS,null,null,null,FUNCIONAMENTO DE INSTITUICOES FEDERAI - NO DF,23106.031609/2022-61,"C.CUSTO:DAF - AT- ALEXANDRE PEIXOTO BEZERRA - PROT:110110{SM5972/2022(250,00)}         MATERIAL DE CONSUMO-PEDIDO:5972/2022 - 2021ND004560 - PREG:023/2022MAT. DE COPA E COZINHA - GARRAFA TÉRMICA - MATERIAL AÇO INOXIDÁVEL - 2 LITROSMEMO.027/2022/DAF/DGM -  S.E.I 23106.118259/2022-47",2638,MAT. CONSUMO,CDV COMERCIAL DE ALIMENTOS EIRELI,null,UNIVERSIDADE DE BRASÍLIA,null,250.00,ordinário,605
RECURSOS ORDINÁRIOS,19530.00,FISCAL,PR 309/2022 - UNB,2022,18/10/2022,SERVIÇOS DE CONFECÇÃO E INSTALAÇÃO DE MÓVEIS PLANEJADOS,null,null,null,FUNCIONAMENTO DE INSTITUICOES FEDERAI - NO DF,23106.100641/2022-02,"C. CUSTO: PRC                              SEI:23106.100641/2022-02ATT: DIJALMA JOSE DA SILVA                 2022ND004550MEMO.S.N/2022/DAF/DCA/CSD                  PROT:110105(19530,00)SERVIÇOS DE TERCEIROS - PEDIDO:0000/2022 - PREG: 309/2022MANUT.E CONS.DE B.MÓVEIS E OUTRA NATUR - INST. DE MÓVEIS PLANEJ. - ARMÁRIOSCONTRATAÇÃO E CONFECÇÃO DE MÓVEIS PLANEJADOS -  ITEM 03 - PRAZO - 12 MESES",2635,SERV. PESSOA JURÍDICA,MOVELARIA CERRADO LTDA,null,UNIVERSIDADE DE BRASÍLIA,null,19530.00,global,605
PRÓPRIOS -  PREST.SERVICOS FUB/FUNDO,1820.00,FISCAL,PR 201/2022 - UNB,2022,18/10/2022,CRÉDITOS DISTRIBUÍDOS PARA AS UNIDADES ADMINISTRATIVAS,null,null,null,FUNCIONAMENTO DE INSTITUICOES FEDERAI - NO DF,23106.074895/2020-98,"C.CUSTO:DGP -AT- SHEILA PERLA MARIA - PROT:110134{SM5631/2022(1820,00)}         MATERIAL DE CONSUMO-PEDIDO:5631/2022 -2021ND004547 - PREG:201/2022MAT.DE TIC - MAT.DE CONSUMO - CÂMERA VIDEOCONFERÊNCIA - RESOLUÇÃO 1080 X 1920MEMO.1524/2022/DGP -  S.E.I 23106.112768/2022-66",2633,MAT. CONSUMO,RESILIRE S F COMERCIO LTDA,null,UNIVERSIDADE DE BRASÍLIA,null,1820.00,ordinário,605
PRÓPRIOS -  PREST.SERVICOS FUB/FUNDO,2529.60,FISCAL,PR 1/2021 - UNB,2022,18/10/2022,CRÉDITOS DISTRIBUÍDOS PARA AS UNIDADES ACADÊMICAS,null,null,null,FUNCIONAMENTO DE INSTITUICOES FEDERAI - NO DF,23106.121820/2022-75,"C. CUSTO: ICS                              SEI:23106.121820/2022-75ATT: STEFAN FORNOS KLEIN                   2022ND004545MEMO.095/2022/ICS/SOL/SEC                  PROT:11010113(2529,60)SERVIÇOS DE TERCEIROS - PEDIDO:0000/2022 - CONTRATO: 031/2021FORNECIMENTO DE ALIMENTAÇÃO - FORNECIMENTO DE REFEIÇÕES -  COFFEE BREAK",2630,SERV. PESSOA JURÍDICA,ISM GOMES DE MATTOS EIRELI,null,UNIVERSIDADE DE BRASÍLIA,null,2529.60,global,605
PRÓPRIOS -  PREST.SERVICOS FUB/FUNDO,2529.60,FISCAL,PR 1/2021 - UNB,2022,18/10/2022,CRÉDITOS DISTRIBUÍDOS PARA AS UNIDADES ADMINISTRATIVAS,null,null,null,FUNCIONAMENTO DE INSTITUICOES FEDERAI - NO DF,23106.122118/2022-29,"C. CUSTO: DAF                          SEI: 23106.122118/2022-29ATT: JEREMIAS PEREIRA DA SILVA         2022ND004549MEMO.015/2022/DAF/SEC                  PROT:110110(2529,60)SERVIÇOS DE TERCEIROS - PEDIDO:0000/2022 - CONTRATO: 031/2021FORNECIMENTO DE ALIMENTAÇÃO - FORNECIMENTO DE REFEIÇÕES -  COFFEE BREAK",2629,SERV. PESSOA JURÍDICA,ISM GOMES DE MATTOS EIRELI,null,UNIVERSIDADE DE BRASÍLIA,null,2529.60,global,605
PRÓPRIOS -  PREST.SERVICOS FUB/FUNDO,394.00,FISCAL,DL 11007/2022 - UNB,2022,18/10/2022,CRÉDITOS DISTRIBUÍDOS PARA AS UNIDADES ACADÊMICAS,null,null,null,FUNCIONAMENTO DE INSTITUICOES FEDERAI - NO DF,23106.100729/2022-16,"C. CUSTO: FCI. PROT:110133(394,00) SEI 23106.100729/2022-16.AQUISIÇÃO DE PLACA DE REDE.2022ND003705. MEMO (8593158) 00/2022/FCI/INFO.",2626,MAT. CONSUMO,COMPUSET INFORMATICA LTDA,null,UNIVERSIDADE DE BRASÍLIA,null,394.00,ordinário,605
PRÓPRIOS -  PREST.SERVICOS FUB/FUNDO,32000.00,FISCAL,PR 39/2022 - UNB,2022,17/10/2022,CRÉDITOS DISTRIBUÍDOS PARA AS UNIDADES ACADÊMICAS,null,null,null,FUNCIONAMENTO DE INSTITUICOES FEDERAI - NO DF,23106.069174/2022-28,"C. CUSTO: FCE.        PROT:110131(32000,00)        SEI 23106.069174/2022-28.    SERVIÇO DE REINSTALAÇÃO E CALIBRAÇÃO DE EQUIPAMENTO ANALISADOR DE ÓXIDO NÍTRICO.2022ND004489.",2624,SERV. PESSOA JURÍDICA,TEC SERVICE COMERCIO E SERVICOS LTDA - ME,null,UNIVERSIDADE DE BRASÍLIA,null,32000.00,global,605
PRÓPRIOS -  PREST.SERVICOS FUB/FUNDO,13439.81,FISCAL,IN 20029/2022 - UNB,2022,17/10/2022,CRÉDITOS DISTRIBUÍDOS PARA AS UNIDADES ACADÊMICAS,null,null,null,FUNCIONAMENTO DE INSTITUICOES FEDERAI - NO DF,23106.092541/2022-32,"C. CUSTO: FCE. PROT:110131(13439,81) SEI 23106.092541/2022-97.PEÇAS PARA MANUTENÇÃO DE EQUIPAMENTO CIENTÍFICO.2022ND004503.",2623,MAT. CONSUMO,PERKINELMER DO BRASIL LTDA.,null,UNIVERSIDADE DE BRASÍLIA,null,13439.81,global,605
PRÓPRIOS -  PREST.SERVICOS FUB/FUNDO,17318.82,FISCAL,IN 20029/2022 - UNB,2022,17/10/2022,CRÉDITOS DISTRIBUÍDOS PARA AS UNIDADES ACADÊMICAS,null,null,null,FUNCIONAMENTO DE INSTITUICOES FEDERAI - NO DF,23106.092541/2022-32,"C. CUSTO: FCE. PROT:110131(17318,82) SEI 23106.092541/2022-97.SERVIÇOS DE REINSTALAÇÃO DE EQUIPAMENTO CIENTÍFICO.2022ND004503",2622,SERV. PESSOA JURÍDICA,PERKINELMER DO BRASIL LTDA.,null,UNIVERSIDADE DE BRASÍLIA,null,17318.82,global,605
RECURSOS ORDINÁRIOS,1581.00,FISCAL,PR 1/2021 - UNB,2022,17/10/2022,CAPACITAÇÃO DE SERVIDORES,null,null,null,CAPACITACAO DE SERVIDORES PUBLICOS FE - NO DI,23106.121710/2022-11,"C . CUSTO DGP PROT:110134(1581,00) PR: 01/2021SERVIÇOS DE COFFEE BREAK PARA A AÇÃO DE CAPACITAÇÃOAMBIENTAÇÃO PARA NOVOS SERVIDORES DA UNBSEI: 23106.121710/2022-11",2617,SERV. PESSOA JURÍDICA,ISM GOMES DE MATTOS EIRELI,null,UNIVERSIDADE DE BRASÍLIA,null,1581.00,ordinário,605
PRÓPRIOS -  PREST.SERVICOS FUB/FUNDO,0.00,FISCAL,PR,2022,17/10/2022,CRÉDITOS DISTRIBUÍDOS PARA AS UNIDADES ADMINISTRATIVAS,null,12000.00,null,FUNCIONAMENTO DE INSTITUICOES FEDERAI - NO DF,23106.095402/2022-15,"C. CUSTO: ILD SEI: 23106.095402/2022-15 PAGAMENTO DE PASSAGEM SERVIDOR INTERNACIONALPROT:11010119(12000,00)MEMORANDO 0017 (8533910)2022ND004512 - CONTRATO: 125/2018",2615,PASSAGENS,VOETUR TURISMO E REPRESENTACOES LTDA,null,UNIVERSIDADE DE BRASÍLIA,null,12000.00,estimativo,605
TAXA DE ALUNO ESPECIAL -FUB,1264.80,FISCAL,PR 1/2021 - UNB,2022,17/10/2022,PROGRAMA DE POS-GRADUCCAO EM HISTORIA - PPGHI,null,null,null,FUNCIONAMENTO DE INSTITUICOES FEDERAI - NO DF,23106.118407/2022-23,"C. CUSTO: HIS                           SEI:  23106.118407/2022-23ATT:   LUIZ CESAR DE SA JUNIOR          2022ND004515MEMO.104/2022/ICH/HIS/POS-HIS           PROT:1101011803(1264,80)SERVIÇOS DE TERCEIROS - PEDIDO:0000/2022 - CONTRATO: 031/2021FORNECIMENTO DE ALIMENTAÇÃO - FORNECIMENTO DE REFEIÇÕES -  COFFEE BREAK",2611,SERV. PESSOA JURÍDICA,ISM GOMES DE MATTOS EIRELI,null,UNIVERSIDADE DE BRASÍLIA,null,1264.80,global,605
TAXA DE ALUNO ESPECIAL -FUB,1581.00,FISCAL,PR 1/2021 - UNB,2022,17/10/2022,PROGRAMA DE POS-GRADUACAO EM EDUCACAO FISICA,null,null,null,FUNCIONAMENTO DE INSTITUICOES FEDERAI - NO DF,23106.118949/2022-04,"C. CUSTO: FEF                             SEI:  23106.118949/2022-04ATT:   FELIPE RODRIGUES DA COSTA          2022ND004484MEMO.175/2022/FEF/PÓS-GRADUAÇÃO           PROT:11010108(1581,00)SERVIÇOS DE TERCEIROS - PEDIDO:0000/2022 - CONTRATO: 031/2021FORNECIMENTO DE ALIMENTAÇÃO - FORNECIMENTO DE REFEIÇÕES -  COFFEE BREAK",2610,SERV. PESSOA JURÍDICA,ISM GOMES DE MATTOS EIRELI,null,UNIVERSIDADE DE BRASÍLIA,null,1581.00,global,605
PRÓPRIOS -  PREST.SERVICOS FUB/FUNDO,6324.00,FISCAL,PR 1/2021 - UNB,2022,17/10/2022,CRÉDITOS DISTRIBUÍDOS PARA AS UNIDADES ACADÊMICAS,null,null,null,FUNCIONAMENTO DE INSTITUICOES FEDERAI - NO DF,23106.122283/2022-81,"C. CUSTO: FTD                             SEI:  23106.122283/2022-81ATT:   EDSON PAULO DA SILVA               2022ND004518MEMO.S.N/2022/IGD                         PROT:11010111(6324,00)SERVIÇOS DE TERCEIROS - PEDIDO:0000/2022 - CONTRATO: 031/2021FORNECIMENTO DE ALIMENTAÇÃO - FORNECIMENTO DE REFEIÇÕES -  COFFEE BREAK",2609,SERV. PESSOA JURÍDICA,ISM GOMES DE MATTOS EIRELI,null,UNIVERSIDADE DE BRASÍLIA,null,6324.00,global,605
PRÓPRIOS -  PREST.SERVICOS FUB/FUNDO,1700.00,FISCAL,PR 306/2021 - UNB,2022,14/10/2022,CRÉDITOS DISTRIBUÍDOS PARA AS UNIDADES ACADÊMICAS,null,null,null,FUNCIONAMENTO DE INSTITUICOES FEDERAI - NO DF,23106.121506/2022-92,"C.CUSTO:FAV -AT- DEBORAH CLEA RUY - PROT:11010105{SM5612/2022(1700,00)}MATERIAL PERMANENTE - PEDIDO:5612/2022 - 2022ND001863 - PREG:306/2021MAQ.E EQUIP.AGRÍCOLAS E RODOVIÁRIOS - ROÇADEIRA MANUAL MOTOR GASOLINAMEMO.001/2022/FAV - S.E.I 23106.111947/2022-86",2604,EQUIP. MATERIAL PERMANENTE,"MCA ASSESSORIA, IMPORTACAO E COMERCIO LTDA",null,UNIVERSIDADE DE BRASÍLIA,null,1700.00,global,605
PRÓPRIOS -  PREST.SERVICOS FUB/FUNDO,234.68,FISCAL,PR,2022,14/10/2022,CRÉDITOS DISTRIBUÍDOS PARA AS UNIDADES ADMINISTRATIVAS,null,265.32,null,FUNCIONAMENTO DE INSTITUICOES FEDERAI - NO DF,23106.119288/2022-26,"C. CUSTO: OUV SEI:              23106.098461/2022-45PAGAMENTO DE SEGURO VIAGEM      PROT:110139(500,00)MEMO.1167/2022/OUV              2022ND003468 CONT: 125/2018",2598,SERV. PESSOA JURÍDICA,VOETUR TURISMO E REPRESENTACOES LTDA,null,UNIVERSIDADE DE BRASÍLIA,null,500.00,estimativo,605
RECURSOS ORDINÁRIOS,25000.00,FISCAL,PR,2022,14/10/2022,CRÉDITOS PARA APOIO ÀS AÇÕES DE DECANATOS ACADÊMICOS,null,null,null,FUNCIONAMENTO DE INSTITUICOES FEDERAI - NO DF,23106.028402/2022-18,"C.CUSTO:DPG// PASSAGENS NACIONAIS// DESPACHO DPG / APAF (8779915)PROT:110108(25000,00)// SEI N.23106.028402/2022-18// 2022ND004481",2597,PASSAGENS,VOETUR TURISMO E REPRESENTACOES LTDA,null,UNIVERSIDADE DE BRASÍLIA,null,25000.00,global,605
RECURSOS ORDINÁRIOS,67752.25,FISCAL,PR 308/2022 - UNB,2022,14/10/2022,EXTINTORES_,null,null,null,FUNCIONAMENTO DE INSTITUICOES FEDERAI - NO DF,23106.014536/2020-81,"C.CUSTO:PRC// CONTRATAÇÃO DE SERVIÇOS DE MANUTENÇÃO DE EXTINTORES DE INCENDIO// 2022ND004482PROT:110105(67752,25)// SEI N.23106.014536/2020-81// PREGÃO 308/2022",2592,SERV. PESSOA JURÍDICA,PRIME COMERCIO E SERVICOS DE EXTINTORES EIREL,null,UNIVERSIDADE DE BRASÍLIA,null,67752.25,global,605
RECURSOS ORDINÁRIOS,21329.50,FISCAL,PR 23/2022 - UNB,2022,14/10/2022,REPOSIÇÃO DE MATERIAL DO ALMOXARIFADO,null,null,null,FUNCIONAMENTO DE INSTITUICOES FEDERAI - NO DF,23106.031609/2022-61,"C. CUSTO: ALM.      PROT:1101100601{SM6059/2022(21329,50)}        SEI 23106.120797/2022-00.AQUISIÇÃO DE COPO DESCARTÁVEL E DESINFETANTE.2022ND004470.           MEMO 51/2022/DAF/DGM/ALM.",2591,MAT. CONSUMO,CDV COMERCIAL DE ALIMENTOS EIRELI,null,UNIVERSIDADE DE BRASÍLIA,null,21329.50,ordinário,605
PRÓPRIOS -  PREST.SERVICOS FUB/FUNDO,22134.00,FISCAL,PR 1/2021 - UNB,2022,14/10/2022,CRÉDITOS DISTRIBUÍDOS PARA AS UNIDADES ACADÊMICAS,null,null,null,FUNCIONAMENTO DE INSTITUICOES FEDERAI - NO DF,23106.119776/2022-33,"C. CUSTO FAV PROT:11010105(22134,00) PR: 01/2021CONTRATAÇÃO DE SERVIÇOS DE COFFEE BREAKSEI: 23106.119776/2022-33 2022ND004474",2587,SERV. PESSOA JURÍDICA,ISM GOMES DE MATTOS EIRELI,null,UNIVERSIDADE DE BRASÍLIA,null,22134.00,ordinário,605
PRÓPRIOS -  PREST.SERVICOS FUB/FUNDO,42742.96,FISCAL,PR 6/2017 - UNB,2022,13/10/2022,CRÉDITOS DISTRIBUÍDOS PARA AS UNIDADES ACADÊMICAS,null,null,null,FUNCIONAMENTO DE INSTITUICOES FEDERAI - NO DF,23106.043283/2022-15,"C. CUSTO: IFD                            SEI:23106.043283/2022-15PAGAMENTO DE FRETE AÉREO INTERNACIONAL - UNID.DE CONTR.DE TEMP.CCU 100 E DA CÂMARA HTK 1200NOFÍCIO.001/2022/IF                       2022ND004390 - PROT:11010116(42742,96)FRETES E TRANSPORTES DE ENCOMENDAS       CONTRATO 81/2017 - PREGÃO:06/2017",2584,SERV. PESSOA JURÍDICA,WEGH ASSESSORIA E LOGISTICA INTERNACIONAL LTDA - EPP,null,UNIVERSIDADE DE BRASÍLIA,null,42742.96,global,605
PRÓPRIOS -  PREST.SERVICOS FUB/FUNDO,1845.00,FISCAL,PR 306/2021 - UNB,2022,13/10/2022,CRÉDITOS DISTRIBUÍDOS PARA AS UNIDADES ACADÊMICAS,null,null,null,FUNCIONAMENTO DE INSTITUICOES FEDERAI - NO DF,23106.119282/2022-59,"C.CUSTO:FAV -AT- DEBORAH CLEA RUY - PROT:11010105{SM5614/2022(1845,00)}MATERIAL PERMANENTE - PEDIDO:5614/2022 - 2022ND000000 - PREG:306/2021VEÍCULOS DIVERSOS - CARRINHO DE MÃO - 150L - 800MM X 1650MM X 860MMMEMO.001/2022/FAV - S.E.I  23106.119282/2022-59",2583,EQUIP. MATERIAL PERMANENTE,GMO SOLUCOES COMERCIAIS EIRELI,null,UNIVERSIDADE DE BRASÍLIA,null,1845.00,global,605
PRÓPRIOS -  PREST.SERVICOS FUB/FUNDO,615.00,FISCAL,PR 306/2021 - UNB,2022,13/10/2022,CRÉDITOS DISTRIBUÍDOS PARA AS UNIDADES ACADÊMICAS,null,null,null,FUNCIONAMENTO DE INSTITUICOES FEDERAI - NO DF,23106.119282/2022-59,"C.CUSTO:FAV -AT- DEBORAH CLEA RUY - PROT:11010105{SM5613/2022(615,00)}MATERIAL PERMANENTE - PEDIDO:5613/2022 - 2022ND000000 - PREG:306/2021VEÍCULOS DIVERSOS - CARRINHO DE MÃO - 150L - 800MM X 1650MM X 860MMMEMO.001/2022/FAV - S.E.I  23106.119282/2022-59",2582,EQUIP. MATERIAL PERMANENTE,GMO SOLUCOES COMERCIAIS EIRELI,null,UNIVERSIDADE DE BRASÍLIA,null,615.00,global,605
PRÓPRIOS -  PREST.SERVICOS FUB/FUNDO,4362.96,FISCAL,PR,2022,13/10/2022,CRÉDITOS DISTRIBUÍDOS PARA AS UNIDADES ADMINISTRATIVAS,null,4637.04,null,FUNCIONAMENTO DE INSTITUICOES FEDERAI - NO DF,23106.119288/2022-26,"C. CUSTO: OUV                         SEI: 23106.098461/2022-45PAGAMENTO DE PASSAGEM INTERNACIONAL   PROT:110139(12000,00)MEMO.1167/2022/OUV 2022ND003468       CONT: 125/2018",2581,PASSAGENS,VOETUR TURISMO E REPRESENTACOES LTDA,null,UNIVERSIDADE DE BRASÍLIA,null,9000.00,estimativo,605
PRÓPRIOS -  PREST.SERVICOS FUB/FUNDO,1500.00,FISCAL,PR,2022,13/10/2022,CRÉDITOS DISTRIBUÍDOS PARA AS UNIDADES ADMINISTRATIVAS,null,null,null,FUNCIONAMENTO DE INSTITUICOES FEDERAI - NO DF,23106.120759/2022-49,"C.CUSTO:DAF//  PASSAGENS NACIONAIS// MEMO Nº 14/2022/DAF / SEC// SEI N. 23106.120759/2022-49PROT:110110(1500,00)//  2022ND4460//",2566,PASSAGENS,VOETUR TURISMO E REPRESENTACOES LTDA,null,UNIVERSIDADE DE BRASÍLIA,null,1500.00,global,605
PRÓPRIOS -  PREST.SERVICOS FUB/FUNDO,27900.00,FISCAL,PR 34/2021 - UNB,2022,11/10/2022,CRÉDITOS DISTRIBUÍDOS PARA AS UNIDADES ACADÊMICAS,null,null,null,FUNCIONAMENTO DE INSTITUICOES FEDERAI - NO DF,23106.053995/2021-61,"C. CUSTO: FTD.     PROT:11010111{SM5970/2022(27900,00)}        SEI 23106.118308/2022-41.AQUISIÇÃO DE OSCILOSCÓPIO DIGITAL.COMPROVANTE DE SALDO (8811492).        MEMO 028/2022/FT/ENE.",2565,EQUIP. MATERIAL PERMANENTE,OHMTECH COMERCIO VAREJISTA DE MAQUINAS E EQUIPAMENTOS,null,UNIVERSIDADE DE BRASÍLIA,null,27900.00,ordinário,605
PRÓPRIOS -  PREST.SERVICOS FUB/FUNDO,2793.40,FISCAL,PR 34/2021 - UNB,2022,11/10/2022,CRÉDITOS DISTRIBUÍDOS PARA AS UNIDADES ACADÊMICAS,null,null,null,FUNCIONAMENTO DE INSTITUICOES FEDERAI - NO DF,23106.053995/2021-61,"C. CUSTO: FTD.     PROT:11010111{SM5969/2022(2793,40)}        SEI 23106.118308/2022-41.AQUISIÇÃO DE FONTE DE ALIMENTAÇÃO.COMPROVANTE DE SALDO (8811492).        MEMO 028/2022/FT/ENE.",2564,EQUIP. MATERIAL PERMANENTE,AIQ FERRAMENTAS E INSTRUMENTOS LTDA - EPP,null,UNIVERSIDADE DE BRASÍLIA,null,2793.40,ordinário,605
PRÓPRIOS -  PREST.SERVICOS FUB/FUNDO,1096.00,FISCAL,PR 201/2022 - UNB,2022,11/10/2022,CRÉDITOS DISTRIBUÍDOS PARA AS UNIDADES ACADÊMICAS,null,null,null,FUNCIONAMENTO DE INSTITUICOES FEDERAI - NO DF,23106.074895/2020-98,"C. CUSTO: ICS.    PROT:11010113{SM5782/2022(1096,00)}        SEI 23106.116972/2022-56.AQUISIÇÃO DE WEBCAM.2022ND004441.     DESPACHO ICS/ELA 8769002.",2563,MAT. CONSUMO,MAXICOMP COMERCIO DE PRODUTOS DE INFORMATICA EIRELI,null,UNIVERSIDADE DE BRASÍLIA,null,1096.00,ordinário,605
RECURSOS ORDINÁRIOS,105335.00,FISCAL,IN 20025/2022 - UNB,2022,13/10/2022,CONTRATAÇÃO DE EMPRESA ESPECIALIZADA NA ANÁLISE DO ARQUIVO DO CESPE,null,null,null,FUNCIONAMENTO DE INSTITUICOES FEDERAI - NO DF,23106.059346/2020-93,"C. CUSTO: DTER. PROT:11011007(105335,00) SEI 23106.059346/2020-93.SERVIÇOS DE ANÁLISE E LEVANTAMENTO DE CONJUNTOS DOCUMENTAIS DO ARQUIVO DO CESPE/UNB.2022ND004464. INEXIGIBILIDADE 20025/2022.",2560,SERV. PESSOA JURÍDICA,CONCEICAO APARECIDA BRAGA - MEI,null,UNIVERSIDADE DE BRASÍLIA,null,105335.00,global,605
PRÓPRIOS -  PREST.SERVICOS FUB/FUNDO,1140.00,FISCAL,PR 201/2022 - UNB,2022,11/10/2022,CRÉDITOS DISTRIBUÍDOS PARA AS UNIDADES ACADÊMICAS,null,null,null,FUNCIONAMENTO DE INSTITUICOES FEDERAI - NO DF,23106.074895/2020-98,"C.CUSTO:IHD//  FONE OUVIDO HEADSET// REQ. 5885// MEMO N.72/2022/ICHPROT:11010118(1140,00)// 2022ND004446// SEI N.23106.116564/2022-02",2556,MAT. CONSUMO,RF PRODUCOES ARTISTICAS LTDA,null,UNIVERSIDADE DE BRASÍLIA,null,1140.00,ordinário,605
PRÓPRIOS -  PREST.SERVICOS FUB/FUNDO,85.10,FISCAL,PR 1/2022 - UNB,2022,11/10/2022,CRÉDITOS DISTRIBUÍDOS PARA AS UNIDADES ACADÊMICAS,null,null,null,FUNCIONAMENTO DE INSTITUICOES FEDERAI - NO DF,23106.116985/2022-25,"C.CUSTO:ICS//  COPO VIDRO E COADOR DE CAFE// REQ. 01/2022PROT:11010113(85,10)// 2022ND003302//  SEI N.23106.116985/2022-25",2555,MAT. CONSUMO,M.Z.A.S SUPERMERCADO EIRELI,null,UNIVERSIDADE DE BRASÍLIA,null,85.10,global,605
PRÓPRIOS -  PREST.SERVICOS FUB/FUNDO,128.90,FISCAL,PR 1/2022 - UNB,2022,11/10/2022,CRÉDITOS DISTRIBUÍDOS PARA AS UNIDADES ACADÊMICAS,null,null,null,FUNCIONAMENTO DE INSTITUICOES FEDERAI - NO DF,23106.116985/2022-25,"C.CUSTO:ICS//  MOUSE PAD ERGONOMICO// PREG. 01/2022//  2022ND004454PROT:11010113(214,10)// SEI N.23106.116985/2022-25",2554,MAT. CONSUMO,DARLU INDUSTRIA TEXTIL LTDA,null,UNIVERSIDADE DE BRASÍLIA,null,128.90,global,605
PRÓPRIOS -  PREST.SERVICOS FUB/FUNDO,0.00,FISCAL,PR 18/2021 - UNB,2022,01/06/2022,CRÉDITOS DISTRIBUÍDOS PARA AS UNIDADES ACADÊMICAS,null,1925.00,null,FUNCIONAMENTO DE INSTITUICOES FEDERAI - NO DF,23106.032985/2021-92,"C.CUSTO: FTD -AT- EONARDO JOB BIALI - PROT:11010111{SM2553/2022(1925,00)} MATERIAL DE CONSUMO-PEDIDO:2553/2022 -2022ND002206 -PREG:018/2021 MATERIAL DE LIMPEZA E HIGIENE -LIXEIRA REDONDA SUPORTE - PEDAL - 100L OFÍCIO.018/2022/FT/EFL - S.E.I 23106.049963/2022-42",2553,MAT. CONSUMO,FORTCLEAN COMERCIO DE EQUIPAMENTOS EIRELI,null,UNIVERSIDADE DE BRASÍLIA,null,1925.00,ordinário,605
PRÓPRIOS -  PREST.SERVICOS FUB/FUNDO,1230.00,FISCAL,PR 306/2021 - UNB,2022,11/10/2022,CRÉDITOS DISTRIBUÍDOS PARA AS UNIDADES ACADÊMICAS,null,null,null,FUNCIONAMENTO DE INSTITUICOES FEDERAI - NO DF,23106.061116/2021-75,"C. CUSTO: FAV.        PROT:11010105{SM6024/2022(1230,00)}        SEI 23106.119449/2022-81.AQUISIÇÃO DE CARRINHO DE MÃO.2022ND001863.      MEMO 002/2022/FAV.",2552,EQUIP. MATERIAL PERMANENTE,GMO SOLUCOES COMERCIAIS EIRELI,null,UNIVERSIDADE DE BRASÍLIA,null,1230.00,ordinário,605
PRÓPRIOS -  PREST.SERVICOS FUB/FUNDO,1425.00,FISCAL,PR 201/2022 - UNB,2022,11/10/2022,CRÉDITOS DISTRIBUÍDOS PARA AS UNIDADES ADMINISTRATIVAS,null,null,null,FUNCIONAMENTO DE INSTITUICOES FEDERAI - NO DF,23106.074895/2020-98,"C.CUSTO: XX// AQUISIÇAO DE FONE OUVIDO HEADSET// REQ. 3553/2022PROT:110110(1425,00)//  2022ND004394// SEI N.23106.089598/2022-17",2548,EXCLUSIVO PARA CONV. DNOC - MATERIAL DE CONSUMO,RF PRODUCOES ARTISTICAS LTDA,null,UNIVERSIDADE DE BRASÍLIA,null,1425.00,ordinário,605
RECURSOS ORDINÁRIOS,1000.00,FISCAL,PR 202/2019 - UNB,2022,11/10/2022,SUPORTE DE TI,null,null,null,FUNCIONAMENTO DE INSTITUICOES FEDERAI - NO DF,23106.007549/2018-80,"C. CUSTO CPD. PROT:11011404(1000,0) SEI 23106.007549/2018-80SEGUNDO TERMO DE APOSTILAMENTO DO CONTRATO N 507/2019 2022ND004393PRESTAÇÃO DE SERVIÇOS TÉCNICOS ESPECIALIZADOS NA ÁREA DE TI DOS COMPUTADORES DA UNB",2547,SERVIÇOS TIC,CENTRAL IT TECNOLOGIA DA INFORMACAO LTDA,null,UNIVERSIDADE DE BRASÍLIA,null,1000.00,global,605
RECURSOS ORDINÁRIOS,67494.00,FISCAL,PR 1/2021 - UNB,2022,11/10/2022,FUNCIONAMENTO GERAL,null,null,null,FUNCIONAMENTO DE INSTITUICOES FEDERAI - NO DF,23106.119050/2022-09,"C. CUSTO GRE PROT:1101(67494,00) PR 01/2021CONTRATAÇÃO DE SERVIÇOS DE COFFEE BREAK PARA AOFICINA DE INTEGRAÇÃO DOS SERVIDORES DA UNB 2022SEI: 23106.119050/2022-09 2022ND004408",2546,SERV. PESSOA JURÍDICA,ISM GOMES DE MATTOS EIRELI,null,UNIVERSIDADE DE BRASÍLIA,null,67494.00,ordinário,605
PRÓPRIOS -  PREST.SERVICOS FUB/FUNDO,5400.00,FISCAL,PR 318/2020 - UNB,2022,10/10/2022,CRÉDITOS DISTRIBUÍDOS PARA AS UNIDADES ADMINISTRATIVAS,null,null,null,FUNCIONAMENTO DE INSTITUICOES FEDERAI - NO DF,23106.084911/2022-12,"C.CUSTO :  OUV         S.E.I Nº :  23106.084911/2022-12MEMO.S.N/2022/OUV      2022ND004365  -  PREG: 318/2020ATT - MARIA IVONEIDE DE LIMA -  PROT:110139(5400,00) MATERIAL PERMANENTE - MAT.DE TIC ( PERMANENTE ) - NOBREAK (UPS) INTERATIVO SENOIDAL DE 1,4 KVA",2536,EQUIP. MATERIAL PERMANENTE,TECSOLUTI COMERCIO E SOLUCOES LTDA,null,UNIVERSIDADE DE BRASÍLIA,null,5400.00,global,605
PRÓPRIOS -  PREST.SERVICOS FUB/FUNDO,4392.50,FISCAL,IN 20035/2022 - UNB,2022,11/10/2022,CRÉDITOS DISTRIBUÍDOS PARA AS UNIDADES ACADÊMICAS,null,null,null,FUNCIONAMENTO DE INSTITUICOES FEDERAI - NO DF,23106.109771/2022-34,"C.CUSTO : FEF S.E.I Nº : 23106.109771/2022-01MEMO.099/2022/FEF/FINANCEIRO 2022ND004365 - INEX: 20035/2022ATT - MARTIM FRANCISCO BOTTARO - PROT:11010108(4392,50)SERV.DE TERCEIROS - MANT.E CONSERV.DE MÁQ.E EQUIP. - ASSIST. TÉC. CORRET.DE ESTEIRA",2535,SERV. PESSOA JURÍDICA,HATRIL COMERCIO E ASSISTENCIA TECNICA DE EQUIPAMENTOS MEDICOS EIRELI,null,UNIVERSIDADE DE BRASÍLIA,null,4392.50,global,605
PRÓPRIOS -  PREST.SERVICOS FUB/FUNDO,2793.40,FISCAL,PR 34/2021 - UNB,2022,10/10/2022,CRÉDITOS DISTRIBUÍDOS PARA AS UNIDADES ACADÊMICAS,null,null,null,FUNCIONAMENTO DE INSTITUICOES FEDERAI - NO DF,23106.053995/2021-61,"C. CUSTO: FUP.       PROT:110129{SM5945/2022(2793,40)}        SEI 23106.115277/2022-77.AQUISIÇÃO DE FONTE ALIMENTAÇÃO.DEMONSTRATIVO (8801512).        DESPACHO FUP/GCF 8750826.",2532,EQUIP. MATERIAL PERMANENTE,AIQ FERRAMENTAS E INSTRUMENTOS LTDA - EPP,null,UNIVERSIDADE DE BRASÍLIA,null,2793.40,ordinário,605
PRÓPRIOS -  PREST.SERVICOS FUB/FUNDO,4743.00,FISCAL,PR 1/2021 - UNB,2022,10/10/2022,CRÉDITOS DISTRIBUÍDOS PARA AS UNIDADES ACADÊMICAS,null,null,null,FUNCIONAMENTO DE INSTITUICOES FEDERAI - NO DF,23106.116124/2022-47,"C. CUSTO: FTD.       PROT:11010111(4743,00)        SEI 23106.116124/2022-47.     SERVIÇOS DE COFFEE BREAK PARA AULA MAGNA DA FT.2022ND004355.        MEMO 120/2022/FT/DIREÇÃO.",2531,SERV. PESSOA JURÍDICA,ISM GOMES DE MATTOS EIRELI,null,UNIVERSIDADE DE BRASÍLIA,null,4743.00,estimativo,605
PRÓPRIOS -  PREST.SERVICOS FUB/FUNDO,3162.00,FISCAL,PR 1/2021 - UNB,2022,10/10/2022,CRÉDITOS DISTRIBUÍDOS PARA AS UNIDADES ACADÊMICAS,null,null,null,FUNCIONAMENTO DE INSTITUICOES FEDERAI - NO DF,23106.117564/2022-11,"C. CUSTO: IPD.      PROT:11010120(3162,00)        SEI 23106.117564/2022-11.SERVIÇOS DE COFFEE BREAK PARA AULA MAGNA DO INSTITUTO DE PSICOLOGIA.   2022ND004349.        MEMO 300/2022/IP/DIR.",2530,SERV. PESSOA JURÍDICA,ISM GOMES DE MATTOS EIRELI,null,UNIVERSIDADE DE BRASÍLIA,null,3162.00,estimativo,605
PRÓPRIOS -  PREST.SERVICOS FUB/FUNDO,780.00,FISCAL,PR 201/2022 - UNB,2022,10/10/2022,CRÉDITOS DISTRIBUÍDOS PARA AS UNIDADES ACADÊMICAS,null,null,null,FUNCIONAMENTO DE INSTITUICOES FEDERAI - NO DF,23106.074895/2020-98,"C. CUSTO: IGD.      PROT:11010117{SM5874/2022(780,00)}       SEI 23106.117889/2022-02.AQUISIÇÃO DE CÂMERA VIDEOCONFERÊNCIA.2022ND004387.",2528,MAT. CONSUMO,RESILIRE S F COMERCIO LTDA,null,UNIVERSIDADE DE BRASÍLIA,null,780.00,ordinário,605
PRÓPRIOS -  PREST.SERVICOS FUB/FUNDO,855.00,FISCAL,PR 201/2022 - UNB,2022,10/10/2022,CRÉDITOS DISTRIBUÍDOS PARA AS UNIDADES ACADÊMICAS,null,null,null,FUNCIONAMENTO DE INSTITUICOES FEDERAI - NO DF,23106.074895/2020-98,"C. CUSTO: IGD.      PROT:11010117{SM5870/2022(855,00)}       SEI 23106.117889/2022-02.AQUISIÇÃO DE FONE DE OUVIDO HEADSET.2022ND004387.",2527,MAT. CONSUMO,RF PRODUCOES ARTISTICAS LTDA,null,UNIVERSIDADE DE BRASÍLIA,null,855.00,ordinário,605
PRÓPRIOS -  PREST.SERVICOS FUB/FUNDO,1897.20,FISCAL,PR 1/2021 - UNB,2022,10/10/2022,CRÉDITOS DISTRIBUÍDOS PARA AS UNIDADES ACADÊMICAS,null,null,null,FUNCIONAMENTO DE INSTITUICOES FEDERAI - NO DF,23106.113711/2022-84,"C. CUSTO: ILD                    SEI:23106.113711/2022-84ATT:SANDRA LUCIA RODRIGUES       2022ND004308MEMO.S084/2022/IL                PROT:11010119(1897,20)SERVIÇOS DE TERCEIROS - PEDIDO:0000/2022 - CONTRATO: 031/2021FORNECIMENTO DE ALIMENTAÇÃO - FORNECIMENTO DE REFEIÇÕES -  COFFEE BREAK",2526,SERV. PESSOA JURÍDICA,ISM GOMES DE MATTOS EIRELI,null,UNIVERSIDADE DE BRASÍLIA,null,1897.20,estimativo,605
PRÓPRIOS -  PREST.SERVICOS FUB/FUNDO,22000.00,FISCAL,PR 318/2020 - UNB,2022,10/10/2022,CRÉDITOS DISTRIBUÍDOS PARA AS UNIDADES ACADÊMICAS,null,null,null,FUNCIONAMENTO DE INSTITUICOES FEDERAI - NO DF,23106.116193/2022-51,"C. CUSTO: IQD.           PROT:11010122(22000,00)        SEI 23106.116193/2022-51.AQUISIÇÃO DE NOBREAK.2022ND004341.        MEMO 169/2022/IQ/SECADM.",2525,EQUIP. MATERIAL PERMANENTE,"PHD SISTEMAS DE ENERGIA INDUSTRIA, COMERCIO,",null,UNIVERSIDADE DE BRASÍLIA,null,22000.00,global,605
PRÓPRIOS -  PREST.SERVICOS FUB/FUNDO,84000.00,FISCAL,PR 318/2020 - UNB,2022,10/10/2022,CRÉDITOS DISTRIBUÍDOS PARA AS UNIDADES ACADÊMICAS,null,null,null,FUNCIONAMENTO DE INSTITUICOES FEDERAI - NO DF,23106.116193/2022-51,"C. CUSTO: IQD.     PROT:11010122(84000,00)       SEI 23106.116193/2022-51.AQUISIÇÃO DE NOBREAK.2022ND004341.           MEMO 169/2022/IQ/SECADM.",2523,EQUIP. MATERIAL PERMANENTE,FONTES BH SISTEMAS DE ENERGIA EIRELI,null,UNIVERSIDADE DE BRASÍLIA,null,84000.00,global,605
PRÓPRIOS -  PREST.SERVICOS FUB/FUNDO,39600.00,FISCAL,PR 318/2020 - UNB,2022,10/10/2022,CRÉDITOS DISTRIBUÍDOS PARA AS UNIDADES ACADÊMICAS,null,null,null,FUNCIONAMENTO DE INSTITUICOES FEDERAI - NO DF,23106.116193/2022-51,"C. CUSTO: IQD.     PROT:11010122(39600,00)       SEI 23106.116193/2022-51.AQUISIÇÃO DE NOBREAK.2022ND004341.           MEMO 169/2022/IQ/SECADM.",2521,EQUIP. MATERIAL PERMANENTE,TECSOLUTI COMERCIO E SOLUCOES LTDA,null,UNIVERSIDADE DE BRASÍLIA,null,39600.00,global,605
RECURSOS ORDINÁRIOS,12730.00,FISCAL,PR,2022,10/10/2022,CERIMONIAL - COLACAO DE GRAU,null,null,null,FUNCIONAMENTO DE INSTITUICOES FEDERAI - NO DF,23106.138096/2020-57,"C. CUSTO GRE PROT:1101(12730,00)TERMO DE APOSTILAMENTO DO CONTRATO N 1207/2021CELEBRADO ENTRE A UNB E A CASABLANCA SERVIÇOS EIRELI.2022ND004405 SEI: 23106.138096/2020-57",2517,SERV. PESSOA JURÍDICA,CASABLANCA SERVICOS EIRELI - EPP,null,UNIVERSIDADE DE BRASÍLIA,null,12730.00,global,605
RECURSOS DIRETAM.ARREC FUNDAÇÃO UNIV.BRASÍLIA,29920.00,FISCAL,PR 315/2018 - UNB,2022,10/10/2022,SERV TEC ESPEC MANUT DE GRUPO GERADORES UNID,null,null,null,FUNCIONAMENTO DE INSTITUICOES FEDERAI - NO DF,23106.118549/2019-95,"C. CUSTO PRC PROT:110105(29920,00) 4 TERMO ADITIVO CONTRATO 665/2018MANUTENÇÃO PREVENTIVA E CORRETIVA DE GRUPOS MOTORES2022ND004150 SEI: 23106.118549/2019-95 PROC ORIGEM: 2018PR00315",2509,SERV. PESSOA JURÍDICA,POWER ENGENHARIA COMERCIO DE SERVICOS LTDA -,null,UNIVERSIDADE DE BRASÍLIA,null,29920.00,global,605
RECURSOS DIR.ARRECADADOS(PROPRIOS)-FUB -,3945.00,FISCAL,PR 23/2021 - UNB,2022,07/10/2022,ARRECADACOES DA FAL - HORTIFRUTIGRANJEIRO,null,null,null,FUNCIONAMENTO DE INSTITUICOES FEDERAI - NO DF,23106.004995/2021-38,"C.CUSTO:FAL - AT- REGINALDO SERGIO PEREIRA - PROT:110116{SM5925/2022(3945,00)}        MATERIAL DE CONSUMO - PEDIDO:5925/2022 - 2022ND004309 - PREG:023/2021MATERIAL QUÍMICO - FIPRONIL E GLIFOSATO MEMO.104/2022/FAL -  S.E.I  23106.117648/2022-55",2508,MAT. CONSUMO,SOLO PRODUTIVO PRODUTOS AGROPECUARIOS LTDA,null,UNIVERSIDADE DE BRASÍLIA,null,3945.00,ordinário,605
RECURSOS DIR.ARRECADADOS(PROPRIOS)-FUB -,7264.90,FISCAL,PR 23/2021 - UNB,2022,07/10/2022,ARRECADACOES DA FAL - HORTIFRUTIGRANJEIRO,null,null,null,FUNCIONAMENTO DE INSTITUICOES FEDERAI - NO DF,23106.004995/2021-38,"C.CUSTO:FAL - AT- REGINALDO SERGIO PEREIRA - PROT:110116{SM5923/2022(7264,90)}        MATERIAL DE CONSUMO - PEDIDO:5923/2022 - 2022ND004309 - PREG:023/2021SEMENTES - MUDAS DE PLANTAS E INSUMOS - METANO ARSONATO - ÓLEO PARA PUL. - TRIFLOXISTROBINAMEMO.104/2022/FAL -  S.E.I  23106.117648/2022-55",2507,MAT. CONSUMO,AGROBELIA - INSUMOS AGRICOLAS LTA,null,UNIVERSIDADE DE BRASÍLIA,null,7264.90,ordinário,605
RECURSOS DIR.ARRECADADOS(PROPRIOS)-FUB -,3815.54,FISCAL,PR 23/2021 - UNB,2022,07/10/2022,ARRECADACOES DA FAL - HORTIFRUTIGRANJEIRO,null,null,null,FUNCIONAMENTO DE INSTITUICOES FEDERAI - NO DF,23106.004995/2021-38,"C.CUSTO:FAL - AT- REGINALDO SERGIO PEREIRA - PROT:110116{SM5921/2022(3815,54)}        MATERIAL DE CONSUMO - PEDIDO:5921/2022 - 2022ND004309 - PREG:023/2021SEMENTES - MUDAS DE PLANTAS E INSUMOS - GRAFITE - TEMBOTRIONA - TIAMETOXAMMEMO.104/2022/FAL -  S.E.I  23106.117648/2022-55",2506,MAT. CONSUMO,MERCOSUL AGRONEGOCIOS EIRELI,null,UNIVERSIDADE DE BRASÍLIA,null,3815.54,ordinário,605
RECURSOS DIR.ARRECADADOS(PROPRIOS)-FUB -,62815.48,FISCAL,PR 23/2021 - UNB,2022,07/10/2022,ARRECADACOES DA FAL - HORTIFRUTIGRANJEIRO,null,null,null,FUNCIONAMENTO DE INSTITUICOES FEDERAI - NO DF,23106.004995/2021-38,"C.CUSTO:FAL - AT- REGINALDO SERGIO PEREIRA - PROT:110116{SM5918/2022(62815,48)}        MATERIAL DE CONSUMO - PEDIDO:5918/2022 - 2022ND004309 - PREG:023/2021SEMENTES - MUDAS DE PLANTAS E INSUMOS - CALCÁRIO - BARBANTE - GESSO - FERTILIZANTEMEMO.104/2022/FAL -  S.E.I  23106.117648/2022-55",2505,MAT. CONSUMO,DINAMICA DISTRIBUIDORA E COMERCIO VAREJISTA DE ELETRODOMESTICOS EIRELI,null,UNIVERSIDADE DE BRASÍLIA,null,62815.48,ordinário,605
RECURSOS DIR.ARRECADADOS(PROPRIOS)-FUB -,28000.00,FISCAL,PR 23/2021 - UNB,2022,07/10/2022,ARRECADACOES DA FAL - HORTIFRUTIGRANJEIRO,null,null,null,FUNCIONAMENTO DE INSTITUICOES FEDERAI - NO DF,23106.004995/2021-38,"C.CUSTO:FAL - AT- REGINALDO SERGIO PEREIRA - PROT:110116{SM5917/2022(28000,00)}        MATERIAL DE CONSUMO - PEDIDO:5917/2022 - 2022ND004309 - PREG:023/2021SEMENTES - MUDAS DE PLANTAS E INSUMOS - FARELO DE INGREDIENTE BÁSICO SOJAMEMO.104/2022/FAL -  S.E.I  23106.117648/2022-55",2504,MAT. CONSUMO,COMERCIAL COIMBRENSE LTDA - ME,null,UNIVERSIDADE DE BRASÍLIA,null,28000.00,ordinário,605
RECURSOS DIR.ARRECADADOS(PROPRIOS)-FUB -,600.00,FISCAL,PR 23/2021 - UNB,2022,07/10/2022,ARRECADACOES DA FAL - HORTIFRUTIGRANJEIRO,null,null,null,FUNCIONAMENTO DE INSTITUICOES FEDERAI - NO DF,23106.004995/2021-38,"C.CUSTO:FAL - AT- REGINALDO SERGIO PEREIRA - PROT:110116{SM5915/2022(600,00)}        MATERIAL DE CONSUMO - PEDIDO:5915/2022 - 2022ND004309 - PREG:023/2021SEMENTES - MUDAS DE PLANTAS E INSUMOS - GÁS COMPRIMIDO - NOME DIMETILAMINAMEMO.104/2022/FAL -  S.E.I  23106.117648/2022-55",2503,MAT. CONSUMO,BIDDEN COMERCIAL LTDA.,null,UNIVERSIDADE DE BRASÍLIA,null,600.00,ordinário,605
RECURSOS DIR.ARRECADADOS(PROPRIOS)-FUB -,12750.00,FISCAL,PR 23/2021 - UNB,2022,07/10/2022,ARRECADACOES DA FAL - HORTIFRUTIGRANJEIRO,null,null,null,FUNCIONAMENTO DE INSTITUICOES FEDERAI - NO DF,23106.004995/2021-38,"C.CUSTO:FAL - AT- REGINALDO SERGIO PEREIRA - PROT:110116{SM5914/2022(12750,00)}        MATERIAL DE CONSUMO - PEDIDO:5914/2022 - 2022ND004309 - PREG:023/2021ALIMENTOS PARA ANIMAIS - NÚCLEO RAÇÃO - FORRAGENS E SUPLEMENTO ALIMENTAR ANIMALMEMO.104/2022/FAL -  S.E.I  23106.117648/2022-55",2502,MAT. CONSUMO,ALPHA INDUSTRIA E COMERCIO DE SUPLEMENTOS MINERAIS LTDA,null,UNIVERSIDADE DE BRASÍLIA,null,12750.00,ordinário,605
PRÓPRIOS -  PREST.SERVICOS FUB/FUNDO,20250.00,FISCAL,PR 29/2021 - UNB,2022,07/10/2022,CRÉDITOS DISTRIBUÍDOS PARA AS UNIDADES ACADÊMICAS,null,null,null,FUNCIONAMENTO DE INSTITUICOES FEDERAI - NO DF,23106.074324/2021-34,"C.CUSTO:IQD// AQUISIÇÃO DE 100 LITROS DE HELIO LIQUIDO// MEMO Nº 168/2022/IQ / SECADMPROT:11010122(20250,00)// 2022ND004293// SEI N.23106.115565/2022-21// REQ. 5873/2022",2491,MAT. CONSUMO,AIR PRODUCTS BRASIL LTDA.,null,UNIVERSIDADE DE BRASÍLIA,null,20250.00,ordinário,605
PRÓPRIOS -  PREST.SERVICOS FUB/FUNDO,7905.00,FISCAL,PR 1/2021 - UNB,2022,07/10/2022,CRÉDITOS DISTRIBUÍDOS PARA AS UNIDADES ACADÊMICAS,null,null,null,FUNCIONAMENTO DE INSTITUICOES FEDERAI - NO DF,23106.116866/2022-72,"C.CUSTO:FSD//  COFFEE BREAK ACOLHIMENTO DO CURSO DE ODONTOLOGIA 2/2022//DESPACHO FS / ODT (8768013)PROT:11010110(7905,00)// SEI N.23106.116866/2022-72// 2022ND4292",2490,SERV. PESSOA JURÍDICA,ISM GOMES DE MATTOS EIRELI,null,UNIVERSIDADE DE BRASÍLIA,null,7905.00,global,605
PRÓPRIOS -  PREST.SERVICOS FUB/FUNDO,1897.20,FISCAL,PR 1/2021 - UNB,2022,06/10/2022,CRÉDITOS DISTRIBUÍDOS PARA AS UNIDADES ACADÊMICAS,null,null,null,FUNCIONAMENTO DE INSTITUICOES FEDERAI - NO DF,23106.117334/2022-52,"C.CUSTO:FSD//  SERVIÇO DE COFFE BREAK// MEMO N.142/2022/FS// 2022ND0004285PROT:11010110(1897,20)// SEI N.23106.117334/2022-52",2487,SERV. PESSOA JURÍDICA,ISM GOMES DE MATTOS EIRELI,null,UNIVERSIDADE DE BRASÍLIA,null,1897.20,global,605
PRÓPRIOS -  PREST.SERVICOS FUB/FUNDO,500.00,FISCAL,PR 23/2022 - UNB,2022,06/10/2022,CRÉDITOS DISTRIBUÍDOS PARA AS UNIDADES ACADÊMICAS,null,null,null,FUNCIONAMENTO DE INSTITUICOES FEDERAI - NO DF,23106.031609/2022-61,"C.CUSTO:FUP//AQUISIÇÃO DE GARRAFA TERMICA// REQ.5839/20222022ND004295// PROT:110129(500,00)",2486,MAT. CONSUMO,CDV COMERCIAL DE ALIMENTOS EIRELI,null,UNIVERSIDADE DE BRASÍLIA,null,500.00,ordinário,605
PRÓPRIOS -  PREST.SERVICOS FUB/FUNDO,625.00,FISCAL,PR 23/2022 - UNB,2022,06/10/2022,CRÉDITOS DISTRIBUÍDOS PARA AS UNIDADES ACADÊMICAS,null,null,null,FUNCIONAMENTO DE INSTITUICOES FEDERAI - NO DF,23106.114944/2022-02,"C.CUSTO:IE// AQUISIÇÃO DE GARRAFAS TÉRMICAS// MEMO N.49/2022/IE/MATPROT:11010115(625,00)// 2022ND004294// SEI N.23106.114944/2022-02",2478,MAT. CONSUMO,CDV COMERCIAL DE ALIMENTOS EIRELI,null,UNIVERSIDADE DE BRASÍLIA,null,625.00,global,605
RECURSOS ORDINÁRIOS,79930.00,FISCAL,PR 309/2022 - UNB,2022,05/10/2022,SERVIÇOS DE CONFECÇÃO E INSTALAÇÃO DE MÓVEIS PLANEJADOS,null,null,null,FUNCIONAMENTO DE INSTITUICOES FEDERAI - NO DF,23106.106541/2021-09,"C.CUSTO : PRC               S.E.I Nº : 23106.106541/2021-09MEMO.S.N/2021/PRC/DIMAP     2022ND003801 - PREGÃO:309/2022ATT - CARLOS EDUARDO DA CUNHA -   PROT:110105(79930,00) - 12 MESES DE CONTRATOMANUT.E CONS.DE B.MÓVEIS E OUT.NATUR.- ARM. AÉREO  - EMBUTIDO - BALCÃO FIXO - EST. ESTRUT. - MÓVEIS ICS",2476,SERV. PESSOA JURÍDICA,3P HGM SOLUCAO VISUAL LTDA-EPP,null,UNIVERSIDADE DE BRASÍLIA,null,79930.00,global,605
PRÓPRIOS -  PREST.SERVICOS FUB/FUNDO,1140.00,FISCAL,PR 201/2022 - UNB,2022,05/10/2022,CRÉDITOS DISTRIBUÍDOS PARA AS UNIDADES ADMINISTRATIVAS,null,null,null,FUNCIONAMENTO DE INSTITUICOES FEDERAI - NO DF,23106.074895/2020-98,"C.CUSTO: DEG - AT - DIEGO MADUREIRA DE OLIVEIRA - PROT:110106{SM5846/2022(1140,00)}         MATERIAL PERMANENTE - PEDIDO:5846/2022 -2022ND004301 -PREG:201/2022MAT. DE TIC - MAT.DE CONSUMO - FONE DE OUVIDO HEADSETMEMO.S.N/2022/DEG/SGO -  S.E.I 23106.116076/2022-97",2474,MAT. CONSUMO,RF PRODUCOES ARTISTICAS LTDA,null,UNIVERSIDADE DE BRASÍLIA,null,1140.00,ordinário,605
PRÓPRIOS -  PREST.SERVICOS FUB/FUNDO,520.00,FISCAL,PR 201/2022 - UNB,2022,05/10/2022,CRÉDITOS DISTRIBUÍDOS PARA AS UNIDADES ADMINISTRATIVAS,null,null,null,FUNCIONAMENTO DE INSTITUICOES FEDERAI - NO DF,23106.074895/2020-98,"C.CUSTO: DEG - AT - DIEGO MADUREIRA DE OLIVEIRA - PROT:110106{SM5849/2022(520,00)}         MATERIAL PERMANENTE - PEDIDO:5849/2022 -2022ND004302 -PREG:201/2022MAT. DE TIC - MAT.DE CONSUMO - CÂMERA VIDEOCONFERÊNCIA RESOLUÇÃO 1080 X 1920MEMO.S.N/2022/DEG/SGO -  S.E.I 23106.116146/2022-15",2473,MAT. CONSUMO,RESILIRE S F COMERCIO LTDA,null,UNIVERSIDADE DE BRASÍLIA,null,520.00,ordinário,605
PRÓPRIOS -  PREST.SERVICOS FUB/FUNDO,570.00,FISCAL,PR 201/2022 - UNB,2022,05/10/2022,CRÉDITOS DISTRIBUÍDOS PARA AS UNIDADES ACADÊMICAS,null,null,null,FUNCIONAMENTO DE INSTITUICOES FEDERAI - NO DF,23106.074895/2020-98,"C. CUSTO: FACE.       PROT:11010102{SM5479/2022(570,00)}       SEI 23106.110622/2022-86.AQUISIÇÃO DE FONE DE OUVIDO HEADSET.                                      DESPACHO FACE 8710989.2022ND004296.      PREGÃO 201/2022.",2472,MAT. CONSUMO,RF PRODUCOES ARTISTICAS LTDA,null,UNIVERSIDADE DE BRASÍLIA,null,570.00,ordinário,605
PRÓPRIOS -  PREST.SERVICOS FUB/FUNDO,15100.00,FISCAL,PR,2022,05/10/2022,CRÉDITOS DISTRIBUÍDOS PARA AS UNIDADES ACADÊMICAS,null,null,null,FUNCIONAMENTO DE INSTITUICOES FEDERAI - NO DF,23106.080081/2022-54,"C. CUSTO:FACE                                SEI:23106.080081/2022-54PAG.DE PASSAGEM SERVIDOR INTERNACIONAL       PROT:11010102(13000,00)MEMO.S.N/2022/FACE                           2022ND004290 - CONTRATO: 125/2018",2470,PASSAGENS,VOETUR TURISMO E REPRESENTACOES LTDA,null,UNIVERSIDADE DE BRASÍLIA,2100.00,13000.00,estimativo,605
PRÓPRIOS -  PREST.SERVICOS FUB/FUNDO,6000.00,FISCAL,IN 20014/2022 - UNB,2022,05/10/2022,CRÉDITOS DISTRIBUÍDOS PARA AS UNIDADES ACADÊMICAS,null,null,null,FUNCIONAMENTO DE INSTITUICOES FEDERAI - NO DF,23106.053146/2022-99,"C. CUSTO: IQD. PROT:11010122(6000,00) SEI 23106.053146/2022-99.SERVIÇOS DE MANUTENÇÃO PREVENTIVA DO GERADOR DE NITROGÊNIO GENIUS 3031.2022ND003817. DESPACHO IQ/CAIQ 8095894. INEXIGIBILIDADE 20014/2022.",2467,SERV. PESSOA JURÍDICA,PEAK COMERCIO DE INSTRUMENTOS CIENTIFICOS LTDA.,null,UNIVERSIDADE DE BRASÍLIA,null,6000.00,global,605
PRÓPRIOS -  PREST.SERVICOS FUB/FUNDO,28769.03,FISCAL,DL 20014/2022 - UNB,2022,05/10/2022,CRÉDITOS DISTRIBUÍDOS PARA AS UNIDADES ACADÊMICAS,null,null,null,FUNCIONAMENTO DE INSTITUICOES FEDERAI - NO DF,23106.053146/2022-99,"C. CUSTO: IQD. PROT:11010122(28769,03) SEI 23106.053146/2022-99.SERVIÇOS DE MANUTENÇÃO PREVENTIVA DO GERADOR DE NITROGÊNIO GENIUS 3031.2022ND003817. DESPACHO IQ/CAIQ 8095894. INEXIGIBILIDADE 20014/2022.",2465,MAT. CONSUMO,PEAK COMERCIO DE INSTRUMENTOS CIENTIFICOS LTDA.,null,UNIVERSIDADE DE BRASÍLIA,null,28769.03,global,605
PRÓPRIOS -  PREST.SERVICOS FUB/FUNDO,200.00,FISCAL,PR 201/2022 - UNB,2022,05/10/2022,CRÉDITOS DISTRIBUÍDOS PARA AS UNIDADES ADMINISTRATIVAS,null,null,null,FUNCIONAMENTO DE INSTITUICOES FEDERAI - NO DF,23106.074895/2020-98,"C.CUSTO:DAC// AQUISIÇÃO DE FONE DE OUVIDO COM MICROFONE// MEMO N.44/2022/DACPROT:110109(200,00)// 2022ND004241// REQ. 4930/2022",2453,EXCLUSIVO PARA CONV. DNOC - MATERIAL DE CONSUMO,ALZOTEC INFORMATICA LTDA,null,UNIVERSIDADE DE BRASÍLIA,null,200.00,ordinário,605
PRÓPRIOS -  PREST.SERVICOS FUB/FUNDO,800.00,FISCAL,PR,2022,04/10/2022,CRÉDITOS DISTRIBUÍDOS PARA AS UNIDADES ACADÊMICAS,null,null,null,FUNCIONAMENTO DE INSTITUICOES FEDERAI - NO DF,23106.108498/2022-99,"C. CUSTO: IDA                              SEI:23106.108498/2022-99PAGAMENTO DE PASSAGEM NACIONAL             PROT:11010114(800,00)MEMO.065/2022/IDA/MUS/CPPG                 2022ND004221 - CONTRATO: 125/2018",2444,PASSAGENS,VOETUR TURISMO E REPRESENTACOES LTDA,null,UNIVERSIDADE DE BRASÍLIA,null,800.00,estimativo,605
PRÓPRIOS -  PREST.SERVICOS FUB/FUNDO,1421.24,FISCAL,PR 7/2022 - UNB,2022,04/10/2022,CRÉDITOS DISTRIBUÍDOS PARA AS UNIDADES ACADÊMICAS,null,null,null,FUNCIONAMENTO DE INSTITUICOES FEDERAI - NO DF,23106.054297/2021-83,"C. CUSTO: IPD                            SEI:23106.111344/2022-84ATT: MARIA INÊS GANDOLFO                 2022ND000000MEMO.278/2022/IP/DIR                     PROT:11010120{SM5529/2022(1421,24)}MATERIAL DE PERMANENTE - PEDIDO:5529/2022 - PREG:007/2022  APARELHOS E UTENSÍLIOS DOMESTICOS - FRIGOBAR - CAPACIDADE 120 L",2443,EQUIP. MATERIAL PERMANENTE,ARGOS LTDA,null,UNIVERSIDADE DE BRASÍLIA,null,1421.24,ordinário,605
RECURSOS ORDINÁRIOS,913.00,FISCAL,PR 35/2022 - UNB,2022,04/10/2022,MATRIZ HVET_,null,null,null,20RK - FUNCIONAMENTO DOS HOSPITAL VETERINARIOS,23106.079543/2022-91,"C. CUSTO: HVET.      PROT:1101010501{SM5771/2022(913,00)}     SEI 23106.115452/2022-26.    AQUISIÇÃO DE MATERIAL FARMACOLÓGICO.2022ND004243.     DESPACHO FAV/HVET/HVETINHO 8752823.",2442,MAT. CONSUMO,D PRONTO NUTRIÇÃO ANIMAL E PRODUTOS VETERINÁRIOS LTDA,null,UNIVERSIDADE DE BRASÍLIA,null,913.00,ordinário,605
RECURSOS ORDINÁRIOS,571.43,FISCAL,PR 20/2022 - UNB,2022,04/10/2022,MATRIZ HVET_,null,null,null,20RK - FUNCIONAMENTO DOS HOSPITAL VETERINARIOS,23106.031067/2022-27,"C. CUSTO: HVET.      PROT:1101010501{SM5761/2022(571,43)}     SEI 23106.115452/2022-26.    AQUISIÇÃO DE LUVA DESCATÁVEL.2022ND004243.     DESPACHO FAV/HVET/HVETINHO 8752823.",2441,MAT. CONSUMO,DIGITAL BUSINESS LTDA,null,UNIVERSIDADE DE BRASÍLIA,null,571.43,ordinário,605
RECURSOS ORDINÁRIOS,2326.80,FISCAL,PR 18/2022 - UNB,2022,04/10/2022,MATRIZ HVET_,null,null,null,20RK - FUNCIONAMENTO DOS HOSPITAL VETERINARIOS,23106.031074/2022-29,"C. CUSTO: HVET.      PROT:1101010501{SM5766/2022(2326,80)}     SEI 23106.115452/2022-26.    AQUISIÇÃO DE MATERIAL FARMACOLÓGICO.2022ND004243.     DESPACHO FAV/HVET/HVETINHO 8752823.",2440,MAT. CONSUMO,HEALTH DISTRIBUIDORA DE MEDICAMENTOS LTDA,null,UNIVERSIDADE DE BRASÍLIA,null,2326.80,ordinário,605
RECURSOS ORDINÁRIOS,2845.80,FISCAL,PR 17/2022 - UNB,2022,04/10/2022,MATRIZ HVET_,null,null,null,20RK - FUNCIONAMENTO DOS HOSPITAL VETERINARIOS,23106.030293/2022-91,"C. CUSTO: HVET.      PROT:1101010501{SM5755/2022(2845,80)}     SEI 23106.115452/2022-26.    AQUISIÇÃO DE MATERIAL FARMACOLÓGICO.2022ND004243.     DESPACHO FAV/HVET/HVETINHO 8752823.",2439,MAT. CONSUMO,BR COMERCIO DE PRODUTOS VETERINARIOS LTDA - ME,null,UNIVERSIDADE DE BRASÍLIA,null,2845.80,ordinário,605
RECURSOS ORDINÁRIOS,2640.00,FISCAL,PR 40/2021 - UNB,2022,04/10/2022,MATRIZ HVET_,null,null,null,20RK - FUNCIONAMENTO DOS HOSPITAL VETERINARIOS,23106.040246/2021-74,"C. CUSTO: HVET.      PROT:1101010501{SM5768/2022(2640,00)}     SEI 23106.115460/2022-72.AQUISIÇÃO DE LUVA DESCARTÁVEL.2022ND004242.     DESPACHO FAV/HVET/HVETINHO 8752968.",2438,MAT. CONSUMO,MEDFUTURA DISTRIBUIDORA DE MEDICAMENTOS E PRODUTOS DE SAUDE LTDA,null,UNIVERSIDADE DE BRASÍLIA,null,2640.00,ordinário,605
PRÓPRIOS -  PREST.SERVICOS FUB/FUNDO,11250.00,FISCAL,PR 207/2021 - UNB,2022,04/10/2022,CRÉDITOS DISTRIBUÍDOS PARA AS UNIDADES ADMINISTRATIVAS,null,null,null,FUNCIONAMENTO DE INSTITUICOES FEDERAI - NO DF,23106.079963/2020-13,"C. CUSTO: DAC.     PROT:110109{SM5776/2022(11250,00)}        SEI 23106.112881/2022-41.AQUISIÇÃO DE TABLET.2022ND004237.       MEMO 149/2022/DAC/DACES.        PREGÃO 207/2021.",2437,EQUIPAMENTOS E MATERIAL PERMANENTE,POLLIANA IOLANDA ASSUNCAO SILVA NUNES,null,UNIVERSIDADE DE BRASÍLIA,null,11250.00,ordinário,605
PRÓPRIOS -  PREST.SERVICOS FUB/FUNDO,341.94,FISCAL,PR 1/2022 - UNB,2022,04/10/2022,CRÉDITOS DISTRIBUÍDOS PARA AS UNIDADES ADMINISTRATIVAS,null,null,null,FUNCIONAMENTO DE INSTITUICOES FEDERAI - NO DF,23106.119475/2021-29,"C.CUSTO:SPI// AQUISIÇÃO DE ITENS DE COPA E COZINHA// REQ.5856/2022PROT:110147(341,94)// 2022ND004253// DESPACHO SPI / CMI (8756487)// SEI N.23106.115751/2022-61",2436,MAT. CONSUMO,NOVA MESA DISTRIBUIDORA DE ALIMENTOS E UTILIDADES LTDA,null,UNIVERSIDADE DE BRASÍLIA,null,341.94,ordinário,605
PRÓPRIOS -  PREST.SERVICOS FUB/FUNDO,98.00,FISCAL,PR 1/2022 - UNB,2022,04/10/2022,CRÉDITOS DISTRIBUÍDOS PARA AS UNIDADES ADMINISTRATIVAS,null,null,null,FUNCIONAMENTO DE INSTITUICOES FEDERAI - NO DF,23106.119475/2021-29,"C.CUSTO:SPI//  COPO VIDRO 300 ML// REQ.5854/2022PROT:110147(98,00)// 2022ND004253// SEI N.23106.115751/2022-61",2435,MAT. CONSUMO,M.Z.A.S SUPERMERCADO EIRELI,null,UNIVERSIDADE DE BRASÍLIA,null,98.00,ordinário,605
PRÓPRIOS -  PREST.SERVICOS FUB/FUNDO,166.00,FISCAL,PR 1/2022 - UNB,2022,04/10/2022,CRÉDITOS DISTRIBUÍDOS PARA AS UNIDADES ADMINISTRATIVAS,null,null,null,FUNCIONAMENTO DE INSTITUICOES FEDERAI - NO DF,23106.119475/2021-29,"C.CUSTO:SPI//  JARRA INOX 2 LITROS// REQ.5852/2022PROT:110147(166,58)// DESPACHO SPI / CMI (8756487)// SEI N.23106.115751/2022-61",2434,MAT. CONSUMO,"FENIX BRASIL - COMPRA, VENDA, IMPORTACAO E EXPORACAO EIRELI",null,UNIVERSIDADE DE BRASÍLIA,null,166.00,ordinário,605
PRÓPRIOS -  PREST.SERVICOS FUB/FUNDO,297.00,FISCAL,PR 201/2022 - UNB,2022,04/10/2022,CRÉDITOS DISTRIBUÍDOS PARA AS UNIDADES ADMINISTRATIVAS,null,null,null,FUNCIONAMENTO DE INSTITUICOES FEDERAI - NO DF,23106.114959/2022-62,"C.CUSTO:DAC// AQUISIÇÃO DE WEBCAM EMBUTIDO E CAMERA VIDEOCONFERENCIA// MEMO N.44/2022/DACPROT:110109(297,00)// 2022ND004241// REQ. 4935 E 4939/2022",2433,MAT. CONSUMO,RESILIRE S F COMERCIO LTDA,null,UNIVERSIDADE DE BRASÍLIA,null,297.00,global,605
PRÓPRIOS -  PREST.SERVICOS FUB/FUNDO,500.00,FISCAL,PR 23/2022 - null,2022,04/10/2022,CRÉDITOS DISTRIBUÍDOS PARA AS UNIDADES ACADÊMICAS,null,null,null,FUNCIONAMENTO DE INSTITUICOES FEDERAI - NO DF,23106.115161/2022-38,"C.CUSTO:FTD//  AQUISIÇÃO DE GARRAFAS TÉRMICAS PRESSÃO INOX 2 LITROS// MEMO N.46/2022/FT/EFLPROT:11010111(500,00)// SEI N.23106.115161/2022-38// 2022ND004252",2432,MAT. CONSUMO,CDV COMERCIAL DE ALIMENTOS EIRELI,null,UNIVERSIDADE DE BRASÍLIA,null,500.00,global,605
TED SIMEC 8323 - PROAP,10500.00,FISCAL,DL 10023/2022 - UNB,2022,03/10/2022,CAPES,null,null,null,TED SIMEC 8323 - PROAP,23106.107685/2022-96,"C.CUSTO:DPG// CONTRATAÇÃO DE EMPRESA PARA PLANEJAMENTO ESTRATÉGICO JUNTO AO PPGEE//MEMO N. 241/2022/FT/PPGEEPROT:110108(10500,00)// 2022ND1482// TRANSF: 697550",2420,SERV. PESSOA JURÍDICA,GRUPO GESTÃO EMPRESA JUNIOR EM ENGENHARIA DE PRODUÇÃO,null,UNIVERSIDADE DE BRASÍLIA,null,10500.00,ordinário,605
PRÓPRIOS -  PREST.SERVICOS FUB/FUNDO,7000.00,FISCAL,PR,2022,03/10/2022,CRÉDITOS DISTRIBUÍDOS PARA AS UNIDADES ADMINISTRATIVAS,null,null,null,FUNCIONAMENTO DE INSTITUICOES FEDERAI - NO DF,23106.103702/2022-85,"C. CUSTO: PRC.      PROT:110105(7000,00)       SEI 23106.103702/2022-85.AQUISIÇÃO DE HIDROGEL.2022ND003948.          MEMO 41/2022/PRC/DIRAE/COPS.",2418,MAT. CONSUMO,GEB - COMERCIO DE PRODUTOS AGROPECUARIOS LTDA - ME,null,UNIVERSIDADE DE BRASÍLIA,null,7000.00,global,605
RECURSOS ORDINÁRIOS,148889.06,FISCAL,PR,2022,03/10/2022,EMENDAS PARLAMENTARES,null,null,null,REESTRUTURAÇÃO E MODERNIZAÇÃO DAS INSTITUIÇÕES - EMENDA,23106.026013/2022-40,"C. CUSTO PRC// PROT:110105(148889,06) CONTRATO 617/2019// EMPRESA GENNESIS ENGENHARIA E CONSULTORIA// SEI: 23106.026013/2022-40// 2022ND004228",2413,SERV. PESSOA JURÍDICA,GÊNNESIS ENGENHARIA E CONSULTORIA LTDA,null,UNIVERSIDADE DE BRASÍLIA,null,148889.06,global,605
PRÓPRIOS -  PREST.SERVICOS FUB/FUNDO,39.15,FISCAL,PR 40/2021 - UNB,2022,30/09/2022,CRÉDITOS DISTRIBUÍDOS PARA AS UNIDADES ADMINISTRATIVAS,null,null,null,FUNCIONAMENTO DE INSTITUICOES FEDERAI - NO DF,23106.040246/2021-74,"C.CUSTO:PJU - AT- RENATA RODRIGUES SOARES- PROT:110102{SM5740/2022(39,15)}        MATERIAL DE CONSUMO-PEDIDO:5740/2022 - 2022ND004222 - PREG:040/2021MATERIAL DE COPA E COZINHA - GARRAFA TÉRMICA DE PRESSÃO DE PLÁSTICO - 1 LITROMEMO.S.N/2022/PF/UNB -  S.E.I 23106.114914/2022-98",2404,MAT. CONSUMO,PLANETA COMERCIO E DISTRIBUICAO DE EQUIPAMENTOS E PRODUTOS LTDA,null,UNIVERSIDADE DE BRASÍLIA,null,39.15,ordinário,605
TAXA DE ALUNO ESPECIAL -FUB,258.40,FISCAL,PR 1/2022 - UNB,2022,30/09/2022,PROGRAMA DE POS-GRADUACAO EM DIREITO - FD,null,null,null,FUNCIONAMENTO DE INSTITUICOES FEDERAI - NO DF,23106.119475/2021-29,"C.CUSTO:DAF - AT- INEZ LOPES MATOS CARNEIRO - PROT:11010106{SM5661/2022(258,40)}        MATERIAL DE CONSUMO-PEDIDO:5661/2022 -2022ND004223 - PREG:001/2022MATERIAL ELÉTRICO ELETRÔNICO - PILHA ALCALINA -  AAMEMO.S.N/2022/FD/PPGD -  S.E.I 23106.113143/2022-11",2403,MAT. CONSUMO,JANETE MARIA CHAVES BRANDAO 04957560595,null,UNIVERSIDADE DE BRASÍLIA,null,258.40,ordinário,605
FOJNTE RDC,1105880.13,FISCAL,RDC 4/2021 - UNB,2022,29/09/2022,OBRA DE CONSTRUÇÃO DO INSTITUTO DE ARTES,null,null,null,FUNCIONAMENTO DE INSTITUICOES FEDERAI - NO DF,23106.047470/2021-97,"C. CUSTO INFRA PROT:110137(1105880,13) OBRA EDIFÍCIO DO INSTITUTO DE ARTES - IDA SEI: 23106.047470/2021-97 -  2022ND004082 RDC 4/2021  - ID CIPI: 52185313DESPACHO DPO N: 8731349 - PAGAMENTO DE NOTA FISCAL  N: 1074 -  CONTRATO: 1110/2021",2400,OBRAS E INSTALAÇÕES,G.C.E S/A,null,UNIVERSIDADE DE BRASÍLIA,null,1105880.13,global,605
PRÓPRIOS -  PREST.SERVICOS FUB/FUNDO,27000.00,FISCAL,PR 318/2020 - UNB,2022,30/09/2022,CRÉDITOS DISTRIBUÍDOS PARA AS UNIDADES ADMINISTRATIVAS,null,null,null,FUNCIONAMENTO DE INSTITUICOES FEDERAI - NO DF,23106.102243/2022-12,"C.CUSTO: PRC -AT- WANDERSON MENDES DA SILVA - PROT:110105(27000,00)         MATERIAL PERMANENTE - PEDIDO:0000/2022 -2022ND003742 - PREG: 318/2020MATERIAL TIC PERMANENTE - FONTE ALIMENTAÇÃO ININTERRUPTA - NOBREAK ( UPS )MEMO.S.N/2022/PRC /DIMAT /COMB /GSU /ELE -  S.E.I 23106.102243/2022-12",2399,EQUIP. MATERIAL PERMANENTE,"PHD SISTEMAS DE ENERGIA INDUSTRIA, COMERCIO,",null,UNIVERSIDADE DE BRASÍLIA,null,27000.00,global,605
PRÓPRIOS -  PREST.SERVICOS FUB/FUNDO,79.56,FISCAL,PR 1/2022 - UNB,2022,30/09/2022,CRÉDITOS DISTRIBUÍDOS PARA AS UNIDADES ACADÊMICAS,null,null,null,FUNCIONAMENTO DE INSTITUICOES FEDERAI - NO DF,23106.119475/2021-29,"C. CUSTO: FACE.     PROT:11010102{SM5537/2022(79,56)}      SEI 23106.112271/2022-48.AQUISIÇÃO DE PILHA ALCALINA.2022ND004209.",2395,MAT. CONSUMO,RRA COMERCIO ELETRO-FONIA LTDA,null,UNIVERSIDADE DE BRASÍLIA,null,79.56,ordinário,605
PRÓPRIOS -  PREST.SERVICOS FUB/FUNDO,64.60,FISCAL,PR 1/2022 - UNB,2022,30/09/2022,CRÉDITOS DISTRIBUÍDOS PARA AS UNIDADES ACADÊMICAS,null,null,null,FUNCIONAMENTO DE INSTITUICOES FEDERAI - NO DF,23106.119475/2021-29,"C. CUSTO: FACE.     PROT:11010102{SM5536/2022(64,60)}      SEI 23106.112271/2022-48.AQUISIÇÃO DE PILHA ALCALINA.2022ND004209.",2394,MAT. CONSUMO,JANETE MARIA CHAVES BRANDAO 04957560595,null,UNIVERSIDADE DE BRASÍLIA,null,64.60,ordinário,605
RECURSOS ORDINÁRIOS,12677.00,FISCAL,DL 10021/2022 - UNB,2022,03/10/2022,MATRIZ HVET_,null,null,null,20RK - FUNCIONAMENTO DOS HOSPITAL VETERINARIOS,23106.102331/2022-27,"C. CUSTO: HVET. PROT:1101010501(12677,00) SEI 23106.102331/2022-14.AQUISIÇÃO DE MEDICAMENTOS DE USO VETERINÁRIO.2022ND004124. DESPACHO FAV/HVET/HVETINHO 8611375. DISPENSA 10021/2022.",2391,MAT. CONSUMO,ELLO DISTRIBUICAO LTDA - ME,null,UNIVERSIDADE DE BRASÍLIA,null,12677.00,global,605
RECURSOS ORDINÁRIOS,1635.00,FISCAL,DL 10021/2022 - UNB,2022,03/10/2022,MATRIZ HVET_,null,null,null,20RK - FUNCIONAMENTO DOS HOSPITAL VETERINARIOS,23106.102331/2022-27,"C. CUSTO: HVET. PROT:1101010501(1635,00) SEI 23106.102331/2022-14.AQUISIÇÃO DE MEDICAMENTOS DE USO VETERINÁRIO.2022ND004124. DESPACHO FAV/HVET/HVETINHO 8611375. DISPENSA 10021/2022.",2390,MAT. CONSUMO,R2 MED DISTRIBUIDORA DE MEDICAMENTOS LTDA,null,UNIVERSIDADE DE BRASÍLIA,null,1635.00,global,605
RECURSOS ORDINÁRIOS,4735.00,FISCAL,PR 19/2022 - UNB,2022,30/09/2022,FUNCIONAMENTO GERAL,null,null,null,FUNCIONAMENTO DE INSTITUICOES FEDERAI - NO DF,23106.124142/2021-20,"C. CUSTO: GRE.       PROT:1101(4735,00)      SEI 23106.124142/2021-11.AQUISIÇÃO DE BRINDES INSTITUCIONAIS PERSONALIZADOS .2022ND004193.       PREGÃO 19/2022.",2389,MAT. CONSUMO,MIL BOLSAS & BRINDES PROMOCIONAIS LTDA - ME,null,UNIVERSIDADE DE BRASÍLIA,null,4735.00,ordinário,605
RECURSOS ORDINÁRIOS,8293.50,FISCAL,PR 19/2022 - UNB,2022,30/09/2022,FUNCIONAMENTO GERAL,null,null,null,FUNCIONAMENTO DE INSTITUICOES FEDERAI - NO DF,23106.124142/2021-20,"C. CUSTO: GRE.       PROT:1101(8293,50)      SEI 23106.124142/2021-11.AQUISIÇÃO DE BRINDES INSTITUCIONAIS PERSONALIZADOS .2022ND004193.",2388,MAT. CONSUMO,GREEN MULTI COMERCIAL E SERVIÇOS LTDA,null,UNIVERSIDADE DE BRASÍLIA,null,8293.50,ordinário,605
PRÓPRIOS -  PREST.SERVICOS FUB/FUNDO,6750.00,FISCAL,PR 207/2021 - UNB,2022,30/09/2022,CRÉDITOS DISTRIBUÍDOS PARA AS UNIDADES ACADÊMICAS,null,null,null,FUNCIONAMENTO DE INSTITUICOES FEDERAI - NO DF,23106.079963/2020-13,"C.CUSTO:FGA//  AQUISIÇÃO DE TABLET TELA 9.1// REQ. 5698/2022PROT:110105(6750)// DESPACHO FGA / ADM (8737029)// SEI N.23106.113984/2022-29",2386,EQUIPAMENTOS E MATERIAL PERMANENTE,POLLIANA IOLANDA ASSUNCAO SILVA NUNES,null,UNIVERSIDADE DE BRASÍLIA,null,6750.00,ordinário,605
PRÓPRIOS -  PREST.SERVICOS FUB/FUNDO,175770.00,FISCAL,PR 15/2022 - UNB,2022,30/09/2022,CRÉDITOS DISTRIBUÍDOS PARA AS UNIDADES ACADÊMICAS,null,null,null,FUNCIONAMENTO DE INSTITUICOES FEDERAI - NO DF,23106.024036/2022-10,"C.CUSTO:PRC//  AQUISIÇÃO DE HIPOCLORITO PARA TRATAMENTO PISCINA C.O.// MEMO N.103/2022/FEFPROT:110105(466,07)// REQ.5706/2022// PREG. 15/2022//  2022ND004201",2385,MAT. CONSUMO,DOMINUS QUÍMICA LTDA,null,UNIVERSIDADE DE BRASÍLIA,null,175770.00,ordinário,605
PRÓPRIOS -  PREST.SERVICOS FUB/FUNDO,466.07,FISCAL,PR 1/2022 - UNB,2022,30/09/2022,CRÉDITOS DISTRIBUÍDOS PARA AS UNIDADES ADMINISTRATIVAS,null,null,null,FUNCIONAMENTO DE INSTITUICOES FEDERAI - NO DF,23106.119475/2021-29,"C.CUSTO:PRC// AQUISIÇÃO DE MATERIAL DE CONSUMO// REQ. 5504PREGAO 01/2022//  2022ND004205// PROT:110105(466,07)//  SEI N.23106.114187/2022-69",2384,MAT. CONSUMO,NOVA MESA DISTRIBUIDORA DE ALIMENTOS E UTILIDADES LTDA,null,UNIVERSIDADE DE BRASÍLIA,null,466.07,ordinário,605
PRÓPRIOS -  PREST.SERVICOS FUB/FUNDO,11418.35,FISCAL,DL 21006/2022 - UNB,2022,30/09/2022,CRÉDITOS DISTRIBUÍDOS PARA AS UNIDADES ADMINISTRATIVAS,null,null,null,FUNCIONAMENTO DE INSTITUICOES FEDERAI - NO DF,23106.089352/2022-37,"C. CUSTO DAF PROT:110110(11418,35)RENOVAÇÃO DA LICENÇA DE USO DO SOFTWARE SISCREDOR POR 12 MESES.SEI: 23106.089352/2022-37 2022ND004129 INEX: 21006/2022",2383,SERVIÇOS TIC,AWS SOLUCOES EM TECNOLOGIA DA INFORMACAO LTDA - ME,null,UNIVERSIDADE DE BRASÍLIA,null,11418.35,global,605
RECURSOS DIRETAM.ARREC FUNDAÇÃO UNIV.BRASÍLIA,2902400.00,FISCAL,PR 47/null - Outras(Carona),2022,29/09/2022,EMRESA ESPEC.PARA INST.DE USINA FOTOVOLTAICA,null,null,null,FUNCIONAMENTO DE INSTITUICOES FEDERAI - NO DF,23106.077011/2022-19,"C. CUSTO INFRA PROT:110137(2902400,00) ADESÃO PR: 47/2021 UASG 160285ELABORAÇÃO DE PROJETO E FORNECIMENTO DE PEÇAS, COMPONENTESE SERVIÇOS PARA INSTALAÇÃO DE USINA SOLAR FOTOVOLTAICA. SEI: 23106.077011/2022-19 2022ND004152",2380,OBRAS E INSTALAÇÕES,"5G ENERGIA, COMERCIAL IMPORTADORA E EXPORTADO",null,UNIVERSIDADE DE BRASÍLIA,null,2902400.00,global,605
PRÓPRIOS -  PREST.SERVICOS FUB/FUNDO,10000.00,FISCAL,PR,2022,29/09/2022,CRÉDITOS DISTRIBUÍDOS PARA AS UNIDADES ACADÊMICAS,null,null,null,FUNCIONAMENTO DE INSTITUICOES FEDERAI - NO DF,23106.113909/2022-68,"C. CUSTO: FSD                      SEI:23106.113909/2022-68PAG.DE PASSAGEM  INTERNACIONAL     PROT:11010110(10000,00)MEMO.S.N/2022/FS/PPBIOETICA        2022ND004180 -  CONTRATO: 125/2018",2373,PASSAGENS,VOETUR TURISMO E REPRESENTACOES LTDA,null,UNIVERSIDADE DE BRASÍLIA,null,10000.00,estimativo,605
PRÓPRIOS -  PREST.SERVICOS FUB/FUNDO,2000.00,FISCAL,PR,2022,29/09/2022,CRÉDITOS DISTRIBUÍDOS PARA AS UNIDADES ADMINISTRATIVAS,null,null,null,FUNCIONAMENTO DE INSTITUICOES FEDERAI - NO DF,23106.113931/2022-16,"C.CUSTO:INT//  PASSAGEM NACIONAL//  2022ND004175PROT:110112(1500,00)// MEMO N.187/2022/INT",2368,PASSAGENS,VOETUR TURISMO E REPRESENTACOES LTDA,null,UNIVERSIDADE DE BRASÍLIA,500.00,1500.00,estimativo,605
PRÓPRIOS -  PREST.SERVICOS FUB/FUNDO,33750.00,FISCAL,PR 207/2021 - UNB,2022,29/09/2022,CRÉDITOS DISTRIBUÍDOS PARA AS UNIDADES ADMINISTRATIVAS,null,null,null,FUNCIONAMENTO DE INSTITUICOES FEDERAI - NO DF,23106.079963/2020-13,"C. CUSTO: BCE.      PROT:110113{SM5672/2022(33750,00)}        SEI 23106.112643/2022-36.AQUISIÇÃO DE TABLET.COMPROVANTE SIAFI (8747656).     MEMO 69/2022/BCE.    PREGÃO 207/2021.",2367,EQUIPAMENTOS E MATERIAL PERMANENTE,POLLIANA IOLANDA ASSUNCAO SILVA NUNES,null,UNIVERSIDADE DE BRASÍLIA,null,33750.00,ordinário,605
PRÓPRIOS -  PREST.SERVICOS FUB/FUNDO,164.98,FISCAL,PR 35/2022 - UNB,2022,29/09/2022,CRÉDITOS DISTRIBUÍDOS PARA AS UNIDADES ACADÊMICAS,null,null,null,FUNCIONAMENTO DE INSTITUICOES FEDERAI - NO DF,23106.079543/2022-91,"C. CUSTO: FAV.       PROT:11010105{SM5705/2022(164,98)}       SEI 23106.111669/2022-67.AQUISIÇÃO DE MATERIAL FARMACOLÓGICO.2022ND004172.      MEMO 03/2022/FAV.",2366,MAT. CONSUMO,D PRONTO NUTRIÇÃO ANIMAL E PRODUTOS VETERINÁRIOS LTDA,null,UNIVERSIDADE DE BRASÍLIA,null,164.98,ordinário,605
PRÓPRIOS -  PREST.SERVICOS FUB/FUNDO,4829.60,FISCAL,PR 35/2022 - UNB,2022,29/09/2022,CRÉDITOS DISTRIBUÍDOS PARA AS UNIDADES ACADÊMICAS,null,null,null,FUNCIONAMENTO DE INSTITUICOES FEDERAI - NO DF,23106.079543/2022-91,"C. CUSTO: FAV.       PROT:11010105{SM5704/2022(4829,60)}       SEI 23106.111669/2022-67.AQUISIÇÃO DE MATERIAL FARMACOLÓGICO.2022ND004172.      MEMO 03/2022/FAV.",2365,MAT. CONSUMO,CRISTALIA PRODUTOS QUIMICOS FARMACEUTICOS LTDA,null,UNIVERSIDADE DE BRASÍLIA,null,4829.60,ordinário,605
RECURSOS DIRETAM.ARREC FUNDAÇÃO UNIV.BRASÍLIA,3097600.00,FISCAL,RDC 2/2021 - UNB,2022,29/09/2022,OBRA DE CONSTRUÇÃO DO CENTRO DE BIOTECNOLOGIA MOLECULAR - CBIOTECH,null,null,null,FUNCIONAMENTO DE INSTITUICOES FEDERAI - NO DF,23106.072505/2017-40,"C. CUSTO: INFRA. PROT:110137(3097600,00) SEI 23106.072505/2017-40.OBRA DE CONSTRUÇÃO DO CENTRO DE BIOTECNOLOGIA MOLECULAR - CBIOTECH.2022ND004148 RDC: 02/2021 ID-CIPI:  5565.53-30",2363,OBRAS E INSTALAÇÕES,D & M CONSTRUTORA LTDA - EPP,null,UNIVERSIDADE DE BRASÍLIA,null,3097600.00,global,605
PRÓPRIOS -  PREST.SERVICOS FUB/FUNDO,0.00,FISCAL,PR 306/2021 - UNB,2022,28/09/2022,CRÉDITOS DISTRIBUÍDOS PARA AS UNIDADES ACADÊMICAS,null,1845.00,null,FUNCIONAMENTO DE INSTITUICOES FEDERAI - NO DF,23106.061116/2021-75,"C.CUSTO:FAV -AT- DEBORAH CLEA RUY - PROT:11010105{SM5614/2022(1845,00)}         MATERIAL DE CONSUMO - PEDIDO:5614/2022 - 2022ND004107 - PREG:306/2021MAT.P/ MANUT.DE BENS IMOVEIS-INSTALACOES - CARRINHO DE MÃO MEMO.001/2022/FAV - S.E.I  23106.111947/2022-86",2350,EQUIP. MATERIAL PERMANENTE,GMO SOLUCOES COMERCIAIS EIRELI,null,UNIVERSIDADE DE BRASÍLIA,null,1845.00,ordinário,605
PRÓPRIOS -  PREST.SERVICOS FUB/FUNDO,0.00,FISCAL,PR 306/2021 - UNB,2022,28/09/2022,CRÉDITOS DISTRIBUÍDOS PARA AS UNIDADES ACADÊMICAS,null,615.00,null,FUNCIONAMENTO DE INSTITUICOES FEDERAI - NO DF,23106.061116/2021-75,"C.CUSTO:FAV -AT- DEBORAH CLEA RUY - PROT:11010105{SM5613/2022(615,00)}         MATERIAL DE CONSUMO - PEDIDO:5613/2022 - 2022ND004107 - PREG:306/2021MAT.P/ MANUT.DE BENS IMOVEIS-INSTALACOES - CARRINHO DE MÃO MEMO.001/2022/FAV - S.E.I  23106.111947/2022-86",2349,EQUIP. MATERIAL PERMANENTE,GMO SOLUCOES COMERCIAIS EIRELI,null,UNIVERSIDADE DE BRASÍLIA,null,615.00,ordinário,605
PRÓPRIOS -  PREST.SERVICOS FUB/FUNDO,0.00,FISCAL,PR 306/2021 - UNB,2022,28/09/2022,CRÉDITOS DISTRIBUÍDOS PARA AS UNIDADES ACADÊMICAS,null,1700.00,null,FUNCIONAMENTO DE INSTITUICOES FEDERAI - NO DF,23106.061116/2021-75,"C.CUSTO:FAV -AT- DEBORAH CLEA RUY - PROT:11010105{SM5612/2022(1700,00)}         MATERIAL DE CONSUMO - PEDIDO:5612/2022 - 2022ND004107 - PREG:306/2021MAT.P/ MANUT.DE BENS IMOVEIS-INSTALACOES - ROÇADEIRA MANUAL MOTOR GASOLINAMEMO.001/2022/FAV - S.E.I  23106.111947/2022-86",2348,EQUIP. MATERIAL PERMANENTE,"MCA ASSESSORIA, IMPORTACAO E COMERCIO LTDA",null,UNIVERSIDADE DE BRASÍLIA,null,1700.00,ordinário,605
PRÓPRIOS -  PREST.SERVICOS FUB/FUNDO,122.50,FISCAL,PR 1/2022 - UNB,2022,28/09/2022,CRÉDITOS DISTRIBUÍDOS PARA AS UNIDADES ADMINISTRATIVAS,null,null,null,FUNCIONAMENTO DE INSTITUICOES FEDERAI - NO DF,23106.119475/2021-29,"C. CUSTO: CRAD.    PROT:110127{SM5574/2022(122,50)}       SEI 23106.112077/2022-62.     AQUISIÇÃO DE MATERIAL DE COPA E COZINHA.2022ND004106.        MEMO 01/2022/CRAD.",2347,MAT. CONSUMO,M.Z.A.S SUPERMERCADO EIRELI,null,UNIVERSIDADE DE BRASÍLIA,null,122.50,ordinário,605
PRÓPRIOS -  PREST.SERVICOS FUB/FUNDO,66.30,FISCAL,PR 1/2022 - UNB,2022,28/09/2022,CRÉDITOS DISTRIBUÍDOS PARA AS UNIDADES ADMINISTRATIVAS,null,null,null,FUNCIONAMENTO DE INSTITUICOES FEDERAI - NO DF,23106.119475/2021-29,"C. CUSTO: CRAD.    PROT:110127{SM5575/2022(66,30)}       SEI 23106.112077/2022-62.     AQUISIÇÃO DE MATERIAL PILHA ALCALINA.2022ND004106.        MEMO 01/2022/CRAD.",2346,MAT. CONSUMO,RRA COMERCIO ELETRO-FONIA LTDA,null,UNIVERSIDADE DE BRASÍLIA,null,66.30,ordinário,605
PRÓPRIOS -  PREST.SERVICOS FUB/FUNDO,1296.40,FISCAL,PR 1/2022 - UNB,2022,28/09/2022,CRÉDITOS DISTRIBUÍDOS PARA AS UNIDADES ADMINISTRATIVAS,null,null,null,FUNCIONAMENTO DE INSTITUICOES FEDERAI - NO DF,23106.119475/2021-29,"C. CUSTO: CRAD.    PROT:110127{SM5576/2022(1296,40)}       SEI 23106.112077/2022-62.     AQUISIÇÃO DE MATERIAL DE COPA E COZINHA.2022ND004106.        MEMO 01/2022/CRAD.",2345,MAT. CONSUMO,NOVA MESA DISTRIBUIDORA DE ALIMENTOS E UTILIDADES LTDA,null,UNIVERSIDADE DE BRASÍLIA,null,1296.40,ordinário,605
PRÓPRIOS -  PREST.SERVICOS FUB/FUNDO,2846.68,FISCAL,PR 7/2022 - UNB,2022,28/09/2022,CRÉDITOS DISTRIBUÍDOS PARA AS UNIDADES ADMINISTRATIVAS,null,null,null,FUNCIONAMENTO DE INSTITUICOES FEDERAI - NO DF,23106.054297/2021-83,"C.CUSTO:CRAD - AT- JOSE ROBERTO RODRIGUES - PROT:110127{SM5603/2022(2846,68)}         MATERIAL PERMANENTE - PEDIDO:5603/2022 - 2022ND000000 - PREG:007/2022APA. E UTENSÍLIOS DOMÉSTICOS - ASPIRADOR DE PÓ - REFRIGERADOR FRIGOBAR DE 120LMEMO.002/2022/CRAD - S.E.I  23106.112159/2022-15",2344,EQUIP. MATERIAL PERMANENTE,ARGOS LTDA,null,UNIVERSIDADE DE BRASÍLIA,null,2846.68,ordinário,605
PRÓPRIOS -  PREST.SERVICOS FUB/FUNDO,30.40,FISCAL,PR 1/2022 - UNB,2022,28/09/2022,CRÉDITOS DISTRIBUÍDOS PARA AS UNIDADES ADMINISTRATIVAS,null,null,null,FUNCIONAMENTO DE INSTITUICOES FEDERAI - NO DF,23106.119475/2021-29,"C. CUSTO: CRAD.    PROT:110127{SM5577/2022(30,40)}       SEI 23106.112077/2022-62.     AQUISIÇÃO DE MATERIAL DE COPA E COZINHA.2022ND004106.        MEMO 01/2022/CRAD.",2343,MAT. CONSUMO,LPK LTDA,null,UNIVERSIDADE DE BRASÍLIA,null,30.40,ordinário,605
PRÓPRIOS -  PREST.SERVICOS FUB/FUNDO,64.60,FISCAL,PR 1/2022 - UNB,2022,28/09/2022,CRÉDITOS DISTRIBUÍDOS PARA AS UNIDADES ADMINISTRATIVAS,null,null,null,FUNCIONAMENTO DE INSTITUICOES FEDERAI - NO DF,23106.119475/2021-29,"C. CUSTO: CRAD.    PROT:110127{SM5579/2022(64,60)}       SEI 23106.112077/2022-62.     AQUISIÇÃO DE MATERIAL PILHA ALCALINA.2022ND004106.        MEMO 01/2022/CRAD.",2342,MAT. CONSUMO,JANETE MARIA CHAVES BRANDAO 04957560595,null,UNIVERSIDADE DE BRASÍLIA,null,64.60,ordinário,605
PRÓPRIOS -  PREST.SERVICOS FUB/FUNDO,985.51,FISCAL,PR 20/2022 - UNB,2022,28/09/2022,CRÉDITOS DISTRIBUÍDOS PARA AS UNIDADES ACADÊMICAS,null,null,null,FUNCIONAMENTO DE INSTITUICOES FEDERAI - NO DF,23106.031067/2022-27,"C.CUSTO:FAV -AT- MARCIO BOTELHO DE CASTRO - PROT:11010105{SM5615/2022(985,51)}         MATERIAL DE CONSUMO - PEDIDO:5615/2022 - 2022ND004109 - PREG:020/2022MATERIAL HOSPITALAR - LUVA CIRÚRGICA - MATERIAL LÁTEXMEMO.S.N/2022/FAV - S.E.I 23106.112429/2022-80",2341,MAT. CONSUMO,DIGITAL BUSINESS LTDA,null,UNIVERSIDADE DE BRASÍLIA,null,985.51,ordinário,605
PRÓPRIOS -  PREST.SERVICOS FUB/FUNDO,44.00,FISCAL,PR 1/2022 - UNB,2022,28/09/2022,CRÉDITOS DISTRIBUÍDOS PARA AS UNIDADES ADMINISTRATIVAS,null,null,null,FUNCIONAMENTO DE INSTITUICOES FEDERAI - NO DF,23106.119475/2021-29,"C. CUSTO: CRAD.    PROT:110127{SM5580/2022(44,00)}       SEI 23106.112077/2022-62.     AQUISIÇÃO DE MATERIAL DE COPA E COZINHA.2022ND004106.        MEMO 01/2022/CRAD.",2340,MAT. CONSUMO,G B LEITE COMERCIO E MERCEARIA,null,UNIVERSIDADE DE BRASÍLIA,null,44.00,ordinário,605
PRÓPRIOS -  PREST.SERVICOS FUB/FUNDO,166.00,FISCAL,PR 1/2022 - UNB,2022,28/09/2022,CRÉDITOS DISTRIBUÍDOS PARA AS UNIDADES ADMINISTRATIVAS,null,null,null,FUNCIONAMENTO DE INSTITUICOES FEDERAI - NO DF,23106.119475/2021-29,"C. CUSTO: CRAD.    PROT:110127{SM5581/2022(166,00)}       SEI 23106.112077/2022-62.     AQUISIÇÃO DE MATERIAL DE COPA E COZINHA.2022ND004106.        MEMO 01/2022/CRAD.",2339,MAT. CONSUMO,"FENIX BRASIL - COMPRA, VENDA, IMPORTACAO E EXPORACAO EIRELI",null,UNIVERSIDADE DE BRASÍLIA,null,166.00,ordinário,605
PRÓPRIOS -  PREST.SERVICOS FUB/FUNDO,342.50,FISCAL,PR 201/2022 - UNB,2022,28/09/2022,CRÉDITOS DISTRIBUÍDOS PARA AS UNIDADES ADMINISTRATIVAS,null,null,null,FUNCIONAMENTO DE INSTITUICOES FEDERAI - NO DF,23106.074895/2020-98,"C. CUSTO: CRAD.    PROT:110127{SM5511/2022(342,50)}       SEI 23106.112374/2022-16.AQUISIÇÃO DE WEBCAM COM MICROFONE.2022ND004104.      MEMO 3/2022/CRAD.",2337,MAT. CONSUMO,MAXICOMP COMERCIO DE PRODUTOS DE INFORMATICA EIRELI,null,UNIVERSIDADE DE BRASÍLIA,null,342.50,ordinário,605
RECURSOS ORDINÁRIOS,2947.00,FISCAL,IN 20031/2022 - UNB,2022,28/09/2022,CAPACITAÇÃO DE SERVIDORES,null,null,null,CAPACITACAO DE SERVIDORES PUBLICOS FE - NO DI,23106.093577/2022-93,"C.CUSTO:DGP// INSCRIÇÃO EM EVENTO// DESPACHO DAF / DACP (8512838)PROT:110134(2947,00)// SEI N.23106.093577/2022-98// 2022ND004110",2333,SERV. PESSOA JURÍDICA,ORZIL CURSOS E EVENTOS LTDA - EPP,null,UNIVERSIDADE DE BRASÍLIA,null,2947.00,ordinário,605
RECURSOS ORDINÁRIOS,41476.48,FISCAL,PR,2022,28/09/2022,SERVICOS COMUNS DE ENGENHARIA-PREGAO 306/2019,null,null,null,FUNCIONAMENTO DE INSTITUICOES FEDERAI - NO DF,23106.109761/2022-67,"C. CUSTO PRC// PROT:110105(41476,48) CONTRATO 617/2019// PAGAMENTO DA NOTA FISCAL Nº 2.305 DA EMPRESA GENNESIS ENGENHARIA E CONSULTORIA// SEI: 23106.109761/2022-67// 2022ND004132",2329,SERV. PESSOA JURÍDICA,GÊNNESIS ENGENHARIA E CONSULTORIA LTDA,null,UNIVERSIDADE DE BRASÍLIA,null,41476.48,global,605
RECURSOS ORDINÁRIOS,1395967.77,FISCAL,PR,2022,28/09/2022,SERVICOS COMUNS DE ENGENHARIA-PREGAO 306/2019,null,null,null,FUNCIONAMENTO DE INSTITUICOES FEDERAI - NO DF,23106.112261/2022-11,"C. CUSTO PRC PROT:110105(1395967,77) CONTRATO 617/2019PAGAMENTO DA NOTA FISCAL Nº 2.312 DA EMPRESA GENNESIS ENGENHARIA E CONSULTORIA LTDA.SEI: 23106.112261/2022-11 2022ND004133",2322,SERV. PESSOA JURÍDICA,GÊNNESIS ENGENHARIA E CONSULTORIA LTDA,null,UNIVERSIDADE DE BRASÍLIA,null,1395967.77,global,605
RECURSOS ORDINÁRIOS,28700.00,FISCAL,PR 29/2022 - UNB,2022,27/09/2022,EMENDAS PARLAMENTARES,null,null,null,REESTRUTURAÇÃO E MODERNIZAÇÃO DAS INSTITUIÇÕES - EMENDA,23106.104145/2022-10,"C.CUSTO:DAC//  AQUISIÇÃO DE COLCHOES DE ESPUMA CONVENCIONAL// 2022ND004074PROT:110109(28700,00)// UASG 153115 - PREG. 29/2022",2315,MAT. CONSUMO,MULTIFLEX DO BRASIL LTDA,null,UNIVERSIDADE DE BRASÍLIA,null,28700.00,global,605
PRÓPRIOS -  PREST.SERVICOS FUB/FUNDO,375.00,FISCAL,PR 23/2022 - UNB,2022,27/09/2022,CRÉDITOS DISTRIBUÍDOS PARA AS UNIDADES ACADÊMICAS,null,null,null,FUNCIONAMENTO DE INSTITUICOES FEDERAI - NO DF,23106.031609/2022-61,"C.CUSTO:IDA//  AQUISIÇÃO DE GARRAFA TERMICA// REQ. 5131/2022PROT:11010114(2140,00)// 2022ND004084// SEI N.23106.106012/2022-88",2314,MAT. CONSUMO,CDV COMERCIAL DE ALIMENTOS EIRELI,null,UNIVERSIDADE DE BRASÍLIA,null,375.00,ordinário,605
RECURSOS ORDINÁRIOS,182.60,FISCAL,PR 35/2022 - UNB,2022,27/09/2022,MATRIZ HVET_,null,null,null,20RK - FUNCIONAMENTO DOS HOSPITAL VETERINARIOS,23106.079543/2022-91,"C.CUSTO: HVET - AT- LIRIA QUEIROZ LUZ HIRANO - PROT:1101010501{SM5477/2022(182,60)}MATERIAL DE CONSUMO - PEDIDO:5477/2022 - 2022ND004001 - PREG:035/2022MATERIAL FARMACOLÓGICO - INJETÁVEL - DALTEPARINA COMPOSIÇÃO SÓDICAMEMO.S.N/2022/FAV/HVET/HVETINHO - S.E.I 23106.110377/2022-15",2312,MAT. CONSUMO,D PRONTO NUTRIÇÃO ANIMAL E PRODUTOS VETERINÁRIOS LTDA,null,UNIVERSIDADE DE BRASÍLIA,null,182.60,ordinário,605
RECURSOS ORDINÁRIOS,17551.90,FISCAL,PR 35/2022 - UNB,2022,27/09/2022,MATRIZ HVET_,null,null,null,20RK - FUNCIONAMENTO DOS HOSPITAL VETERINARIOS,23106.079543/2022-91,"C.CUSTO: HVET - AT- LIRIA QUEIROZ LUZ HIRANO - PROT:1101010501{SM5476/2022(17551,90)}MATERIAL DE CONSUMO - PEDIDO:5476/2022 - 2022ND004001 - PREG:035/2022MATERIAL FARMACOLÓGICO - INJETÁVEISMEMO.S.N/2022/FAV/HVET/HVETINHO - S.E.I 23106.110377/2022-15",2311,MAT. CONSUMO,D PRONTO NUTRIÇÃO ANIMAL E PRODUTOS VETERINÁRIOS LTDA,null,UNIVERSIDADE DE BRASÍLIA,null,17551.90,ordinário,605
RECURSOS ORDINÁRIOS,15092.50,FISCAL,PR 35/2022 - UNB,2022,27/09/2022,MATRIZ HVET_,null,null,null,20RK - FUNCIONAMENTO DOS HOSPITAL VETERINARIOS,23106.079543/2022-91,"C.CUSTO: HVET - AT- LIRIA QUEIROZ LUZ HIRANO - PROT:1101010501{SM5474/2022(15092,50)}MATERIAL DE CONSUMO - PEDIDO:5474/2022 - 2022ND004001 - PREG:035/2022MATERIAL FARMACOLÓGICO - ISOFLURANO ANESTÉSICO - INALATÓRIO 240 MLMEMO.S.N/2022/FAV/HVET/HVETINHO - S.E.I 23106.110377/2022-15",2310,MAT. CONSUMO,CRISTALIA PRODUTOS QUIMICOS FARMACEUTICOS LTDA,null,UNIVERSIDADE DE BRASÍLIA,null,15092.50,ordinário,605
PRÓPRIOS -  PREST.SERVICOS FUB/FUNDO,741.00,FISCAL,PR 201/2022 - UNB,2022,27/09/2022,CRÉDITOS DISTRIBUÍDOS PARA AS UNIDADES ADMINISTRATIVAS,null,null,null,FUNCIONAMENTO DE INSTITUICOES FEDERAI - NO DF,23106.074895/2020-98,"C. CUSTO: AUD.      PROT:110103{SM5638/2022(741,00)}        SEI 23106.069255/2022-28.AQUISIÇÃO DE FONE DE OUVIDO HEADSET.    2022ND004117.       MEMO AUD 78/2022/AUD/SEC.",2305,MAT. CONSUMO,RF PRODUCOES ARTISTICAS LTDA,null,UNIVERSIDADE DE BRASÍLIA,null,741.00,ordinário,605
PRÓPRIOS -  PREST.SERVICOS FUB/FUNDO,676.00,FISCAL,PR 201/2022 - UNB,2022,27/09/2022,CRÉDITOS DISTRIBUÍDOS PARA AS UNIDADES ADMINISTRATIVAS,null,null,null,FUNCIONAMENTO DE INSTITUICOES FEDERAI - NO DF,23106.074895/2020-98,"C. CUSTO: AUD.      PROT:110103{SM5636/2022(676,00)}        SEI 23106.069255/2022-28.AQUISIÇÃO DE CÂMERA VIDEOCONFERÊNCIA.2022ND004117.       MEMO AUD 78/2022/AUD/SEC.",2304,MAT. CONSUMO,RESILIRE S F COMERCIO LTDA,null,UNIVERSIDADE DE BRASÍLIA,null,676.00,ordinário,605
PRÓPRIOS -  PREST.SERVICOS FUB/FUNDO,0.00,FISCAL,PR 2021/2022 - UNB,2022,27/09/2022,CRÉDITOS DISTRIBUÍDOS PARA AS UNIDADES ADMINISTRATIVAS,null,676.00,null,FUNCIONAMENTO DE INSTITUICOES FEDERAI - NO DF,23106.069255/2022-28,"C. CUSTO: AUD.      PROT:110103(676,00)        SEI 23106.069255/2022-28.AQUISIÇÃO DE CÂMERA VIDEOCONFERÊNCIA.2022ND004117.       MEMO AUD 78/2022/AUD/SEC.",2303,MAT. CONSUMO,RESILIRE S F COMERCIO LTDA,null,UNIVERSIDADE DE BRASÍLIA,null,676.00,ordinário,605
RECURSOS ORDINÁRIOS,13200.00,FISCAL,IN 20032/2022 - UNB,2022,27/09/2022,CAPACITAÇÃO DE SERVIDORES,null,null,null,CAPACITACAO DE SERVIDORES PUBLICOS FE - NO DI,23106.102879/2022-72,"C. CUSTO DGP PROT:11013408(13200,00)CONTRATAÇÃO DA EMPRESA INSTITUTO NEGÓCIOS PÚBLICOS DO BRASIL LTDACOM VISTAS A INSCRIÇÃO DE 3 SERVIDORES PARA PARTICIPAR DE CAPACITAÇÃO DE 3 A 7/10/2022.SEI: 23106.102879/2022-64 2022ND004081 INEX: 20032/2022",2302,SERV. PESSOA JURÍDICA,INSTITUTO NEGOCIOS PUBLICOS DO BRASIL - ESTUDOS E PESQ,null,UNIVERSIDADE DE BRASÍLIA,null,13200.00,ordinário,605
PRÓPRIOS -  PREST.SERVICOS FUB/FUNDO,1629.96,FISCAL,PR 7/2022 - UNB,2022,27/09/2022,CRÉDITOS DISTRIBUÍDOS PARA AS UNIDADES ACADÊMICAS,null,null,null,FUNCIONAMENTO DE INSTITUICOES FEDERAI - NO DF,23106.054297/2021-83,"C. CUSTO FTD PROT:1101011101(1629,96) REQ: 5485/2022AQUISIÇÃO DE 2 (DUAS) ESCADAS ARTICULADAS PR: 07/2022SEI: 23106.106562/2022-05 ANEXO SALDO SIAFI (8720040)",2298,EQUIP. MATERIAL PERMANENTE,ARGOS LTDA,null,UNIVERSIDADE DE BRASÍLIA,null,1629.96,ordinário,605
PRÓPRIOS -  PREST.SERVICOS FUB/FUNDO,67.24,FISCAL,PR 1/2022 - UNB,2022,27/09/2022,CRÉDITOS DISTRIBUÍDOS PARA AS UNIDADES ADMINISTRATIVAS,null,null,null,FUNCIONAMENTO DE INSTITUICOES FEDERAI - NO DF,23106.119475/2021-29,"C. CUSTO DEX PROT:110107(67,24) REQ: 5416/2022COMPRA DE MATERIAL DE CONSUMO PR: 01/2022SEI: 23106.109139/2022-59 2022ND004066",2296,MAT. CONSUMO,"FENIX BRASIL - COMPRA, VENDA, IMPORTACAO E EXPORACAO EIRELI",null,UNIVERSIDADE DE BRASÍLIA,null,67.24,ordinário,605
PRÓPRIOS -  PREST.SERVICOS FUB/FUNDO,55.00,FISCAL,PR 1/2022 - UNB,2022,27/09/2022,CRÉDITOS DISTRIBUÍDOS PARA AS UNIDADES ADMINISTRATIVAS,null,null,null,FUNCIONAMENTO DE INSTITUICOES FEDERAI - NO DF,23106.119475/2021-29,"C. CUSTO DEX PROT:110107(55,00) REQ: 5414/2022COMPRA DE MATERIAL DE CONSUMO PR: 01/2022SEI: 23106.109139/2022-59 2022ND004066",2295,MAT. CONSUMO,G B LEITE COMERCIO E MERCEARIA,null,UNIVERSIDADE DE BRASÍLIA,null,55.00,ordinário,605
PRÓPRIOS -  PREST.SERVICOS FUB/FUNDO,51.98,FISCAL,PR 1/2022 - UNB,2022,27/09/2022,CRÉDITOS DISTRIBUÍDOS PARA AS UNIDADES ADMINISTRATIVAS,null,null,null,FUNCIONAMENTO DE INSTITUICOES FEDERAI - NO DF,23106.119475/2021-29,"C. CUSTO DEX PROT:110107(51,98) REQ: 5413/2022COMPRA DE MATERIAL DE CONSUMO PR: 01/2022SEI: 23106.109139/2022-59 2022ND004066",2294,MAT. CONSUMO,NOVA MESA DISTRIBUIDORA DE ALIMENTOS E UTILIDADES LTDA,null,UNIVERSIDADE DE BRASÍLIA,null,51.98,ordinário,605
PRÓPRIOS -  PREST.SERVICOS FUB/FUNDO,134.05,FISCAL,PR 1/2022 - UNB,2022,27/09/2022,CRÉDITOS DISTRIBUÍDOS PARA AS UNIDADES ADMINISTRATIVAS,null,null,null,FUNCIONAMENTO DE INSTITUICOES FEDERAI - NO DF,23106.119475/2021-29,"C. CUSTO DEX PROT:110107(134,05) REQ: 5412/2022COMPRA DE MATERIAL DE CONSUMO PR: 01/2022SEI: 23106.109139/2022-59 2022ND004066",2293,MAT. CONSUMO,NOVA MESA DISTRIBUIDORA DE ALIMENTOS E UTILIDADES LTDA,null,UNIVERSIDADE DE BRASÍLIA,null,134.05,ordinário,605
PRÓPRIOS -  PREST.SERVICOS FUB/FUNDO,21.99,FISCAL,PR 1/2022 - UNB,2022,27/09/2022,CRÉDITOS DISTRIBUÍDOS PARA AS UNIDADES ADMINISTRATIVAS,null,null,null,FUNCIONAMENTO DE INSTITUICOES FEDERAI - NO DF,23106.119475/2021-29,"C. CUSTO DEX PROT:110107(21,99) REQ: 5411/2022COMPRA DE MATERIAL DE CONSUMO PR: 01/2022SEI: 23106.109139/2022-59 2022ND004066",2292,MAT. CONSUMO,NOVA MESA DISTRIBUIDORA DE ALIMENTOS E UTILIDADES LTDA,null,UNIVERSIDADE DE BRASÍLIA,null,21.99,ordinário,605
PRÓPRIOS -  PREST.SERVICOS FUB/FUNDO,28.11,FISCAL,PR 1/2022 - UNB,2022,27/09/2022,CRÉDITOS DISTRIBUÍDOS PARA AS UNIDADES ADMINISTRATIVAS,null,null,null,FUNCIONAMENTO DE INSTITUICOES FEDERAI - NO DF,23106.119475/2021-29,"C. CUSTO DEX PROT:110107(28,11) REQ: 5410/2022COMPRA DE MATERIAL DE CONSUMO PR: 01/2022SEI: 23106.109139/2022-59 2022ND004066",2291,MAT. CONSUMO,RAFA PAPER DISTRIBUIDORA EIRELI,null,UNIVERSIDADE DE BRASÍLIA,null,28.11,ordinário,605
PRÓPRIOS -  PREST.SERVICOS FUB/FUNDO,287.48,FISCAL,PR 1/2022 - UNB,2022,27/09/2022,CRÉDITOS DISTRIBUÍDOS PARA AS UNIDADES ADMINISTRATIVAS,null,null,null,FUNCIONAMENTO DE INSTITUICOES FEDERAI - NO DF,23106.119475/2021-29,"C. CUSTO DEX PROT:110107(287,48) REQ: 5424/2022COMPRA DE MATERIAL DE CONSUMO PR: 01/2022SEI: 23106.109139/2022-59 2022ND004066",2290,MAT. CONSUMO,NOVA MESA DISTRIBUIDORA DE ALIMENTOS E UTILIDADES LTDA,null,UNIVERSIDADE DE BRASÍLIA,null,287.48,ordinário,605
PRÓPRIOS -  PREST.SERVICOS FUB/FUNDO,99.45,FISCAL,PR 1/2022 - UNB,2022,27/09/2022,CRÉDITOS DISTRIBUÍDOS PARA AS UNIDADES ADMINISTRATIVAS,null,null,null,FUNCIONAMENTO DE INSTITUICOES FEDERAI - NO DF,23106.119475/2021-29,"C. CUSTO DEX PROT:110107(99,45) REQ: 5423/2022COMPRA DE MATERIAL DE CONSUMO PR: 01/2022SEI: 23106.109139/2022-59 2022ND004066",2289,MAT. CONSUMO,RRA COMERCIO ELETRO-FONIA LTDA,null,UNIVERSIDADE DE BRASÍLIA,null,99.45,ordinário,605
PRÓPRIOS -  PREST.SERVICOS FUB/FUNDO,96.90,FISCAL,PR 1/2022 - UNB,2022,27/09/2022,CRÉDITOS DISTRIBUÍDOS PARA AS UNIDADES ADMINISTRATIVAS,null,null,null,FUNCIONAMENTO DE INSTITUICOES FEDERAI - NO DF,23106.119475/2021-29,"C. CUSTO DEX PROT:110107(96,90) REQ: 5422/2022COMPRA DE MATERIAL DE CONSUMO PR: 01/2022SEI: 23106.109139/2022-59 2022ND004066",2288,MAT. CONSUMO,JANETE MARIA CHAVES BRANDAO 04957560595,null,UNIVERSIDADE DE BRASÍLIA,null,96.90,ordinário,605
PRÓPRIOS -  PREST.SERVICOS FUB/FUNDO,19.75,FISCAL,PR 1/2022 - UNB,2022,27/09/2022,CRÉDITOS DISTRIBUÍDOS PARA AS UNIDADES ADMINISTRATIVAS,null,null,null,FUNCIONAMENTO DE INSTITUICOES FEDERAI - NO DF,23106.119475/2021-29,"C. CUSTO DEX PROT:110107(19,75) REQ: 5420/2022COMPRA DE MATERIAL DE CONSUMO PR: 01/2022SEI: 23106.109139/2022-59 2022ND004066",2287,MAT. CONSUMO,G B LEITE COMERCIO E MERCEARIA,null,UNIVERSIDADE DE BRASÍLIA,null,19.75,ordinário,605
PRÓPRIOS -  PREST.SERVICOS FUB/FUNDO,332.00,FISCAL,PR 1/2022 - UNB,2022,27/09/2022,CRÉDITOS DISTRIBUÍDOS PARA AS UNIDADES ADMINISTRATIVAS,null,null,null,FUNCIONAMENTO DE INSTITUICOES FEDERAI - NO DF,23106.119475/2021-29,"C. CUSTO DEX PROT:110107(332,00) REQ: 5419/2022COMPRA DE MATERIAL DE CONSUMO PR: 01/2022SEI: 23106.109139/2022-59 2022ND004066",2286,MAT. CONSUMO,"FENIX BRASIL - COMPRA, VENDA, IMPORTACAO E EXPORACAO EIRELI",null,UNIVERSIDADE DE BRASÍLIA,null,332.00,ordinário,605
PRÓPRIOS -  PREST.SERVICOS FUB/FUNDO,49.00,FISCAL,PR 1/2022 - UNB,2022,27/09/2022,CRÉDITOS DISTRIBUÍDOS PARA AS UNIDADES ADMINISTRATIVAS,null,null,null,FUNCIONAMENTO DE INSTITUICOES FEDERAI - NO DF,23106.119475/2021-29,"C. CUSTO DEX PROT:110107(49,00) REQ: 5417/2022COMPRA DE MATERIAL DE CONSUMO PR: 01/2022SEI: 23106.109139/2022-59 2022ND004066",2285,MAT. CONSUMO,M.Z.A.S SUPERMERCADO EIRELI,null,UNIVERSIDADE DE BRASÍLIA,null,49.00,ordinário,605
PRÓPRIOS -  PREST.SERVICOS FUB/FUNDO,228.00,FISCAL,PR 201/2022 - UNB,2022,26/09/2022,CRÉDITOS DISTRIBUÍDOS PARA AS UNIDADES ADMINISTRATIVAS,null,null,null,FUNCIONAMENTO DE INSTITUICOES FEDERAI - NO DF,23106.074895/2020-98,"C.CUSTO: INT - AT- VIRGILIO PEREIRA DE ALMEIDA - PROT:110112{SM5524/2022(228,00)}        MATERIAL DE CONSUMO - PEDIDO:5524/2022 - 2022ND004094 - PREG:201/2022MATERIAL TIC ( MATERIAL DE CONSUMO ) - FONE DE OUVIDO HEADSETMEMO.184/2022/INT -  S.E.I  23106.111827/2022-89",2283,MAT. CONSUMO,RF PRODUCOES ARTISTICAS LTDA,null,UNIVERSIDADE DE BRASÍLIA,null,228.00,ordinário,605
PRÓPRIOS -  PREST.SERVICOS FUB/FUNDO,11250.00,FISCAL,PR 207/2021 - UNB,2022,26/09/2022,CRÉDITOS DISTRIBUÍDOS PARA AS UNIDADES ACADÊMICAS,null,null,null,FUNCIONAMENTO DE INSTITUICOES FEDERAI - NO DF,23106.079963/2020-13,"C.CUSTO: FCI - AT- SANDRO ROBERTO RODRIGUES - PROT:110133{SM5570/2022(11250,00)}        MATERIAL PERMANENTE - PEDIDO:5570/2022 - 2022ND000000 - PREG:207/2021MATERIAL TIC ( PERMANENTE ) TABLET TELA 9.1 A 10 POL - MEMÓRIA RAM MÍNIMO 4 GBMEMO.028/2022FCI/FI -  S.E.I 23106.111441/2022-77",2282,EQUIPAMENTOS E MATERIAL PERMANENTE,POLLIANA IOLANDA ASSUNCAO SILVA NUNES,null,UNIVERSIDADE DE BRASÍLIA,null,11250.00,ordinário,605
RECURSOS ORDINÁRIOS,9271.00,FISCAL,PR 35/2022 - UNB,2022,26/09/2022,MATRIZ HVET_,null,null,null,20RK - FUNCIONAMENTO DOS HOSPITAL VETERINARIOS,23106.079543/2022-91,"C.CUSTO: HVET - AT- LIRIA QUEIROZ LUZ HIRANO - PROT:1101010501{SM5473/2022(9271,00)}        MATERIAL DE CONSUMO - PEDIDO:5473/2022 - 2022ND004001 - PREG:035/2022MATERIAL FARMACOLÓGICO - ÁGUA DILUENTE - CLORETO SÓDIO - RINGER INJETÁVELMEMO.S.N/2022/FAV/HVET/HVETINHO -  S.E.I  23106.110377/2022-15",2278,MAT. CONSUMO,CAPROMED FARMACEUTICA LTDA,null,UNIVERSIDADE DE BRASÍLIA,null,9271.00,ordinário,605
PRÓPRIOS -  PREST.SERVICOS FUB/FUNDO,4110.60,FISCAL,PR 1/2021 - UNB,2022,26/09/2022,CRÉDITOS DISTRIBUÍDOS PARA AS UNIDADES ADMINISTRATIVAS,null,null,null,FUNCIONAMENTO DE INSTITUICOES FEDERAI - NO DF,23106.110787/2022-58,"C.CUSTO:CPD// COFFEE BREAK// MEMO N.10/2022/STI/CGESPPROT:11010119(4110,60)// 2022ND004042// SEI N.23106.110787/2022-58",2277,SERV. PESSOA JURÍDICA,ISM GOMES DE MATTOS EIRELI,null,UNIVERSIDADE DE BRASÍLIA,null,4110.60,global,605
PRÓPRIOS -  PREST.SERVICOS FUB/FUNDO,2240.42,FISCAL,PR 7/2022 - UNB,2022,26/09/2022,CRÉDITOS DISTRIBUÍDOS PARA AS UNIDADES ACADÊMICAS,null,null,null,FUNCIONAMENTO DE INSTITUICOES FEDERAI - NO DF,23106.108665/2022-00,"C.CUSTO:FTD//  AQUISIÇÃO DE APARELHOS E UTENSILIOS DOMESTICOS// REQUIÇÃO  5110/5111-2022 PROT:11010111(2240,42)// MEMO N.65/2022/FT/ENM",2272,EQUIP. MATERIAL PERMANENTE,ARGOS LTDA,null,UNIVERSIDADE DE BRASÍLIA,null,2240.42,global,605
PRÓPRIOS -  PREST.SERVICOS FUB/FUNDO,1351.50,FISCAL,PR 23/2022 - UNB,2022,26/09/2022,CRÉDITOS DISTRIBUÍDOS PARA AS UNIDADES ACADÊMICAS,null,null,null,FUNCIONAMENTO DE INSTITUICOES FEDERAI - NO DF,23106.031609/2022-61,"C.CUSTO: FAV - AT- MAX DA COSTA OLIVEIRA - PROT:11010105{SM5466/2022(1351,50)}        MATERIAL DE CONSUMO - PEDIDO:5466/2022 - 2022ND004006- PREG:023/2022MAT. DE LIMPEZA E HIGIENIZAÇÃO - SABÃO EM PÓ - APLICAÇÃO LIMPEZA GERALMEMO.444/2022/FAV/DIR -  S.E.I  23106.110224/2022-60",2271,MAT. CONSUMO,ADN COMERCIO E DISTRIBUICAO DE PRODUTOS DE LIMPEZA EIRELI,null,UNIVERSIDADE DE BRASÍLIA,null,1351.50,ordinário,605
PRÓPRIOS -  PREST.SERVICOS FUB/FUNDO,830.00,FISCAL,PR 1/2022 - UNB,2022,26/09/2022,CRÉDITOS DISTRIBUÍDOS PARA AS UNIDADES ACADÊMICAS,null,null,null,FUNCIONAMENTO DE INSTITUICOES FEDERAI - NO DF,23106.119475/2021-29,"C.CUSTO: IPD - AT- FABRICIA TEIXEIRA BORGES - PROT:11010120{SM5265/2022(832,90)}        MATERIAL DE CONSUMO - PEDIDO:5265/2022 - 2022ND004003 - PREG:001/2022MATERIAL DE COPA E COZINHA - JARRA DE INOX - 2 LITROSMEMO.274/2022/IP/DIR -  S.E.I  23106.109639/2022-91",2266,MAT. CONSUMO,"FENIX BRASIL - COMPRA, VENDA, IMPORTACAO E EXPORACAO EIRELI",null,UNIVERSIDADE DE BRASÍLIA,null,830.00,ordinário,605
PRÓPRIOS -  PREST.SERVICOS FUB/FUNDO,220.00,FISCAL,PR 1/2022 - UNB,2022,26/09/2022,CRÉDITOS DISTRIBUÍDOS PARA AS UNIDADES ACADÊMICAS,null,null,null,FUNCIONAMENTO DE INSTITUICOES FEDERAI - NO DF,23106.119475/2021-29,"C.CUSTO: IPD - AT- FABRICIA TEIXEIRA BORGES - PROT:11010120{SM5266/2022(220,00)}        MATERIAL DE CONSUMO - PEDIDO:5266/2022 - 2022ND004003 - PREG:001/2022MATERIAL DE COPA E COZINHA - COADOR DE CAFÉ - PANOMEMO.274/2022/IP/DIR -  S.E.I  23106.109639/2022-91",2265,MAT. CONSUMO,G B LEITE COMERCIO E MERCEARIA,null,UNIVERSIDADE DE BRASÍLIA,null,220.00,ordinário,605
PRÓPRIOS -  PREST.SERVICOS FUB/FUNDO,118.50,FISCAL,PR 1/2022 - UNB,2022,26/09/2022,CRÉDITOS DISTRIBUÍDOS PARA AS UNIDADES ACADÊMICAS,null,null,null,FUNCIONAMENTO DE INSTITUICOES FEDERAI - NO DF,23106.119475/2021-29,"C.CUSTO: IPD - AT- FABRICIA TEIXEIRA BORGES - PROT:11010120{SM5269/2022(118,50)}        MATERIAL DE CONSUMO - PEDIDO:5269/2022 - 2022ND004003 - PREG:001/2022MATERIAL DE COPA E COZINHA - MEXEDOR DE CAFÉ - PLÁSTICOMEMO.274/2022/IP/DIR -  S.E.I  23106.109639/2022-91",2264,MAT. CONSUMO,G B LEITE COMERCIO E MERCEARIA,null,UNIVERSIDADE DE BRASÍLIA,null,118.50,ordinário,605
PRÓPRIOS -  PREST.SERVICOS FUB/FUNDO,129.95,FISCAL,PR 1/2022 - UNB,2022,26/09/2022,CRÉDITOS DISTRIBUÍDOS PARA AS UNIDADES ACADÊMICAS,null,null,null,FUNCIONAMENTO DE INSTITUICOES FEDERAI - NO DF,23106.119475/2021-29,"C.CUSTO: IPD - AT- FABRICIA TEIXEIRA BORGES - PROT:11010120{SM5270/2022(129,95)}        MATERIAL DE CONSUMO - PEDIDO:5270/2022 - 2022ND004003 - PREG:001/2022MATERIAL DE COPA E COZINHA - JARRA -  MATERIAL VIDRO -  CAPACIDADE 1,50 LMEMO.274/2022/IP/DIR -  S.E.I  23106.109639/2022-91",2263,MAT. CONSUMO,NOVA MESA DISTRIBUIDORA DE ALIMENTOS E UTILIDADES LTDA,null,UNIVERSIDADE DE BRASÍLIA,null,129.95,ordinário,605
PRÓPRIOS -  PREST.SERVICOS FUB/FUNDO,439.80,FISCAL,PR 1/2022 - UNB,2022,26/09/2022,CRÉDITOS DISTRIBUÍDOS PARA AS UNIDADES ACADÊMICAS,null,null,null,FUNCIONAMENTO DE INSTITUICOES FEDERAI - NO DF,23106.119475/2021-29,"C.CUSTO: IPD - AT- FABRICIA TEIXEIRA BORGES - PROT:11010120{SM5271/2022(439,80)}        MATERIAL DE CONSUMO - PEDIDO:5271/2022 - 2022ND004003 - PREG:001/2022MATERIAL DE COPA E COZINHA - AÇUCAREIRO - MATERIAL AÇO INOXIDÁVELMEMO.274/2022/IP/DIR -  S.E.I  23106.109639/2022-91",2262,MAT. CONSUMO,NOVA MESA DISTRIBUIDORA DE ALIMENTOS E UTILIDADES LTDA,null,UNIVERSIDADE DE BRASÍLIA,null,439.80,ordinário,605
PRÓPRIOS -  PREST.SERVICOS FUB/FUNDO,1039.80,FISCAL,PR 1/2022 - UNB,2022,26/09/2022,CRÉDITOS DISTRIBUÍDOS PARA AS UNIDADES ACADÊMICAS,null,null,null,FUNCIONAMENTO DE INSTITUICOES FEDERAI - NO DF,23106.119475/2021-29,"C.CUSTO: IPD - AT- FABRICIA TEIXEIRA BORGES - PROT:11010120{SM5272/2022(1039,80)}        MATERIAL DE CONSUMO - PEDIDO:5272/2022 - 2022ND004003 - PREG:001/2022MATERIAL DE COPA E COZINHA - BANDEJA RETANGULAR INOXMEMO.274/2022/IP/DIR -  S.E.I  23106.109639/2022-91",2261,MAT. CONSUMO,NOVA MESA DISTRIBUIDORA DE ALIMENTOS E UTILIDADES LTDA,null,UNIVERSIDADE DE BRASÍLIA,null,1039.80,ordinário,605
PRÓPRIOS -  PREST.SERVICOS FUB/FUNDO,198.90,FISCAL,PR 1/2022 - UNB,2022,26/09/2022,CRÉDITOS DISTRIBUÍDOS PARA AS UNIDADES ACADÊMICAS,null,null,null,FUNCIONAMENTO DE INSTITUICOES FEDERAI - NO DF,23106.119475/2021-29,"C.CUSTO: IPD - AT- FABRICIA TEIXEIRA BORGES - PROT:11010120{SM5273/2022(198,90)}        MATERIAL DE CONSUMO - PEDIDO:5273/2022 - 2022ND004003 - PREG:001/2022MAT.ELÉTRICO ELETRÔNICO- PILHA - TAMANHO PEQUENA - TIPO ALCALINA - MODELO AAMEMO.274/2022/IP/DIR -  S.E.I  23106.109639/2022-91",2260,MAT. CONSUMO,RRA COMERCIO ELETRO-FONIA LTDA,null,UNIVERSIDADE DE BRASÍLIA,null,198.90,ordinário,605
PRÓPRIOS -  PREST.SERVICOS FUB/FUNDO,38.76,FISCAL,PR 1/2022 - UNB,2022,26/09/2022,CRÉDITOS DISTRIBUÍDOS PARA AS UNIDADES ACADÊMICAS,null,null,null,FUNCIONAMENTO DE INSTITUICOES FEDERAI - NO DF,23106.119475/2021-29,"C.CUSTO: IPD - AT- FABRICIA TEIXEIRA BORGES - PROT:11010120{SM5446/2022(38,76)}        MATERIAL DE CONSUMO - PEDIDO:5446/2022 - 2022ND004003 - PREG:001/2022MAT.ELÉTRICO ELETRÔNICO- PILHA - TAMANHO PEQUENA - TIPO ALCALINA - MODELO AAMEMO.274/2022/IP/DIR -  S.E.I  23106.109639/2022-91",2259,MAT. CONSUMO,JANETE MARIA CHAVES BRANDAO 04957560595,null,UNIVERSIDADE DE BRASÍLIA,null,38.76,ordinário,605
PRÓPRIOS -  PREST.SERVICOS FUB/FUNDO,156.00,FISCAL,PR 201/2022 - UNB,2022,26/09/2022,CRÉDITOS DISTRIBUÍDOS PARA AS UNIDADES ACADÊMICAS,null,null,null,FUNCIONAMENTO DE INSTITUICOES FEDERAI - NO DF,23106.074895/2020-98,"C.CUSTO: IHD - AT- NEUMA BRILHANTE RODRIGUES - PROT:11010118{SM5443/2022(156,00)}        MATERIAL PERMANENTE - PEDIDO:5443/2022 - 2022ND004007 - PREG:201/2022MAT.DE TIC - MATERIAL DE CONSUMO - CÂMERA VIDEOCONFERÊNCIA - RESOLUÇÃO 1080 X 1920MEMO.067/2022/ICH -  S.E.I  23106.109586/2022-16",2258,MAT. CONSUMO,RESILIRE S F COMERCIO LTDA,null,UNIVERSIDADE DE BRASÍLIA,null,156.00,ordinário,605
PRÓPRIOS -  PREST.SERVICOS FUB/FUNDO,171.00,FISCAL,PR 201/2022 - UNB,2022,26/09/2022,CRÉDITOS DISTRIBUÍDOS PARA AS UNIDADES ACADÊMICAS,null,null,null,FUNCIONAMENTO DE INSTITUICOES FEDERAI - NO DF,23106.074895/2020-98,"C.CUSTO: IHD - AT- NEUMA BRILHANTE RODRIGUES - PROT:11010108{SM5442/2022(171,00)}        MATERIAL DE CONSUMO - PEDIDO:5442/2022 - 2022ND004005 - PREG:201/2021MAT.DE TIC - MATERIAL DE CONSUMO - FONE OUVIDO TIPO HEADSET - POTÊNCIA 100 MWMEMO.066/2022/ICH -  S.E.I  23106.109583/2022-74",2257,MAT. CONSUMO,RF PRODUCOES ARTISTICAS LTDA,null,UNIVERSIDADE DE BRASÍLIA,null,171.00,ordinário,605
